Workbook

Sheet intro
B2: Welcome to the TOCALINO INDEX spreadsheet!
B4: The Tocalino Index ponders the US population between ages of 25 and 54 in a ratio whose denominator is the rate of unemployment plus core inflation rate (which excludes energy and food prices).
B9: When prospecting the economy, more attention needs to be paid to demographics. Despite the growing automation in services and manufacturing, it is the people who ultimately consume! Technology has not created autonomous machines that can populate the streets and buy goods and services. Therefore, people certainly make a difference!
B14: Annual data on American households and consumption statistics indicate that, from the age of 25, young adults grow their contribution to the national aggregate demand until the age of 54. After that, statistics generally point to a decrease in consumption.
B18: It is reasonable to imagine that the economy may gain strength with an increasing number of people aged 25 to 54. On the other hand, many businesses may face headwinds when the same age group retreats in size.
B22: Unemployment is a major setback for consumer demand. Inflation also makes consumption less accessible. The outlook for the American economy can be expected to be directly proportional to the number of people between 25 and 54 years of age, but inversely proportional to unemployment and inflation rates in the USA.
B27: In a consumption-driven economy, the Tocalino Index deserves greater national attention. But if its underlying rationale may not seem enough, perhaps its chart next to some important US stock indices may speak louder. After all, a picture paints a thousand words.
B31: The Tocalino Index shows a remarkable and historical correlation with the Dow Jones Industrial Average, the S&P 500 and the Wilshire 5000. All these indices must be represented in terms of real purchasing power, so they need to be adjusted for inflation.
B35: The Dow Jones Industrial Average (DJIA) reflects the behavior of just 30 major listed companies in the United States.
B38: The S&P 500 (SP500) measures the performance of the 500 largest companies listed on the US stock exchanges.
B41: The Wilshire 5000 Price Index (WILL5000PR) is weighted by the market capitalization of all US shares actively traded in the country. Therefore, this index includes most common shares and REITs (Real Estate Investment Trusts) traded mainly through the New York Stock Exchange, NASDAQ or American Stock Exchange. It does not include limited partnerships and American depositary receipts (ADRs).
B47: We avoid using the Wilshire Total Market Index 5000 (WILL5000IND) because it also takes into account the total market return on all reinvested dividends.
B50: Though the correlation exists with any of these stock indices adjusted for inflation, the one that shows this best is precisely the most comprehensive Wilshire 5000 price index!
B53: Beyond its potential implication for aggregate consumption, we do not attempt to delve into how or why the Tocalino Index correlates with the stock market. But, for whatever reason, the correlation is seen as far as the records allow.
B57: All the records we use are easily obtained from the federal repository of economic data, at the Federal Reserve Bank of St. Louis (FRED).
B60: We try to guarantee the longest possible comparisons. The historical data available in FRED are as follows:
B63: - The demographic records of 25-54 Yrs Population Level start in January 1948. (LNU00000060)
B65: - The Unemployment Rate records start in January 1948. (UNRATE)
B67: - Core Consumer Prices Index for all urban consumers: all items less food and energy in U.S. city average starts in January 1957 (CPILFESL). Therefore the 12-month inflation (percent change from year ago) can be traced since January 1958.
B71: - Data from the Wilshire 5000 Price Index is available from December 1970 onwards. (WILL5000PR)
B73: - Consumer Price Index for all urban consumers: all items in U.S. city average begins in January 1947 (CPIAUCSL). Therefore, inflation over 12 months (percentage change from the previous year) can be traced back to January 1948.
B77: - FRED has limited public disclosure of historical data on the Dow Jones Industrial Average (DJIA), publishing only the most recent 10-year period. That is why we use our own records from 1958 to 2015.
B97: Both indices had their first major detachment amidst the internet euphoria of the late 20th century. A period of "irrational exuberance", according to Fed Chairman Alan Greenspan. It later became known as the "dot.com bubble". In 1999, there was also a significant change in U.S. financial law. Commercial banks started taking more risk in their activities and affiliations. Financial engeneering thrived. These facts, as well as some unprecedented central bank policies, may shed some light on the decoupling of the lines. Despite its greater amplitude of movements, the stock market still shows the same underlying pattern of the Tocalino Index.
B105: This spreadsheet contains the historical data I use.
B107: More about this indicator may be read here:
B108: www.deolhonabolsa.com.br/cartas/2020-05-13_Tocalino_Index_as_a_Reference_to_US_Stocks.html
B110: Thank you for your interest!
B112: Sebastiao Buck Tocalino

Sheet charts
Q3: mp3
C11: last month: | D11: =MAX('Tocalino Index'!A:A) -> 2024-01-01
C12: updated: | D12: =TODAY() -> 2024-02-08
J16: monthly data refers to the end of | M16: ='Tocalino Index x DJIA'!H12 -> 2023-12-01
C21: spreadsheet with data for the Tocalino Index: www.deolhonabolsa.com.br/download/Tocalino_Index.xlsm
C38: last month: | D38: =MAX('Tocalino Index'!A:A) -> 2024-01-01
C39: updated: | D39: =TODAY() -> 2024-02-08
J44: monthly data refers to the end of | M44: ='Tocalino Index x DJIA'!H12 -> 2023-12-01
C48: spreadsheet with data for the Tocalino Index: www.deolhonabolsa.com.br/download/Tocalino_Index.xlsm
B72: copyright © Sebastiao Buck Tocalino - www.deolhonabolsa.com.br/sbt/
C88: last month: | D88: =MAX('Tocalino Index'!A:A) -> 2024-01-01
C89: updated: | D89: =TODAY() -> 2024-02-08
C98: spreadsheet with data for the Tocalino Index: www.deolhonabolsa.com.br/download/Tocalino_Index.xlsm
B100: Índice Tocalino: fundamentos de longo prazo e a Bolsa nos Estados Unidos.
B101: Índice Tocalino: fundamentos de longo prazo e a Bolsa americana.
B104: Welcome to the TOCALINO INDEX spreadsheet!
B106: The Tocalino Index considers the number of people in the United States between ages 25 and 54 in a ratio where the denominator is the sum of the rates of unemployment and core inflation (which excludes prices of energy and food).
B110: When observing the economy, one must also pay close attention to demographics. Despite progressive automation in services and manufacturing, it is people who ultimately consume! Technology has not yet created self sufficient machines that can reproduce themselves and have the will and means to purchase goods and services.
B115: The chart below shows 10 years of data regarding american households, according to the age of their chief provider, in terms of their contribution to the annual national aggregate consumption. From the age of 25, young adults grow their share of annual consumption, approximately until the age of 54. From then on, consumption diminishes.
B134: It is reasonable to imply that the economy shall expand more vigorously if there is a growing number of 25 to 54-year-old people in the population. On the other hand, the economy will face some headwinds as that cohort of the population starts to dwindle.
B138: Unemployment is often a drama for the individual and his or her family. A growing rate of unemployment is also a major deterrant for consumer demand in the economy. Inflation also makes consumption less affordable. One can expect that the health of the American economy is directly proportional to the number of people between ages of 25 and 54, but inversely proportional to the rate of unemployment and inflation in the U.S.
B144: In our economic system of free markets and capitalist societies, I believe the Tocalino Index rightfully deserves more public and political attention. Nevertheless, it is quite a surprise to see how its simple formula can trace a remarkable reference to some inflation-adjusted stock market indices.
B149: The Tocalino Index shows a noticeble long term correlation with three very important stock market indices in the U.S., such as the Dow Jones Industrial Average, the S&P 500 and the Wilshire 5000. These U.S. stock indices must bee represented in real values (adjusted for inflation), not in nominal terms, which would not account for the changes in the cost of living.
B154: The Dow Jones Industrial Average (DJIA) reflects the behaviour of just 30 major companies listed on stock exchanges in the United States.
B157: The S&P 500 (SP500) measures the stock performance of the 500 largest companies listed on U.S. stock exchanges.
B160: Most importantly, the Wilshire 5000 Price Index (WILL5000PR) is a market-capitalization-weighted index of the market value of all US-stocks actively traded in the United States. Hence, the price index includes a majority of the common stocks and REITs (real estate investment trusts) traded primarily through New York Stock Exchange, NASDAQ, or the American Stock Exchange. Limited partnerships and American Depository Reciepts (ADRs) are not included.
B166: Since we are more concerned with the price levels of stocks and shares in our comparissons here, we do not use the Wilshire 5000 Total Market Index (WILL5000IND), for the simple reason that it takes into account total market returns, which include all reinvested dividends.
B170: The correlation is seen using any of the three mentioned stock indices adjusted for inflation. But the one that works best is precisely the Wilshire 5000 price index, the most complete of them all.
B173: Other than the common sense discussed above, we do not attempt to elaborate any pretensious explanation to how or why the Tocalino Index has such correlation with the stock market. Whatever the cause may be, it suffices that the correlation goes back in time as far as we have been able to track it.
B178: We use data available from the economic data repository of the Federal Reserve Bank of St. Louis (FRED).
B181: Economic data bases were used in their fullest possible historical extent, to ensure we had the longest possible comparissons. The histories available from the FRED are as follows:
B184: - Population Level - 25-54 Yrs records start on January, 1948. (LNU00000060)
B186: - Unemployment Rate records start on January, 1948. (UNRATE)
B188: - The Core Consumer Prices Index for All Urban Consumers: All Items Less Food and Energy in U.S. City Average starts on January, 1957 (CPILFESL). Therefore the 12-month inflation (percent change from year ago) can be traced from January, 1958.
N191: The Tocalino Index as Basis for Behaviour and Capitulations of US Stock Markets.
B192: - Wilshire 5000 records start on December, 1970. (WILL5000PR)
B194: - Consumer Price Index for All Urban Consumers: All Items in U.S. City Average starts on January, 1947 (CPIAUCSL). Therefore the 12-month inflation (percent change from year ago) can be traced from January, 1948.
B198: - The Dow Jones Industrial Average is available only for the last ten years (DJIA), so we used our own records, starting at January, 1958.
B201: It is important to notice that both indices found their first major disagreement amidst the internet euphoria of the late 20th century. A period of "irrational exuberance", according to Fed Chairman Alan Greenspan, which later became known as the "dot.com bubble". Nearing the end of the 20th century, there was also a significant change in U.S. financial laws. Commercial banks started taking more risk in their activities and affiliations. Financial engeneering thrived. These facts, as well as unprecedented central bank policies, may shed some light on the detachment of the charts. Though with much greater amplitude, the stock market still seems to follow the same underlying pattern of the Tocalino Index.

Sheet pt-Br
D11: dados referentes a | E11: =MAX('Tocalino Index'!A:A) -> 2024-01-01
D12: pesquisa feita em | E12: =TODAY() -> 2024-02-08
J16: monthly data refers to the end of | M16: ='Tocalino Index x DJIA'!H12 -> 2023-12-01
C20: planilha Excel do Índice Tocalino: www.deolhonabolsa.com.br/download/Tocalino_Index.xlsm
I24: https://fred.stlouisfed.org/graph/fredgraph.png?g=BB9u
I26: https://fred.stlouisfed.org/graph/?g=BB9u
D49: dados referentes a | E49: =MAX('Tocalino Index 1980'!A:A)-28 -> 2023-12-04
D50: pesquisa feita em | E50: =B84 -> 2024-02-08
J55: monthly data refers to the end of | M55: ='Tocalino Index x DJIA'!H51 -> 1959-12-01
C59: planilha Excel do Índice Tocalino: www.deolhonabolsa.com.br/download/Tocalino_Index.xlsm
D71: data until the end of | E71: =MAX('Tocalino Index 1980'!A:A)-28 -> 2023-12-04
D72: available on | E72: =B84 -> 2024-02-08
J77: monthly data refers to the end of | M77: ='Tocalino Index x DJIA'!H82 -> 1962-07-01
C81: Excel spreadsheet with macros to compile the Tocalino Index: www.deolhonabolsa.com.br/download/Tocalino_Index.xlsm
B84: =TODAY() -> 2024-02-08 | S84: https://fred.stlouisfed.org/graph/fredgraph.png?g=BB6o
H88: M2 = M2SL
F89: em Português | H89: in English
D95: dados referentes a | E95: 2021-05-01
D96: pesquisa feita em | E96: 2021-07-02

Sheet Tocalino Index x Stocks Indices
C1: Tocalino Index was developed by Sebastiao Buck Tocalino
C3: Copyright © Sebastiao Buck Tocalino
C4: www.deolhonabolsa.com/sbt/ - www.deolhonabolsa.com.br/sbt/
C6: The economy is directly proportional to the population between 25 and 54 years old, but
C7: inversely proportional to the unemployment rate and the consumer price inflation rate.
A9: The Tocalino Index: is the number of civilian people, between 25 and 54 years of age in the U.S., divided by the sum of the unemployment rate, and the core inflation rate, that is CPI less food and energy. The result is a gauge for the Stock Market indexes, adjusted for inflation, such as the Dow Jones Industrial Average, or the Wilshire 5000.
A11: download Tocalino Index data sheet from FRED | H11: =MAXA(H15:H1175) -> 2023-12-01 | I11: download | K11: =MAXA(K15:K1175) -> 2023-12-01 | L11: download DJIA adjusted for inflation
A12: Civilian Noninstitutional Population - 25 to 54 years (LNU00000060) | H12: Wilshire 5000 | K12: Dow Jones Industrial Average / Consumer Price Index
A13: Tocalino Index © ® | G13: =TODAY() -> 2024-02-08 | H13: adjusted for Inflation | K13: Dow Jones adjusted for Inflation | P13: index: July 1990 = 100
A14: yyyy-mm-dd | B14: LNU00000060 | C14: UNRATE | D14: CPILFESL | E14: = LNU00000060/(UNRATE+CPILFESL) | F14: index | H14: yyyy-mm-dd | I14: index | K14: yyyy-mm-dd | L14: DJIA | M14: CPIAUCSL | N14: = DJIA/CPIAUCSL | O14: index | P14: =$N$417/100 -> 0.2226206897 | Q14: =$E$417/100 -> 99.69118695
A15: 1957-01-01 | B15: 64857 | C15: 4.2 | E15: =B15/(C15+D15) ->  | H15: 1957-01-01 | K15: 1957-01-01 | L15: 0 | M15: 0
A16: 1957-02-01 | B16: 64879 | C16: 3.9 | H16: 1957-02-01 | K16: 1957-02-01 | L16: 0 | M16: 0
A17: 1957-03-01 | B17: 64908 | C17: 3.7 | H17: 1957-03-01 | K17: 1957-03-01 | L17: 0 | M17: 0
A18: 1957-04-01 | B18: 64934 | C18: 3.9 | H18: 1957-04-01 | K18: 1957-04-01 | L18: 0 | M18: 0
A19: 1957-05-01 | B19: 64972 | C19: 4.1 | H19: 1957-05-01 | K19: 1957-05-01 | L19: 0 | M19: 0
A20: 1957-06-01 | B20: 65025 | C20: 4.3 | H20: 1957-06-01 | K20: 1957-06-01 | L20: 0 | M20: 0
A21: 1957-07-01 | B21: 65113 | C21: 4.2 | H21: 1957-07-01 | K21: 1957-07-01 | L21: 0 | M21: 0
A22: 1957-08-01 | B22: 65134 | C22: 4.1 | K22: 1957-08-01 | L22: 0 | M22: 0
A23: 1957-09-01 | B23: 65165 | C23: 4.4 | K23: 1957-09-01 | L23: 0 | M23: 0
A24: 1957-10-01 | B24: 65205 | C24: 4.5 | K24: 1957-10-01 | L24: 0 | M24: 0
A25: 1957-11-01 | B25: 65251 | C25: 5.1 | K25: 1957-11-01 | L25: 0 | M25: 0
A26: 1957-12-01 | B26: 65290 | C26: 5.2 | K26: 1957-12-01 | L26: 0 | M26: 0
A27: 1958-01-01 | B27: 65325 | C27: 5.8 | D27: 2.80702 | E27: 7589.734891 | F27: 76.1 | G27: 1958-01-01 | K27: 1958-01-01 | L27: 450.02 | M27: 28.64 | N27: =L27/M27 -> 15.71298883 | O27: =IF(M27="","",N27/$P$14) -> 70.58188909
A28: 1958-02-01 | B28: 65350 | C28: 6.4 | D28: 2.7972 | E28: 7105.42339 | F28: 71.3 | G28: 1958-02-01 | K28: 1958-02-01 | L28: 439.92 | M28: 28.7 | N28: 15.328223 | O28: 68.85354196 | S28: =VLOOKUP($K28,CPIAUCSL!$A$12:$B$1041,2,FALSE) -> 28.7
A29: 1958-03-01 | B29: 65373 | C29: 6.7 | D29: 2.78746 | E29: 6890.463833 | F29: 69.1 | G29: 1958-03-01 | K29: 1958-03-01 | L29: 446.76 | M29: 28.87 | N29: 15.47488743 | O29: 69.51235058
A30: 1958-04-01 | B30: 65392 | C30: 7.4 | D30: 2.43056 | E30: 6651.909962 | F30: 66.7 | G30: 1958-04-01 | K30: 1958-04-01 | L30: 455.86 | M30: 28.94 | N30: 15.75190048 | O30: 70.75667813
A31: 1958-05-01 | B31: 65422 | C31: 7.4 | D31: 2.43056 | E31: 6654.961671 | F31: 66.8 | G31: 1958-05-01 | K31: 1958-05-01 | L31: 462.7 | M31: 28.94 | N31: 15.98825155 | O31: 71.81835426
A32: 1958-06-01 | B32: 65451 | C32: 7.3 | D32: 2.42215 | E32: 6732.152867 | F32: 67.5 | G32: 1958-06-01 | K32: 1958-06-01 | L32: 478.18 | M32: 28.91 | N32: 16.54029747 | O32: 74.29811443
A33: 1958-07-01 | B33: 65460 | C33: 7.5 | D33: 2.06897 | E33: 6840.86166 | F33: 68.6 | G33: 1958-07-01 | K33: 1958-07-01 | L33: 502.99 | M33: 28.89 | N33: 17.41052267 | O33: 78.20711857
A34: 1958-08-01 | B34: 65449 | C34: 7.4 | D34: 2.06897 | E34: 6911.945016 | F34: 69.3 | G34: 1958-08-01 | K34: 1958-08-01 | L34: 508.63 | M34: 28.94 | N34: 17.57532827 | O34: 78.94741631
A35: 1958-09-01 | B35: 65426 | C35: 7.1 | D35: 2.06186 | E35: 7141.126365 | F35: 71.6 | G35: 1958-09-01 | K35: 1958-09-01 | L35: 532.09 | M35: 28.91 | N35: 18.40505016 | O35: 82.6744818
A36: 1958-10-01 | B36: 65454 | C36: 6.7 | D36: 1.71233 | E36: 7780.721869 | F36: 78 | G36: 1958-10-01 | K36: 1958-10-01 | L36: 543.22 | M36: 28.91 | N36: 18.79003805 | O36: 84.40382643
A37: 1958-11-01 | B37: 65476 | C37: 6.2 | D37: 1.70648 | E37: 8281.308496 | F37: 83.1 | G37: 1958-11-01 | K37: 1958-11-01 | L37: 557.46 | M37: 28.95 | N37: 19.25595855 | O37: 86.49671591
A38: 1958-12-01 | B38: 65497 | C38: 6.2 | D38: 2.04778 | E38: 7941.167199 | F38: 79.7 | G38: 1958-12-01 | K38: 1958-12-01 | L38: 583.65 | M38: 28.97 | N38: 20.14670349 | O38: 90.4978936
A39: 1959-01-01 | B39: 65525 | C39: 6 | D39: 2.04778 | E39: 8141.996923 | F39: 81.7 | G39: 1959-01-01 | K39: 1959-01-01 | L39: 593.96 | M39: 29.01 | N39: 20.4743192 | O39: 91.96952553
A40: 1959-02-01 | B40: 65544 | C40: 5.9 | D40: 1.70068 | E40: 8623.438955 | F40: 86.5 | G40: 1959-02-01 | K40: 1959-02-01 | L40: 603.5 | M40: 29 | N40: 20.81034483 | O40: 93.47893432
A41: 1959-03-01 | B41: 65566 | C41: 5.6 | D41: 1.69492 | E41: 8987.898428 | F41: 90.2 | G41: 1959-03-01 | K41: 1959-03-01 | L41: 601.71 | M41: 28.97 | N41: 20.77010701 | O41: 93.29818823
A42: 1959-04-01 | B42: 65587 | C42: 5.2 | D42: 1.69492 | E42: 9512.365626 | F42: 95.4 | G42: 1959-04-01 | K42: 1959-04-01 | L42: 623.75 | M42: 28.98 | N42: 21.52346446 | O42: 96.68222882
A43: 1959-05-01 | B43: 65614 | C43: 5.1 | D43: 2.0339 | E43: 9197.493657 | F43: 92.3 | G43: 1959-05-01 | K43: 1959-05-01 | L43: 643.79 | M43: 29.04 | N43: 22.16907713 | O43: 99.58228577
A44: 1959-06-01 | B44: 65638 | C44: 5 | D44: 2.02703 | E44: 9340.788356 | F44: 93.7 | G44: 1959-06-01 | K44: 1959-06-01 | L44: 643.6 | M44: 29.11 | N44: 22.10924081 | O44: 99.31350426
A45: 1959-07-01 | B45: 65660 | C45: 5.1 | D45: 2.02703 | E45: 9212.813753 | F45: 92.4 | G45: 1959-07-01 | K45: 1959-07-01 | L45: 674.88 | M45: 29.15 | N45: 23.15197256 | O45: 103.9973984
A46: 1959-08-01 | B46: 65681 | C46: 5.2 | D46: 2.02703 | E46: 9088.242335 | F46: 91.2 | G46: 1959-08-01 | K46: 1959-08-01 | L46: 664.41 | M46: 29.18 | N46: 22.76936258 | O46: 102.2787352
A47: 1959-09-01 | B47: 65650 | C47: 5.5 | D47: 2.0202 | E47: 8729.821015 | F47: 87.6 | G47: 1959-09-01 | K47: 1959-09-01 | L47: 631.68 | M47: 29.25 | N47: 21.59589744 | O47: 97.00759381
A48: 1959-10-01 | B48: 65639 | C48: 5.7 | D48: 2.3569 | E48: 8146.929961 | F48: 81.7 | G48: 1959-10-01 | K48: 1959-10-01 | L48: 646.6 | M48: 29.35 | N48: 22.0306644 | O48: 98.96054329
A49: 1959-11-01 | B49: 65621 | C49: 5.8 | D49: 2.01342 | E49: 8398.498993 | F49: 84.2 | G49: 1959-11-01 | K49: 1959-11-01 | L49: 659.18 | M49: 29.35 | N49: 22.4592845 | O49: 100.8858814
A50: 1959-12-01 | B50: 65642 | C50: 5.3 | D50: 2.00669 | E50: 8983.821676 | F50: 90.1 | G50: 1959-12-01 | K50: 1959-12-01 | L50: 679.36 | M50: 29.41 | N50: 23.09962598 | O50: 103.7622604
A51: 1960-01-01 | B51: 65931 | C51: 5.2 | D51: 2.00669 | E51: 9148.582775 | F51: 91.8 | G51: 1960-01-01 | K51: 1960-01-01 | L51: 622.62 | M51: 29.37 | N51: 21.19918284 | O51: 95.22557347
A52: 1960-02-01 | B52: 65952 | C52: 4.8 | D52: 2.34114 | E52: 9235.500214 | F52: 92.6 | G52: 1960-02-01 | K52: 1960-02-01 | L52: 630.12 | M52: 29.41 | N52: 21.42536552 | O52: 96.24157375
A53: 1960-03-01 | B53: 65975 | C53: 5.4 | D53: 2 | E53: 8915.540541 | F53: 89.4 | G53: 1960-03-01 | K53: 1960-03-01 | L53: 616.59 | M53: 29.41 | N53: 20.96531792 | O53: 94.175065
A54: 1960-04-01 | B54: 65974 | C54: 5.2 | D54: 2 | E54: 9163.055556 | F54: 91.9 | G54: 1960-04-01 | K54: 1960-04-01 | L54: 601.7 | M54: 29.54 | N54: 20.3689912 | O54: 91.49639789
A55: 1960-05-01 | B55: 65989 | C55: 5.1 | D55: 1.66113 | E55: 9760.054902 | F55: 97.9 | G55: 1960-05-01 | K55: 1960-05-01 | L55: 625.5 | M55: 29.57 | N55: 21.15319581 | O55: 95.01900223
A56: 1960-06-01 | B56: 66017 | C56: 5.4 | D56: 1.65563 | E56: 9356.641434 | F56: 93.9 | G56: 1960-06-01 | K56: 1960-06-01 | L56: 640.62 | M56: 29.61 | N56: 21.63525836 | O56: 97.18440093
A57: 1960-07-01 | B57: 66034 | C57: 5.5 | D57: 1.3245 | E57: 9676.020221 | F57: 97.1 | G57: 1960-07-01 | K57: 1960-07-01 | L57: 616.73 | M57: 29.55 | N57: 20.87072758 | O57: 93.75017036
A58: 1960-08-01 | B58: 66069 | C58: 5.6 | D58: 1.3245 | E58: 9541.338725 | F58: 95.7 | G58: 1960-08-01 | K58: 1960-08-01 | L58: 625.99 | M58: 29.61 | N58: 21.14116852 | O58: 94.96497633
A59: 1960-09-01 | B59: 66073 | C59: 5.5 | D59: 0.9901 | E59: 10180.58273 | F59: 102.1 | G59: 1960-09-01 | K59: 1960-09-01 | L59: 580.14 | M59: 29.61 | N59: 19.59270517 | O59: 88.00936336
A60: 1960-10-01 | B60: 66091 | C60: 6.1 | D60: 1.31579 | E60: 8912.199509 | F60: 89.4 | G60: 1960-10-01 | K60: 1960-10-01 | L60: 580.36 | M60: 29.75 | N60: 19.50789916 | O60: 87.6284194
A61: 1960-11-01 | B61: 66146 | C61: 6.1 | D61: 1.31579 | E61: 8919.616116 | F61: 89.5 | G61: 1960-11-01 | K61: 1960-11-01 | L61: 597.22 | M61: 29.78 | N61: 20.05439893 | O61: 90.08326655
A62: 1960-12-01 | B62: 66194 | C62: 6.6 | D62: 0.65574 | E62: 9122.98401 | F62: 91.5 | G62: 1960-12-01 | K62: 1960-12-01 | L62: 615.89 | M62: 29.81 | N62: 20.66051661 | O62: 92.80591412
A63: 1961-01-01 | B63: 66237 | C63: 6.6 | D63: 0.98361 | E63: 8734.230795 | F63: 87.6 | G63: 1961-01-01 | K63: 1961-01-01 | L63: 648.2 | M63: 29.84 | N63: 21.72252011 | O63: 97.57637595
A64: 1961-02-01 | B64: 66243 | C64: 6.9 | D64: 0.65359 | E64: 8769.737304 | F64: 88 | G64: 1961-02-01 | K64: 1961-02-01 | L64: 662.08 | M64: 29.84 | N64: 22.18766756 | O64: 99.66579294
A65: 1961-03-01 | B65: 66253 | C65: 6.9 | D65: 0.98039 | E65: 8407.325018 | F65: 84.3 | G65: 1961-03-01 | K65: 1961-03-01 | L65: 676.63 | M65: 29.84 | N65: 22.6752681 | O65: 101.856068
A66: 1961-04-01 | B66: 66274 | C66: 7 | D66: 0.98039 | E66: 8304.606667 | F66: 83.3 | G66: 1961-04-01 | K66: 1961-04-01 | L66: 678.71 | M66: 29.81 | N66: 22.76786313 | O66: 102.2719998
A67: 1961-05-01 | B67: 66301 | C67: 7.1 | D67: 0.98039 | E67: 8205.173265 | F67: 82.3 | G67: 1961-05-01 | K67: 1961-05-01 | L67: 696.72 | M67: 29.84 | N67: 23.34852547 | O67: 104.8803034
A68: 1961-06-01 | B68: 66328 | C68: 6.9 | D68: 0.9772 | E68: 8420.250851 | F68: 84.5 | G68: 1961-06-01 | K68: 1961-06-01 | L68: 683.96 | M68: 29.84 | N68: 22.92091153 | O68: 102.9594849
A69: 1961-07-01 | B69: 66348 | C69: 7 | D69: 1.30719 | E69: 7986.81624 | F69: 80.1 | G69: 1961-07-01 | K69: 1961-07-01 | L69: 705.37 | M69: 29.92 | N69: 23.57520053 | O69: 105.8985154
A70: 1961-08-01 | B70: 66362 | C70: 6.6 | D70: 1.63399 | E70: 8059.51914 | F70: 80.8 | G70: 1961-08-01 | K70: 1961-08-01 | L70: 719.94 | M70: 29.94 | N70: 24.04609218 | O70: 108.013735
A71: 1961-09-01 | B71: 66373 | C71: 6.7 | D71: 1.63399 | E71: 7964.132426 | F71: 79.9 | G71: 1961-09-01 | K71: 1961-09-01 | L71: 701.21 | M71: 29.98 | N71: 23.38925951 | O71: 105.0632785
A72: 1961-10-01 | B72: 66380 | C72: 6.5 | D72: 0.97403 | E72: 8881.420064 | F72: 89.1 | G72: 1961-10-01 | K72: 1961-10-01 | L72: 703.92 | M72: 29.98 | N72: 23.4796531 | O72: 105.4693216
A73: 1961-11-01 | B73: 66324 | C73: 6.1 | D73: 1.2987 | E73: 8964.277508 | F73: 89.9 | G73: 1961-11-01 | K73: 1961-11-01 | L73: 721.6 | M73: 29.98 | N73: 24.06937959 | O73: 108.1183408
A74: 1961-12-01 | B74: 66316 | C74: 6 | D74: 1.62866 | E74: 8693.007684 | F74: 87.2 | G74: 1961-12-01 | K74: 1961-12-01 | L74: 731.14 | M74: 30.01 | N74: 24.36321226 | O74: 109.4382211
A75: 1962-01-01 | B75: 66277 | C75: 5.8 | D75: 1.2987 | E75: 9336.498232 | F75: 93.7 | G75: 1962-01-01 | K75: 1962-01-01 | L75: 700 | M75: 30.04 | N75: 23.30226365 | O75: 104.6724978
A76: 1962-02-01 | B76: 66272 | C76: 5.5 | D76: 1.2987 | E76: 9747.745893 | F76: 97.8 | G76: 1962-02-01 | K76: 1962-02-01 | L76: 708.05 | M76: 30.11 | N76: 23.51544337 | O76: 105.6300895
A77: 1962-03-01 | B77: 66290 | C77: 5.6 | D77: 1.2945 | E77: 9614.910436 | F77: 96.4 | G77: 1962-03-01 | K77: 1962-03-01 | L77: 706.95 | M77: 30.17 | N77: 23.43221743 | O77: 105.2562431
A78: 1962-04-01 | B78: 66023 | C78: 5.6 | D78: 1.2945 | E78: 9576.183915 | F78: 96.1 | G78: 1962-04-01 | K78: 1962-04-01 | L78: 665.33 | M78: 30.21 | N78: 22.02350215 | O78: 98.92837088
A79: 1962-05-01 | B79: 66043 | C79: 5.5 | D79: 1.61812 | E79: =B79/(C79+D79) -> 9278.152096 | F79: 93.1 | G79: 1962-05-01 | K79: 1962-05-01 | L79: 613.36 | M79: 30.24 | N79: 20.28306878 | O79: 91.11043908
A80: 1962-06-01 | B80: 66069 | C80: 5.5 | D80: 1.29032 | E80: 9729.880182 | F80: 97.6 | G80: 1962-06-01 | K80: 1962-06-01 | L80: 561.28 | M80: 30.21 | N80: 18.57927838 | O80: 83.45710551
A81: 1962-07-01 | B81: 66167 | C81: 5.4 | D81: 1.29032 | E81: 9889.96042 | F81: 99.2 | G81: 1962-07-01 | K81: 1962-07-01 | L81: 597.93 | M81: 30.22 | N81: 19.78590338 | O81: 88.87719918
A82: 1962-08-01 | B82: 66204 | C82: 5.7 | D82: 1.28617 | E82: 9476.437018 | F82: 95.1 | G82: 1962-08-01 | K82: 1962-08-01 | L82: 609.18 | M82: 30.28 | N82: 20.11822985 | O82: 90.3699916
A83: 1962-09-01 | B83: 66282 | C83: 5.6 | D83: 1.28617 | E83: 9625.379565 | F83: 96.6 | G83: 1962-09-01 | K83: 1962-09-01 | L83: 578.98 | M83: 30.42 | N83: 19.03287311 | O83: 85.49462828
A84: 1962-10-01 | B84: 66318 | C84: 5.4 | D84: 1.28617 | E84: 9918.682893 | F84: 99.5 | G84: 1962-10-01 | K84: 1962-10-01 | L84: 589.77 | M84: 30.38 | N84: 19.41310072 | O84: 87.20258999
A85: 1962-11-01 | B85: 66334 | C85: 5.7 | D85: 0.96154 | E85: 9957.757516 | F85: 99.9 | G85: 1962-11-01 | K85: 1962-11-01 | L85: 649.3 | M85: 30.38 | N85: 21.37261356 | O85: 96.00461482
A86: 1962-12-01 | B86: 66349 | C86: 5.5 | D86: 1.28205 | E86: 9783.030205 | F86: 98.1 | G86: 1962-12-01 | K86: 1962-12-01 | L86: 652.1 | M86: 30.38 | N86: 21.46477946 | O86: 96.41861901
A87: 1963-01-01 | B87: 66390 | C87: 5.7 | D87: 0.96154 | E87: 9966.16398 | F87: 100 | G87: 1963-01-01 | K87: 1963-01-01 | L87: 682.85 | M87: 30.44 | N87: 22.4326544 | O87: 100.7662605
A88: 1963-02-01 | B88: 66405 | C88: 5.9 | D88: 1.28205 | E88: 9245.967377 | F88: 92.7 | G88: 1963-02-01 | K88: 1963-02-01 | L88: 662.94 | M88: 30.48 | N88: 21.75 | O88: 97.69981413
A89: 1963-03-01 | B89: 66422 | C89: 5.7 | D89: 1.27796 | E89: 9518.827852 | F89: 95.5 | G89: 1963-03-01 | K89: 1963-03-01 | L89: 682.52 | M89: 30.51 | N89: 22.37037037 | O89: 100.486484
A90: 1963-04-01 | B90: 66437 | C90: 5.7 | D90: 1.27796 | E90: 9520.977478 | F90: 95.5 | G90: 1963-04-01 | K90: 1963-04-01 | L90: 717.7 | M90: 30.48 | N90: 23.54658793 | O90: 105.7699891
A91: 1963-05-01 | B91: 66440 | C91: 5.9 | D91: 0.95541 | E91: 9691.615819 | F91: 97.2 | G91: 1963-05-01 | K91: 1963-05-01 | L91: 726.96 | M91: 30.51 | N91: =L91/M91 -> 23.82694199 | O91: =IF(M91="","",N91/$P$14) -> 107.0293243
A92: 1963-06-01 | B92: 66461 | C92: 5.6 | D92: 1.27389 | E92: 9668.615587 | F92: 97 | G92: 1963-06-01 | K92: 1963-06-01 | L92: 706.88 | M92: 30.61 | N92: 23.09310683 | O92: 103.7329768
A93: 1963-07-01 | B93: 66509 | C93: 5.6 | D93: 1.27389 | E93: 9675.598533 | F93: 97.1 | G93: 1963-07-01 | K93: 1963-07-01 | L93: 695.43 | M93: 30.69 | N93: 22.65982405 | O93: 101.7866941
A94: 1963-08-01 | B94: 66551 | C94: 5.4 | D94: 1.26984 | E94: 9977.900519 | F94: 100.1 | G94: 1963-08-01 | K94: 1963-08-01 | L94: 729.32 | M94: 30.75 | N94: 23.71772358 | O94: 106.5387211
A95: 1963-09-01 | B95: 66547 | C95: 5.5 | D95: 1.26984 | E95: 9829.922125 | F95: 98.6 | G95: 1963-09-01 | K95: 1963-09-01 | L95: 732.79 | M95: 30.72 | N95: 23.85384115 | O95: 107.1501538
A96: 1963-10-01 | B96: 66572 | C96: 5.5 | D96: 1.5873 | E96: 9393.139842 | F96: 94.2 | G96: 1963-10-01 | K96: 1963-10-01 | L96: 755.23 | M96: 30.75 | N96: 24.5603252 | O96: 110.3236417
A97: 1963-11-01 | B97: 66596 | C97: 5.7 | D97: 1.5873 | E97: 9138.638453 | F97: 91.7 | G97: 1963-11-01 | K97: 1963-11-01 | L97: 750.52 | M97: 30.78 | N97: 24.38336582 | O97: 109.5287498
A98: 1963-12-01 | B98: 66613 | C98: 5.5 | D98: 1.58228 | E98: 9405.586901 | F98: 94.3 | G98: 1963-12-01 | K98: 1963-12-01 | L98: 762.95 | M98: 30.88 | N98: 24.70693005 | O98: 110.9821827
A99: 1964-01-01 | B99: 66653 | C99: 5.6 | D99: 2.22222 | E99: 8520.982534 | F99: 85.5 | G99: 1964-01-01 | K99: 1964-01-01 | L99: 785.34 | M99: 30.94 | N99: 25.38267615 | O99: 114.0175973
A100: 1964-02-01 | B100: 66666 | C100: 5.4 | D100: 1.89873 | E100: 9133.917819 | F100: 91.6 | G100: 1964-02-01 | K100: 1964-02-01 | L100: 800.14 | M100: 30.91 | N100: 25.886121 | O100: 116.2790441
A101: 1964-03-01 | B101: 66679 | C101: 5.4 | D101: 1.57729 | E101: 9556.575691 | F101: 95.9 | G101: 1964-03-01 | K101: 1964-03-01 | L101: 813.29 | M101: 30.94 | N101: 26.28603749 | O101: 118.0754472
A102: 1964-04-01 | B102: 66702 | C102: 5.3 | D102: 1.57729 | E102: 9698.878483 | F102: 97.3 | G102: 1964-04-01 | K102: 1964-04-01 | L102: 810.77 | M102: 30.95 | N102: 26.19612278 | O102: 117.6715552
A103: 1964-05-01 | B103: 66724 | C103: 5.1 | D103: 1.57729 | E103: 9992.67667 | F103: 100.2 | G103: 1964-05-01 | K103: 1964-05-01 | L103: 820.56 | M103: 30.98 | N103: 26.48676566 | O103: 118.9771072
A104: 1964-06-01 | B104: 66749 | C104: 5.2 | D104: 1.57233 | E104: 9856.135185 | F104: 98.9 | G104: 1964-06-01 | K104: 1964-06-01 | L104: 831.5 | M104: 31.01 | N104: 26.81393099 | O104: 120.446716
A105: 1964-07-01 | B105: 66774 | C105: 4.9 | D105: 1.57233 | E105: 10316.84108 | F105: 103.5 | G105: 1964-07-01 | K105: 1964-07-01 | L105: 841.1 | M105: 31.02 | N105: 27.11476467 | O105: 121.7980445
A106: 1964-08-01 | B106: 66789 | C106: 5 | D106: 1.25392 | E106: 10679.54179 | F106: 107.1 | G106: 1964-08-01 | K106: 1964-08-01 | L106: 838.48 | M106: 31.05 | N106: 27.0041868 | O106: 121.3013347
A107: 1964-09-01 | B107: 66814 | C107: 5.1 | D107: 1.25392 | E107: 10515.39837 | F107: 105.5 | G107: 1964-09-01 | K107: 1964-09-01 | L107: 875.37 | M107: 31.08 | N107: 28.16505792 | O107: 126.5159045
A108: 1964-10-01 | B108: 66838 | C108: 5.1 | D108: 1.25 | E108: 10525.66929 | F108: 105.6 | G108: 1964-10-01 | K108: 1964-10-01 | L108: 873.08 | M108: 31.12 | N108: 28.05526992 | O108: 126.0227428
A109: 1964-11-01 | B109: 66862 | C109: 4.8 | D109: 1.5625 | E109: 10508.76228 | F109: 105.4 | G109: 1964-11-01 | K109: 1964-11-01 | L109: 875.43 | M109: 31.21 | N109: 28.04966357 | O109: 125.9975594
A110: 1964-12-01 | B110: 66885 | C110: 5 | D110: 1.24611 | E110: 10708.26482 | F110: 107.4 | G110: 1964-12-01 | K110: 1964-12-01 | L110: 874.13 | M110: 31.25 | N110: 27.97216 | O110: 125.6494176
A111: 1965-01-01 | B111: 66911 | C111: 4.9 | D111: 1.24224 | E111: 10893.5828 | F111: 109.3 | G111: 1965-01-01 | K111: 1965-01-01 | L111: 902.86 | M111: 31.28 | N111: 28.86381074 | O111: 129.6546641
A112: 1965-02-01 | B112: 66929 | C112: 5.1 | D112: 1.24224 | E112: 10552.89614 | F112: 105.9 | G112: 1965-02-01 | K112: 1965-02-01 | L112: 903.48 | M112: 31.28 | N112: 28.88363171 | O112: 129.7436988
A113: 1965-03-01 | B113: 66951 | C113: 4.7 | D113: 1.24224 | E113: 11266.9633 | F113: 113 | G113: 1965-03-01 | K113: 1965-03-01 | L113: 889.05 | M113: 31.31 | N113: 28.39508144 | O113: 127.5491577
A114: 1965-04-01 | B114: 66977 | C114: 4.8 | D114: 1.5528 | E114: 10542.91021 | F114: 105.8 | G114: 1965-04-01 | K114: 1965-04-01 | L114: 922.31 | M114: 31.38 | N114: 29.39165073 | O114: 132.0256926
A115: 1965-05-01 | B115: 66996 | C115: 4.6 | D115: 1.5528 | E115: 10888.70108 | F115: 109.2 | G115: 1965-05-01 | K115: 1965-05-01 | L115: 918.04 | M115: 31.48 | N115: 29.16264295 | O115: 130.9970021
A116: 1965-06-01 | B116: 67021 | C116: 4.6 | D116: 1.23839 | E116: 11479.36332 | F116: 115.1 | G116: 1965-06-01 | K116: 1965-06-01 | L116: 868.03 | M116: 31.61 | N116: 27.46061373 | O116: 123.3515796
A117: 1965-07-01 | B117: 66934 | C117: 4.4 | D117: 1.23839 | E117: 11871.11924 | F117: 119.1 | G117: 1965-07-01 | K117: 1965-07-01 | L117: 881.74 | M117: 31.58 | N117: 27.92083597 | O117: 125.4188729
A118: 1965-08-01 | B118: 66975 | C118: 4.4 | D118: 1.23839 | E118: 11878.39082 | F118: 119.2 | G118: 1965-08-01 | K118: 1965-08-01 | L118: 893.1 | M118: 31.55 | N118: 28.30744849 | O118: 127.1555152
A119: 1965-09-01 | B119: 67005 | C119: 4.3 | D119: 1.54799 | E119: 11457.78293 | F119: 114.9 | G119: 1965-09-01 | K119: 1965-09-01 | L119: 930.58 | M119: 31.62 | N119: 29.43010753 | O119: 132.1984384
A120: 1965-10-01 | B120: 67013 | C120: 4.2 | D120: 1.23457 | E120: 12330.87438 | F120: 123.7 | G120: 1965-10-01 | K120: 1965-10-01 | L120: 960.82 | M120: 31.65 | N120: 30.35766193 | O120: 136.3649622
A121: 1965-11-01 | B121: 67019 | C121: 4.1 | D121: 1.23077 | E121: 12572.10497 | F121: 126.1 | G121: 1965-11-01 | K121: 1965-11-01 | L121: 946.71 | M121: 31.75 | N121: 29.8176378 | O121: 133.9392032
A122: 1965-12-01 | B122: 67024 | C122: 4 | D122: 1.53846 | E122: 12101.55892 | F122: 121.4 | G122: 1965-12-01 | K122: 1965-12-01 | L122: 969.26 | M122: 31.85 | N122: 30.43202512 | O122: 136.6989976
A123: 1966-01-01 | B123: 67022 | C123: 4 | D123: 1.22699 | E123: 12822.29352 | F123: 128.6 | G123: 1966-01-01 | K123: 1966-01-01 | L123: 983.51 | M123: 31.88 | N123: 30.85037641 | O123: 138.5782088
A124: 1966-02-01 | B124: 67029 | C124: 3.8 | D124: 1.53374 | E124: 12566.97927 | F124: 126.1 | G124: 1966-02-01 | K124: 1966-02-01 | L124: 951.89 | M124: 32.08 | N124: 29.67238155 | O124: 133.2867201
A125: 1966-03-01 | B125: 67002 | C125: 3.8 | D125: 1.53374 | E125: 12561.91715 | F125: 126 | G125: 1966-03-01 | K125: 1966-03-01 | L125: 924.77 | M125: 32.18 | N125: 28.73741454 | O125: 129.0868993
A126: 1966-04-01 | B126: 67037 | C126: 3.8 | D126: 1.83486 | E126: 11896.83506 | F126: 119.3 | G126: 1966-04-01 | K126: 1966-04-01 | L126: 933.68 | M126: 32.28 | N126: 28.9244114 | O126: 129.926879
A127: 1966-05-01 | B127: 67096 | C127: 3.9 | D127: 2.14067 | E127: 11107.37716 | F127: 111.4 | G127: 1966-05-01 | K127: 1966-05-01 | L127: 884.07 | M127: 32.35 | N127: 27.32828439 | O127: 122.7571635
A128: 1966-06-01 | B128: 67098 | C128: 3.8 | D128: 2.44648 | E128: 10741.72974 | F128: 107.8 | G128: 1966-06-01 | K128: 1966-06-01 | L128: 870.1 | M128: 32.38 | N128: 26.87152563 | O128: 120.705428
A129: 1966-07-01 | B129: 67105 | C129: 3.8 | D129: 2.75229 | E129: 10241.45757 | F129: 102.7 | G129: 1966-07-01 | K129: 1966-07-01 | L129: 847.38 | M129: 32.45 | N129: 26.11340524 | O129: 117.2999926
A130: 1966-08-01 | B130: 67129 | C130: 3.8 | D130: 3.0581 | E130: 9788.279553 | F130: 98.2 | G130: 1966-08-01 | K130: 1966-08-01 | L130: 788.41 | M130: 32.65 | N130: 24.14732006 | O130: 108.4684451
A131: 1966-09-01 | B131: 67144 | C131: 3.7 | D131: 3.04878 | E131: 9949.057459 | F131: 99.8 | G131: 1966-09-01 | K131: 1966-09-01 | L131: 774.22 | M131: 32.75 | N131: 23.64030534 | O131: 106.1909627
A132: 1966-10-01 | B132: 67162 | C132: 3.7 | D132: 3.65854 | E132: 9127.082274 | F132: 91.6 | G132: 1966-10-01 | K132: 1966-10-01 | L132: 807.07 | M132: 32.85 | N132: 24.56834094 | O132: 110.359648
A133: 1966-11-01 | B133: 67179 | C133: 3.6 | D133: 3.34347 | E133: 9675.133615 | F133: 97.1 | G133: 1966-11-01 | K133: 1966-11-01 | L133: 791.59 | M133: 32.88 | N133: 24.07512165 | O133: 108.1441338
A134: 1966-12-01 | B134: 67212 | C134: 3.8 | D134: 3.33333 | E134: 9422.247394 | F134: 94.5 | G134: 1966-12-01 | K134: 1966-12-01 | L134: 785.69 | M134: 32.92 | N134: 23.86664642 | O134: 107.2076744
A135: 1967-01-01 | B135: 67275 | C135: 3.9 | D135: 3.63636 | E135: 8926.723246 | F135: 89.5 | G135: 1967-01-01 | K135: 1967-01-01 | L135: 849.89 | M135: 32.9 | N135: 25.8325228 | O135: 116.0382839
A136: 1967-02-01 | B136: 67318 | C136: 3.8 | D136: 3.32326 | E136: 9450.44825 | F136: 94.8 | G136: 1967-02-01 | K136: 1967-02-01 | L136: 839.37 | M136: 33 | N136: 25.43545455 | O136: 114.254675
A137: 1967-03-01 | B137: 67348 | C137: 3.8 | D137: 3.62538 | E137: 9069.973523 | F137: 91 | G137: 1967-03-01 | K137: 1967-03-01 | L137: 865.98 | M137: 33 | N137: 26.24181818 | O137: 117.8768165
A138: 1967-04-01 | B138: 67357 | C138: 3.8 | D138: 3.3033 | E138: 9482.494052 | F138: 95.1 | G138: 1967-04-01 | K138: 1967-04-01 | L138: 897.05 | M138: 33.1 | N138: 27.10120846 | O138: 121.7371508
A139: 1967-05-01 | B139: 67398 | C139: 3.8 | D139: 3.29341 | E139: 9501.49505 | F139: 95.3 | G139: 1967-05-01 | K139: 1967-05-01 | L139: 852.56 | M139: 33.1 | N139: 25.7570997 | O139: 115.6994875
A140: 1967-06-01 | B140: 67475 | C140: 3.9 | D140: 3.28358 | E140: 9392.94892 | F140: 94.2 | G140: 1967-06-01 | K140: 1967-06-01 | L140: 860.26 | M140: 33.3 | N140: 25.83363363 | O140: 116.0432738
A141: 1967-07-01 | B141: 67579 | C141: 3.8 | D141: 3.27381 | E141: 9553.408983 | F141: 95.8 | G141: 1967-07-01 | K141: 1967-07-01 | L141: 904.24 | M141: 33.4 | N141: 27.07305389 | O141: 121.610682
A142: 1967-08-01 | B142: 67788 | C142: 3.8 | D142: 3.56083 | E142: 9209.28754 | F142: 92.4 | G142: 1967-08-01 | K142: 1967-08-01 | L142: 901.29 | M142: 33.5 | N142: 26.9041791 | O142: 120.8521056
A143: 1967-09-01 | B143: 67908 | C143: 3.8 | D143: 3.5503 | E143: =B143/(C143+D143) -> 9238.806579 | F143: 92.7 | G143: 1967-09-01 | K143: 1967-09-01 | L143: 926.66 | M143: 33.6 | N143: 27.57916667 | O143: 123.884113
A144: 1967-10-01 | B144: 67973 | C144: 4 | D144: 3.23529 | E144: 9394.647623 | F144: 94.2 | G144: 1967-10-01 | K144: 1967-10-01 | L144: 879.74 | M144: 33.7 | N144: 26.10504451 | O144: 117.2624366
A145: 1967-11-01 | B145: 68036 | C145: 3.9 | D145: 3.52941 | E145: 9157.658549 | F145: 91.9 | G145: 1967-11-01 | K145: 1967-11-01 | L145: 875.81 | M145: 33.9 | N145: 25.83510324 | O145: 116.0498752
A146: 1967-12-01 | B146: 68102 | C146: 3.8 | D146: 3.81232 | E146: 8946.287071 | F146: 89.7 | G146: 1967-12-01 | K146: 1967-12-01 | L146: 905.11 | M146: 34 | N146: 26.62088235 | O146: 119.5795521
A147: 1968-01-01 | B147: 68170 | C147: 3.7 | D147: 3.80117 | E147: 9087.915618 | F147: 91.2 | G147: 1968-01-01 | K147: 1968-01-01 | L147: 855.47 | M147: 34.1 | N147: 25.08709677 | O147: 112.6898709
A148: 1968-02-01 | B148: 68232 | C148: 3.8 | D148: 4.38596 | E148: 8335.247179 | F148: 83.6 | G148: 1968-02-01 | K148: 1968-02-01 | L148: 840.5 | M148: 34.2 | N148: 24.57602339 | O148: 110.3941571
A149: 1968-03-01 | B149: 68293 | C149: 3.7 | D149: 4.37318 | E149: 8459.244065 | F149: 84.9 | G149: 1968-03-01 | K149: 1968-03-01 | L149: 840.67 | M149: 34.3 | N149: 24.50932945 | O149: 110.0945716
A150: 1968-04-01 | B150: 68356 | C150: 3.5 | D150: 4.36047 | E150: 8696.172112 | F150: 87.2 | G150: 1968-04-01 | K150: 1968-04-01 | L150: 912.22 | M150: 34.4 | N150: 26.51802326 | O150: 119.1175146
A151: 1968-05-01 | B151: 68418 | C151: 3.5 | D151: 4.34783 | E151: 8718.078756 | F151: 87.5 | G151: 1968-05-01 | K151: 1968-05-01 | L151: 899 | M151: 34.5 | N151: 26.05797101 | O151: 117.050985
A152: 1968-06-01 | B152: 68473 | C152: 3.7 | D152: 4.62428 | E152: 8225.696397 | F152: 82.5 | G152: 1968-06-01 | K152: 1968-06-01 | L152: 897.8 | M152: 34.7 | N152: 25.87319885 | O152: 116.2209985
A153: 1968-07-01 | B153: 68522 | C153: 3.7 | D153: 4.89914 | E153: 7968.471266 | F153: 79.9 | G153: 1968-07-01 | K153: 1968-07-01 | L153: 883 | M153: 34.9 | N153: 25.3008596 | O153: 113.6500818
A154: 1968-08-01 | B154: 68557 | C154: 3.5 | D154: 4.58453 | E154: 8480.022957 | F154: 85.1 | G154: 1968-08-01 | K154: 1968-08-01 | L154: 896.01 | M154: 35 | N154: 25.60028571 | O154: 114.9950876
A155: 1968-09-01 | B155: 68607 | C155: 3.4 | D155: 4.85714 | E155: 8308.809103 | F155: 83.3 | G155: 1968-09-01 | K155: 1968-09-01 | L155: 935.79 | M155: 35.1 | N155: =L155/M155 -> 26.66068376 | O155: =IF(M155="","",N155/$P$14) -> 119.7583378
A156: 1968-10-01 | B156: 68651 | C156: 3.4 | D156: 5.12821 | E156: 8049.87213 | F156: 80.7 | G156: 1968-10-01 | K156: 1968-10-01 | L156: 952.39 | M156: 35.3 | N156: 26.97988669 | O156: 121.19218
A157: 1968-11-01 | B157: 68734 | C157: 3.4 | D157: 5.39773 | E157: 7812.697139 | F157: 78.4 | G157: 1968-11-01 | K157: 1968-11-01 | L157: 985.08 | M157: 35.4 | N157: 27.82711864 | O157: 124.9978997
A158: 1968-12-01 | B158: 68793 | C158: 3.4 | D158: 5.08475 | E158: 8107.840537 | F158: 81.3 | G158: 1968-12-01 | K158: 1968-12-01 | L158: 943.75 | M158: 35.6 | N158: 26.50983146 | O158: 119.0807175
A159: 1969-01-01 | B159: 68857 | C159: 3.4 | D159: 5.07042 | E159: 8129.112842 | F159: 81.5 | G159: 1969-01-01 | K159: 1969-01-01 | L159: 946.05 | M159: 35.7 | N159: 26.5 | O159: 119.0365551
A160: 1969-02-01 | B160: 68900 | C160: 3.4 | D160: 5.32213 | E160: 7899.44658 | F160: 79.2 | G160: 1969-02-01 | K160: 1969-02-01 | L160: 905.21 | M160: 35.8 | N160: 25.28519553 | O160: 113.5797197
A161: 1969-03-01 | B161: 68942 | C161: 3.4 | D161: 5.58659 | E161: 7671.652985 | F161: 77 | G161: 1969-03-01 | K161: 1969-03-01 | L161: 935.48 | M161: 36.1 | N161: 25.91357341 | O161: 116.4023589
A162: 1969-04-01 | B162: 68988 | C162: 3.4 | D162: 6.12813 | E162: 7240.455367 | F162: 72.6 | G162: 1969-04-01 | K162: 1969-04-01 | L162: 950.18 | M162: 36.3 | N162: 26.17575758 | O162: 117.5800759
A163: 1969-05-01 | B163: 69054 | C163: 3.4 | D163: 5.83333 | E163: 7478.775263 | F163: 75 | G163: 1969-05-01 | K163: 1969-05-01 | L163: 937.56 | M163: 36.4 | N163: 25.75714286 | O163: 115.6996814
A164: 1969-06-01 | B164: 69106 | C164: 3.5 | D164: 5.8011 | E164: 7429.873886 | F164: 74.5 | G164: 1969-06-01 | K164: 1969-06-01 | L164: 873.19 | M164: 36.6 | N164: 23.85765027 | O164: 107.1672642
A165: 1969-07-01 | B165: 69208 | C165: 3.5 | D165: 5.76923 | E165: 7466.423856 | F165: 74.9 | G165: 1969-07-01 | K165: 1969-07-01 | L165: 815.47 | M165: 36.8 | N165: 22.15951087 | O165: 99.53931462
A166: 1969-08-01 | B166: 69258 | C166: 3.5 | D166: 6.0274 | E166: 7269.349455 | F166: 72.9 | G166: 1969-08-01 | K166: 1969-08-01 | L166: 836.72 | M166: 36.9 | N166: 22.67533875 | O166: 101.8563854
A167: 1969-09-01 | B167: 69302 | C167: 3.7 | D167: 5.99455 | E167: 7148.552537 | F167: 71.7 | G167: 1969-09-01 | K167: 1969-09-01 | L167: 813.09 | M167: 37.1 | N167: 21.91617251 | O167: 98.44625197
A168: 1969-10-01 | B168: 69362 | C168: 3.7 | D168: 5.96206 | E168: 7178.80038 | F168: 72 | G168: 1969-10-01 | K168: 1969-10-01 | L168: 855.99 | M168: 37.3 | N168: 22.94879357 | O168: 103.0847295
A169: 1969-11-01 | B169: 69424 | C169: 3.5 | D169: 5.66038 | E169: 7578.7249 | F169: 76 | G169: 1969-11-01 | K169: 1969-11-01 | L169: 812.3 | M169: 37.5 | N169: 21.66133333 | O169: 97.30152829
A170: 1969-12-01 | B170: 69541 | C170: 3.5 | D170: 5.91398 | E170: 7386.992537 | F170: 74.1 | G170: 1969-12-01 | K170: 1969-12-01 | L170: 800.36 | M170: 37.7 | N170: 21.22970822 | O170: 95.36269183
A171: 1970-01-01 | B171: 69604 | C171: 3.9 | D171: 6.16622 | E171: 6914.611443 | F171: 69.4 | G171: 1970-01-01 | H171: =IF(($G$13-G171)<40,"",G171) -> 1970-01-01 | I171: =IF(H171="","",VLOOKUP($G171,WILL5000PR!$A$12:$B$1041,2,FALSE)) ->  | K171: 1970-01-01 | L171: 744.06 | M171: 37.9 | N171: 19.63218997 | O171: 88.18672696
A172: 1970-02-01 | B172: 69672 | C172: 4.2 | D172: 5.85106 | E172: 6931.806198 | F172: 69.5 | G172: 1970-02-01 | H172: 1970-02-01 | I172: =IF(H172="","",VLOOKUP($G172,WILL5000PR!$A$12:$B$1041,2,FALSE)) ->  | K172: 1970-02-01 | L172: 777.59 | M172: 38.1 | N172: 20.40918635 | O172: 91.67695232
A173: 1970-03-01 | B173: 69743 | C173: 4.4 | D173: 6.08466 | E173: 6651.908598 | F173: 66.7 | G173: 1970-03-01 | H173: 1970-03-01 | I173: =IF(H173="","",VLOOKUP($G173,WILL5000PR!$A$12:$B$1041,2,FALSE)) ->  | K173: 1970-03-01 | L173: 785.57 | M173: 38.3 | N173: 20.51096606 | O173: 92.13414121
A174: 1970-04-01 | B174: 69821 | C174: 4.6 | D174: 6.03675 | E174: 6564.129081 | F174: 65.8 | G174: 1970-04-01 | H174: 1970-04-01 | I174: =IF(H174="","",VLOOKUP($G174,WILL5000PR!$A$12:$B$1041,2,FALSE)) ->  | K174: 1970-04-01 | L174: 736.07 | M174: 38.5 | N174: 19.1187013 | O174: 85.88016383
A175: 1970-05-01 | B175: 69903 | C175: 4.8 | D175: 6.29921 | E175: 6298.015805 | F175: 63.2 | G175: 1970-05-01 | H175: 1970-05-01 | I175: =IF(H175="","",VLOOKUP($G175,WILL5000PR!$A$12:$B$1041,2,FALSE)) ->  | K175: 1970-05-01 | L175: 700.44 | M175: 38.6 | N175: 18.14611399 | O175: 81.51135466
A176: 1970-06-01 | B176: 69967 | C176: 4.9 | D176: 6.52742 | E176: 6122.729365 | F176: 61.4 | G176: 1970-06-01 | H176: 1970-06-01 | I176: =IF(H176="","",VLOOKUP($G176,WILL5000PR!$A$12:$B$1041,2,FALSE)) ->  | K176: 1970-06-01 | L176: 683.53 | M176: 38.8 | N176: 17.61675258 | O176: 79.13349206
A177: 1970-07-01 | B177: 70043 | C177: 5 | D177: 6.23377 | E177: 6235.039528 | F177: 62.5 | G177: 1970-07-01 | H177: 1970-07-01 | I177: =IF(H177="","",VLOOKUP($G177,WILL5000PR!$A$12:$B$1041,2,FALSE)) ->  | K177: 1970-07-01 | L177: 734.12 | M177: 38.9 | N177: 18.87197943 | O177: 84.77190266
A178: 1970-08-01 | B178: 70093 | C178: 5.1 | D178: 6.20155 | E178: 6202.069628 | F178: 62.2 | G178: 1970-08-01 | H178: 1970-08-01 | I178: =IF(H178="","",VLOOKUP($G178,WILL5000PR!$A$12:$B$1041,2,FALSE)) ->  | K178: 1970-08-01 | L178: 764.58 | M178: 39 | N178: 19.60461538 | O178: 88.06286341
A179: 1970-09-01 | B179: 70138 | C179: 5.4 | D179: 6.16967 | E179: 6062.229951 | F179: 60.8 | G179: 1970-09-01 | H179: 1970-09-01 | I179: =IF(H179="","",VLOOKUP($G179,WILL5000PR!$A$12:$B$1041,2,FALSE)) ->  | K179: 1970-09-01 | L179: 760.68 | M179: 39.2 | N179: 19.40510204 | O179: 87.16666034
A180: 1970-10-01 | B180: 70210 | C180: 5.5 | D180: 6.13811 | E180: 6032.766489 | F180: 60.5 | G180: 1970-10-01 | H180: 1970-10-01 | I180: =IF(H180="","",VLOOKUP($G180,WILL5000PR!$A$12:$B$1041,2,FALSE)) ->  | K180: 1970-10-01 | L180: 755.61 | M180: 39.4 | N180: 19.17791878 | O180: 86.14616553
A181: 1970-11-01 | B181: 70284 | C181: 5.9 | D181: 6.63265 | E181: 5608.071717 | F181: 56.3 | G181: 1970-11-01 | H181: 1970-11-01 | I181: =IF(H181="","",VLOOKUP($G181,WILL5000PR!$A$12:$B$1041,2,FALSE)) ->  | K181: 1970-11-01 | L181: 794.09 | M181: 39.6 | N181: 20.05277778 | O181: 90.07598444
A182: 1970-12-01 | B182: 70340 | C182: 6.1 | D182: 6.59898 | E182: 5539.027544 | F182: 55.6 | G182: 1970-12-01 | H182: 1970-12-01 | I182: =IF(H182="","",VLOOKUP($G182,WILL5000PR!$A$12:$B$1041,2,FALSE)) ->  | K182: 1970-12-01 | L182: 838.92 | M182: 39.8 | N182: 21.07839196 | O182: 94.68298743
A183: 1971-01-01 | B183: 70414 | C183: 5.9 | D183: 6.31313 | E183: 5765.434414 | F183: =IF(D183="","",E183/$Q$14) -> 57.8329398 | G183: 1971-01-01 | H183: 1971-01-01 | I183: =IF(H183="","",VLOOKUP($G183,WILL5000PR!$A$12:$B$1041,2,FALSE)) -> 84.54445 | K183: 1971-01-01 | L183: 868.5 | M183: 39.9 | N183: 21.76691729 | O183: 97.77580569
A184: 1971-02-01 | B184: 70472 | C184: 5.9 | D184: 6.03015 | E184: 5907.050624 | F184: =IF(D184="","",E184/$Q$14) -> 59.25348874 | G184: 1971-02-01 | H184: 1971-02-01 | I184: =IF(H184="","",VLOOKUP($G184,WILL5000PR!$A$12:$B$1041,2,FALSE)) -> 85.49715 | K184: 1971-02-01 | L184: 878.83 | M184: 39.9 | N184: 22.02581454 | O184: 98.93875799
A185: 1971-03-01 | B185: 70511 | C185: 6 | D185: 5.23691 | E185: 6274.945692 | F185: =IF(K185="","",VLOOKUP($A185,'Tocalino Index'!$A$12:$B$1041,2,FALSE)) -> 62.94384 | G185: 1971-03-01 | H185: 1971-03-01 | I185: =IF(H185="","",VLOOKUP($G185,WILL5000PR!$A$12:$B$1041,2,FALSE)) -> 88.92065 | K185: 1971-03-01 | L185: 904.37 | M185: 40 | N185: 22.60925 | O185: 101.5595183
A186: 1971-04-01 | B186: 70588 | C186: 5.9 | D186: 4.9505 | E186: 6505.506659 | F186: =IF(K186="","",VLOOKUP($A186,'Tocalino Index'!$A$12:$B$1041,2,FALSE)) -> 65.25659 | G186: 1971-04-01 | H186: 1971-04-01 | I186: =IF(H186="","",VLOOKUP($G186,WILL5000PR!$A$12:$B$1041,2,FALSE)) -> 91.78515 | K186: 1971-04-01 | L186: 941.75 | M186: 40.1 | N186: 23.48503741 | O186: 105.4935076
A187: 1971-05-01 | B187: 70663 | C187: 5.9 | D187: 5.18519 | E187: 6374.541167 | F187: =IF(K187="","",VLOOKUP($A187,'Tocalino Index'!$A$12:$B$1041,2,FALSE)) -> 63.94288 | G187: 1971-05-01 | H187: 1971-05-01 | I187: =IF(H187="","",VLOOKUP($G187,WILL5000PR!$A$12:$B$1041,2,FALSE)) -> 87.9432 | K187: 1971-05-01 | L187: 907.81 | M187: 40.3 | N187: 22.52630273 | O187: 101.1869237
A188: 1971-06-01 | B188: 70721 | C188: 5.9 | D188: 4.90196 | E188: 6547.052572 | F188: =IF(K188="","",VLOOKUP($A188,'Tocalino Index'!$A$12:$B$1041,2,FALSE)) -> 65.67333 | G188: 1971-06-01 | H188: 1971-06-01 | I188: =IF(H188="","",VLOOKUP($G188,WILL5000PR!$A$12:$B$1041,2,FALSE)) -> 87.49077 | K188: 1971-06-01 | L188: 891.14 | M188: 40.5 | N188: 22.00345679 | O188: 98.83832821
A189: 1971-07-01 | B189: 70789 | C189: 6 | D189: 4.88998 | E189: 6500.379248 | F189: =IF(K189="","",VLOOKUP($A189,'Tocalino Index'!$A$12:$B$1041,2,FALSE)) -> 65.20515 | G189: 1971-07-01 | H189: 1971-07-01 | I189: =IF(H189="","",VLOOKUP($G189,WILL5000PR!$A$12:$B$1041,2,FALSE)) -> 84.05613 | K189: 1971-07-01 | L189: 858.43 | M189: 40.6 | N189: 21.14359606 | O189: 94.97588069
A190: 1971-08-01 | B190: 70938 | C190: 6.1 | D190: 4.62287 | E190: 6615.579598 | F190: =IF(K190="","",VLOOKUP($A190,'Tocalino Index'!$A$12:$B$1041,2,FALSE)) -> 66.36073 | G190: 1971-08-01 | H190: 1971-08-01 | I190: =IF(H190="","",VLOOKUP($G190,WILL5000PR!$A$12:$B$1041,2,FALSE)) -> 86.80503 | K190: 1971-08-01 | L190: 898.07 | M190: 40.7 | N190: 22.06560197 | O190: 99.11748095
A191: 1971-09-01 | B191: 71087 | C191: 6 | D191: 4.11622 | E191: 7027.031836 | F191: =IF(K191="","",VLOOKUP($A191,'Tocalino Index'!$A$12:$B$1041,2,FALSE)) -> 70.48799 | G191: 1971-09-01 | H191: 1971-09-01 | I191: =IF(H191="","",VLOOKUP($G191,WILL5000PR!$A$12:$B$1041,2,FALSE)) -> 86.33568 | K191: 1971-09-01 | L191: 887.19 | M191: 40.8 | N191: 21.74485294 | O191: 97.67669382
A192: 1971-10-01 | B192: 71238 | C192: 5.8 | D192: 3.85542 | E192: 7378.032235 | F192: =IF(K192="","",VLOOKUP($A192,'Tocalino Index'!$A$12:$B$1041,2,FALSE)) -> 74.00887 | G192: 1971-10-01 | H192: 1971-10-01 | I192: =IF(H192="","",VLOOKUP($G192,WILL5000PR!$A$12:$B$1041,2,FALSE)) -> 82.64935 | K192: 1971-10-01 | L192: 839 | M192: 40.9 | N192: 20.51344743 | O192: 92.14528741
A193: 1971-11-01 | B193: 71362 | C193: 6 | D193: 3.34928 | E193: 7632.887238 | F193: =IF(K193="","",VLOOKUP($A193,'Tocalino Index'!$A$12:$B$1041,2,FALSE)) -> 76.56532 | G193: 1971-11-01 | H193: 1971-11-01 | I193: =IF(H193="","",VLOOKUP($G193,WILL5000PR!$A$12:$B$1041,2,FALSE)) -> 82.06716 | K193: 1971-11-01 | L193: 831.34 | M193: 41 | N193: 20.27658537 | O193: 91.08131592
A194: 1971-12-01 | B194: 71514 | C194: 6 | D194: 3.09524 | E194: 7862.794165 | F194: =IF(K194="","",VLOOKUP($A194,'Tocalino Index'!$A$12:$B$1041,2,FALSE)) -> 78.87151 | G194: 1971-12-01 | H194: 1971-12-01 | I194: =IF(H194="","",VLOOKUP($G194,WILL5000PR!$A$12:$B$1041,2,FALSE)) -> 88.99039 | K194: 1971-12-01 | L194: 890.2 | M194: 41.1 | N194: 21.6593674 | O194: 97.29269741
A195: 1972-01-01 | B195: 71723 | C195: 5.8 | D195: 3.32542 | E195: 7859.693033 | F195: =IF(K195="","",VLOOKUP($A195,'Tocalino Index'!$A$12:$B$1041,2,FALSE)) -> 78.8404 | G195: 1972-01-01 | H195: 1972-01-01 | I195: =IF(H195="","",VLOOKUP($G195,WILL5000PR!$A$12:$B$1041,2,FALSE)) -> 91.56562 | K195: 1972-01-01 | L195: 902.17 | M195: 41.2 | N195: 21.8973301 | O195: 98.36161289
A196: 1972-02-01 | B196: 71878 | C196: 5.7 | D196: 3.31754 | E196: 7970.910026 | F196: =IF(K196="","",VLOOKUP($A196,'Tocalino Index'!$A$12:$B$1041,2,FALSE)) -> 79.95601 | G196: 1972-02-01 | H196: 1972-02-01 | I196: =IF(H196="","",VLOOKUP($G196,WILL5000PR!$A$12:$B$1041,2,FALSE)) -> 93.83331 | K196: 1972-02-01 | L196: 928.13 | M196: 41.4 | N196: 22.41859903 | O196: 100.7031245
A197: 1972-03-01 | B197: 71997 | C197: 5.8 | D197: 3.31754 | E197: 7896.537882 | F197: =IF(K197="","",VLOOKUP($A197,'Tocalino Index'!$A$12:$B$1041,2,FALSE)) -> 79.20999 | G197: 1972-03-01 | H197: 1972-03-01 | I197: =IF(H197="","",VLOOKUP($G197,WILL5000PR!$A$12:$B$1041,2,FALSE)) -> 94.28698 | K197: 1972-03-01 | L197: 940.7 | M197: 41.4 | N197: 22.72222222 | O197: 102.0669833
A198: 1972-04-01 | B198: 72138 | C198: 5.7 | D198: 3.30189 | E198: 8013.650467 | F198: =IF(K198="","",VLOOKUP($A198,'Tocalino Index'!$A$12:$B$1041,2,FALSE)) -> 80.38474 | G198: 1972-04-01 | H198: 1972-04-01 | I198: =IF(H198="","",VLOOKUP($G198,WILL5000PR!$A$12:$B$1041,2,FALSE)) -> 94.6512 | K198: 1972-04-01 | L198: 954.17 | M198: 41.5 | N198: 22.99204819 | O198: 103.2790269
A199: 1972-05-01 | B199: 72293 | C199: 5.7 | D199: 3.05164 | E199: 8260.508887 | F199: =IF(K199="","",VLOOKUP($A199,'Tocalino Index'!$A$12:$B$1041,2,FALSE)) -> 82.86097 | G199: 1972-05-01 | H199: 1972-05-01 | I199: =IF(H199="","",VLOOKUP($G199,WILL5000PR!$A$12:$B$1041,2,FALSE)) -> 95.71202 | K199: 1972-05-01 | L199: 960.72 | M199: 41.6 | N199: 23.09423077 | O199: 103.7380255
A200: 1972-06-01 | B200: 72393 | C200: 5.7 | D200: 2.80374 | E200: 8513.077775 | F200: =IF(K200="","",VLOOKUP($A200,'Tocalino Index'!$A$12:$B$1041,2,FALSE)) -> 85.39449 | G200: 1972-06-01 | H200: 1972-06-01 | I200: =IF(H200="","",VLOOKUP($G200,WILL5000PR!$A$12:$B$1041,2,FALSE)) -> 93.35364 | K200: 1972-06-01 | L200: 929.03 | M200: 41.7 | N200: 22.27889688 | O200: 100.0755901
A201: 1972-07-01 | B201: 72538 | C201: 5.6 | D201: 2.7972 | E201: 8638.355642 | F201: =IF(K201="","",VLOOKUP($A201,'Tocalino Index'!$A$12:$B$1041,2,FALSE)) -> 86.65115 | G201: 1972-07-01 | H201: 1972-07-01 | I201: =IF(H201="","",VLOOKUP($G201,WILL5000PR!$A$12:$B$1041,2,FALSE)) -> 92.55492 | K201: 1972-07-01 | L201: 924.74 | M201: 41.8 | N201: 22.12296651 | O201: 99.37515934
A202: 1972-08-01 | B202: 72648 | C202: 5.6 | D202: 3.02326 | E202: 8424.656105 | F202: =IF(K202="","",VLOOKUP($A202,'Tocalino Index'!$A$12:$B$1041,2,FALSE)) -> 84.50753 | G202: 1972-08-01 | H202: 1972-08-01 | I202: =IF(H202="","",VLOOKUP($G202,WILL5000PR!$A$12:$B$1041,2,FALSE)) -> 95.21513 | K202: 1972-08-01 | L202: 963.73 | M202: 41.9 | N202: 23.00071599 | O202: 103.3179622
A203: 1972-09-01 | B203: 72761 | C203: 5.5 | D203: 3.02326 | E203: 8536.757062 | F203: =IF(K203="","",VLOOKUP($A203,'Tocalino Index'!$A$12:$B$1041,2,FALSE)) -> 85.63201 | G203: 1972-09-01 | H203: 1972-09-01 | I203: =IF(H203="","",VLOOKUP($G203,WILL5000PR!$A$12:$B$1041,2,FALSE)) -> 94.09848 | K203: 1972-09-01 | L203: 953.27 | M203: 42.1 | N203: 22.64299287 | O203: 101.7110894
A204: 1972-10-01 | B204: 72854 | C204: 5.6 | D204: 3.01624 | E204: 8455.428354 | F204: =IF(K204="","",VLOOKUP($A204,'Tocalino Index'!$A$12:$B$1041,2,FALSE)) -> 84.81621 | G204: 1972-10-01 | H204: 1972-10-01 | I204: =IF(H204="","",VLOOKUP($G204,WILL5000PR!$A$12:$B$1041,2,FALSE)) -> 94.36769 | K204: 1972-10-01 | L204: 955.52 | M204: 42.2 | N204: 22.64265403 | O204: 101.7095674
... 971 more rows

Sheet Tocalino Index
A1: FRED Graph Observations
A2: Federal Reserve Economic Data
A3: Link: https://fred.stlouisfed.org
A4: Help: https://fredhelp.stlouisfed.org
A5: Economic Research Division
A6: Federal Reserve Bank of St. Louis
A8: LNU00000060_UNRATE_CPILFESL_PC1 | B8: LNU00000060/(UNRATE+CPILFESL), Index Jul 1990=100 of (Thous. of Persons/(%+% Chg. from Yr. Ago)), Monthly
A10: Frequency: Monthly
A11: observation_date | B11: LNU00000060_UNRATE_CPILFESL_PC1
A12: 1971-01-01 | B12: 57.83294
A13: 1971-02-01 | B13: 59.25349
A14: 1971-03-01 | B14: 62.94384
A15: 1971-04-01 | B15: 65.25659
A16: 1971-05-01 | B16: 63.94288
A17: 1971-06-01 | B17: 65.67333
A18: 1971-07-01 | B18: 65.20515
A19: 1971-08-01 | B19: 66.36073
A20: 1971-09-01 | B20: 70.48799
A21: 1971-10-01 | B21: 74.00887
A22: 1971-11-01 | B22: 76.56532
A23: 1971-12-01 | B23: 78.87151
A24: 1972-01-01 | B24: 78.8404
A25: 1972-02-01 | B25: 79.95601
A26: 1972-03-01 | B26: 79.20999
A27: 1972-04-01 | B27: 80.38474
A28: 1972-05-01 | B28: 82.86097
A29: 1972-06-01 | B29: 85.39449
A30: 1972-07-01 | B30: 86.65115
A31: 1972-08-01 | B31: 84.50753
A32: 1972-09-01 | B32: 85.63201
A33: 1972-10-01 | B33: 84.81621
A34: 1972-11-01 | B34: 90.60039
A35: 1972-12-01 | B35: 89.38752
A36: 1973-01-01 | B36: 98.86307
A37: 1973-02-01 | B37: 94.88442
A38: 1973-03-01 | B38: 90.88838
A39: 1973-04-01 | B39: 92.66144
A40: 1973-05-01 | B40: 91.43003
A41: 1973-06-01 | B41: 91.64362
A42: 1973-07-01 | B42: 93.02924
A43: 1973-08-01 | B43: 93.33911
A44: 1973-09-01 | B44: 86.15231
A45: 1973-10-01 | B45: 83.93378
A46: 1973-11-01 | B46: 78.32383
A47: 1973-12-01 | B47: 77.86114
A48: 1974-01-01 | B48: 73.22835
A49: 1974-02-01 | B49: 71.24968
A50: 1974-03-01 | B50: 69.23985
A51: 1974-04-01 | B51: 66.70417
A52: 1974-05-01 | B52: 62.1179
A53: 1974-06-01 | B53: 56.78053
A54: 1974-07-01 | B54: 53.03755
A55: 1974-08-01 | B55: 49.4528
A56: 1974-09-01 | B56: 47.14825
A57: 1974-10-01 | B57: 45.88633
A58: 1974-11-01 | B58: 43.37171
A59: 1974-12-01 | B59: 41.13076
A60: 1975-01-01 | B60: 38.95355
A61: 1975-02-01 | B61: 38.31931
A62: 1975-03-01 | B62: 38.40628
A63: 1975-04-01 | B63: 38.20603
A64: 1975-05-01 | B64: 39.77735
A65: 1975-06-01 | B65: 41.36582
A66: 1975-07-01 | B66: 43.56928
A67: 1975-08-01 | B67: 47.15588
A68: 1975-09-01 | B68: 48.63567
A69: 1975-10-01 | B69: 50.16707
A70: 1975-11-01 | B70: 50.75063
A71: 1975-12-01 | B71: 52.00454
A72: 1976-01-01 | B72: 52.60448
A73: 1976-02-01 | B73: 55.07698
A74: 1976-03-01 | B74: 54.90573
A75: 1976-04-01 | B75: 55.46716
A76: 1976-05-01 | B76: 56.0997
A77: 1976-06-01 | B77: 56.28061
A78: 1976-07-01 | B78: 54.23521
A79: 1976-08-01 | B79: 53.72529
A80: 1976-09-01 | B80: 54.69602
A81: 1976-10-01 | B81: 54.52694
A82: 1976-11-01 | B82: 55.80868
A83: 1976-12-01 | B83: 56.77396
A84: 1977-01-01 | B84: 58.29541
A85: 1977-02-01 | B85: 57.34325
A86: 1977-03-01 | B86: 58.40456
A87: 1977-04-01 | B87: 58.69019
A88: 1977-05-01 | B88: 59.82221
A89: 1977-06-01 | B89: 57.63803
A90: 1977-07-01 | B90: 60.77323
A91: 1977-08-01 | B91: 60.56098
A92: 1977-09-01 | B92: 61.74129
A93: 1977-10-01 | B93: 62.8198
A94: 1977-11-01 | B94: 62.19682
A95: 1977-12-01 | B95: 62.68926
A96: 1978-01-01 | B96: 63.00174
A97: 1978-02-01 | B97: 64.66301
A98: 1978-03-01 | B98: 64.05985
A99: 1978-04-01 | B99: 63.65911
A100: 1978-05-01 | B100: 63.60864
A101: 1978-06-01 | B101: 63.62661
A102: 1978-07-01 | B102: 60.85169
A103: 1978-08-01 | B103: 61.00004
A104: 1978-09-01 | B104: 58.69167
A105: 1978-10-01 | B105: 57.73198
A106: 1978-11-01 | B106: 56.94461
A107: 1978-12-01 | B107: 56.86368
A108: 1979-01-01 | B108: 56.94783
A109: 1979-02-01 | B109: 54.8008
A110: 1979-03-01 | B110: 54.3357
A111: 1979-04-01 | B111: 54.6719
A112: 1979-05-01 | B112: 55.15521
A113: 1979-06-01 | B113: 55.15834
A114: 1979-07-01 | B114: 54.35489
A115: 1979-08-01 | B115: 52.12762
A116: 1979-09-01 | B116: 52.84489
A117: 1979-10-01 | B117: 51.92457
A118: 1979-11-01 | B118: 50.65644
A119: 1979-12-01 | B119: 48.48688
A120: 1980-01-01 | B120: 46.05483
A121: 1980-02-01 | B121: 46.07263
A122: 1980-03-01 | B122: 44.65103
A123: 1980-04-01 | B123: 42.31408
A124: 1980-05-01 | B124: 41.0551
A125: 1980-06-01 | B125: 40.02648
A126: 1980-07-01 | B126: 42.15453
A127: 1980-08-01 | B127: 43.62393
A128: 1980-09-01 | B128: 43.75162
A129: 1980-10-01 | B129: 43.47997
A130: 1980-11-01 | B130: 43.54439
A131: 1980-12-01 | B131: 44.31965
A132: 1981-01-01 | B132: 45.60041
A133: 1981-02-01 | B133: 47.19347
A134: 1981-03-01 | B134: 49.76792
A135: 1981-04-01 | B135: 51.92192
A136: 1981-05-01 | B136: 50.55646
A137: 1981-06-01 | B137: 51.33393
A138: 1981-07-01 | B138: 47.34335
A139: 1981-08-01 | B139: 45.86331
A140: 1981-09-01 | B140: 44.87855
A141: 1981-10-01 | B141: 46.28194
A142: 1981-11-01 | B142: 47.15456
A143: 1981-12-01 | B143: 48.57289
A144: 1982-01-01 | B144: 49.17938
A145: 1982-02-01 | B145: 48.59526
A146: 1982-03-01 | B146: 49.82026
A147: 1982-04-01 | B147: 48.61527
A148: 1982-05-01 | B148: 48.95924
A149: 1982-06-01 | B149: 49.01988
A150: 1982-07-01 | B150: 50.73912
A151: 1982-08-01 | B151: 52.72082
A152: 1982-09-01 | B152: 55.70579
A153: 1982-10-01 | B153: 54.85424
A154: 1982-11-01 | B154: 55.90216
A155: 1982-12-01 | B155: 58.41835
A156: 1983-01-01 | B156: 59.71552
A157: 1983-02-01 | B157: 60.35263
A158: 1983-03-01 | B158: 60.45213
A159: 1983-04-01 | B159: 62.92747
A160: 1983-05-01 | B160: 65.5591
A161: 1983-06-01 | B161: 67.85948
A162: 1983-07-01 | B162: 71.87077
A163: 1983-08-01 | B163: 72.09147
A164: 1983-09-01 | B164: 72.19959
A165: 1983-10-01 | B165: 73.53047
A166: 1983-11-01 | B166: 71.22424
A167: 1983-12-01 | B167: 70.17715
A168: 1984-01-01 | B168: 70.50464
A169: 1984-02-01 | B169: 72.43213
A170: 1984-03-01 | B170: 71.47849
A171: 1984-04-01 | B171: 71.7178
A172: 1984-05-01 | B172: 73.07538
A173: 1984-06-01 | B173: 73.88832
A174: 1984-07-01 | B174: 73.04378
A175: 1984-08-01 | B175: 72.69664
A176: 1984-09-01 | B176: 74.11765
A177: 1984-10-01 | B177: 74.4187
A178: 1984-11-01 | B178: 77.79526
A179: 1984-12-01 | B179: 76.74793
A180: 1985-01-01 | B180: 79.59394
A181: 1985-02-01 | B181: 78.5132
A182: 1985-03-01 | B182: 78.80759
A183: 1985-04-01 | B183: 79.71593
A184: 1985-05-01 | B184: 80.65358
A185: 1985-06-01 | B185: 80.21868
A186: 1985-07-01 | B186: 81.83865
A187: 1985-08-01 | B187: 84.2652
A188: 1985-09-01 | B188: 85.96932
A189: 1985-10-01 | B189: 85.53848
A190: 1985-11-01 | B190: 83.68629
A191: 1985-12-01 | B191: 84.67822
A192: 1986-01-01 | B192: 86.18621
A193: 1986-02-01 | B193: 84.82666
A194: 1986-03-01 | B194: 85.7843
A195: 1986-04-01 | B195: 86.06216
A196: 1986-05-01 | B196: 86.97247
A197: 1986-06-01 | B197: 87.28781
A198: 1986-07-01 | B198: 88.39539
A199: 1986-08-01 | B199: 89.47997
A200: 1986-09-01 | B200: 87.41856
A201: 1986-10-01 | B201: 88.44462
A202: 1986-11-01 | B202: 91.85437
... 446 more rows

Sheet WILL5000PR
A1: FRED Graph Observations
A2: Federal Reserve Economic Data
A3: Link: https://fred.stlouisfed.org
A4: Help: https://fredhelp.stlouisfed.org
A5: Economic Research Division
A6: Federal Reserve Bank of St. Louis
A8: WILL5000PR_CPIAUCNS | B8: WILL5000PR/CPIAUCNS, Index Jul 1990=100 of (Index/Index 1982-1984=100), Monthly, Not Seasonally Adjusted
A10: Frequency: Monthly
A11: observation_date | B11: WILL5000PR_CPIAUCNS
A12: 1971-01-01 | B12: 84.54445
A13: 1971-02-01 | B13: 85.49715
A14: 1971-03-01 | B14: 88.92065
A15: 1971-04-01 | B15: 91.78515
A16: 1971-05-01 | B16: 87.9432
A17: 1971-06-01 | B17: 87.49077
A18: 1971-07-01 | B18: 84.05613
A19: 1971-08-01 | B19: 86.80503
A20: 1971-09-01 | B20: 86.33568
A21: 1971-10-01 | B21: 82.64935
A22: 1971-11-01 | B22: 82.06716
A23: 1971-12-01 | B23: 88.99039
A24: 1972-01-01 | B24: 91.56562
A25: 1972-02-01 | B25: 93.83331
A26: 1972-03-01 | B26: 94.28698
A27: 1972-04-01 | B27: 94.6512
A28: 1972-05-01 | B28: 95.71202
A29: 1972-06-01 | B29: 93.35364
A30: 1972-07-01 | B30: 92.55492
A31: 1972-08-01 | B31: 95.21513
A32: 1972-09-01 | B32: 94.09848
A33: 1972-10-01 | B33: 94.36769
A34: 1972-11-01 | B34: 98.16897
A35: 1972-12-01 | B35: 98.84639
A36: 1973-01-01 | B36: 95.85123
A37: 1973-02-01 | B37: 90.72169
A38: 1973-03-01 | B38: 89.12725
A39: 1973-04-01 | B39: 84.03001
A40: 1973-05-01 | B40: 81.09394
A41: 1973-06-01 | B41: 79.74939
A42: 1973-07-01 | B42: 83.93292
A43: 1973-08-01 | B43: 79.5821
A44: 1973-09-01 | B44: 83.45681
A45: 1973-10-01 | B45: 82.70022
A46: 1973-11-01 | B46: 71.73811
A47: 1973-12-01 | B47: 71.86691
A48: 1974-01-01 | B48: 71.40217
A49: 1974-02-01 | B49: 70.37125
A50: 1974-03-01 | B50: 67.6243
A51: 1974-04-01 | B51: 64.18306
A52: 1974-05-01 | B52: 60.25595
A53: 1974-06-01 | B53: 58.14895
A54: 1974-07-01 | B54: 53.53027
A55: 1974-08-01 | B55: 47.78036
A56: 1974-09-01 | B56: 41.88355
A57: 1974-10-01 | B57: 48.21235
A58: 1974-11-01 | B58: 45.47745
A59: 1974-12-01 | B59: 43.82628
A60: 1975-01-01 | B60: 49.95893
A61: 1975-02-01 | B61: 52.31722
A62: 1975-03-01 | B62: 53.39302
A63: 1975-04-01 | B63: 55.64572
A64: 1975-05-01 | B64: 58.10653
A65: 1975-06-01 | B65: 60.39516
A66: 1975-07-01 | B66: 55.95106
A67: 1975-08-01 | B67: 54.3721
A68: 1975-09-01 | B68: 51.84058
A69: 1975-10-01 | B69: 54.30634
A70: 1975-11-01 | B70: 55.32513
A71: 1975-12-01 | B71: 54.43847
A72: 1976-01-01 | B72: 61.01541
A73: 1976-02-01 | B73: 60.89408
A74: 1976-03-01 | B74: 62.27327
A75: 1976-04-01 | B75: 61.37613
A76: 1976-05-01 | B76: 59.9787
A77: 1976-06-01 | B77: 62.05511
A78: 1976-07-01 | B78: 61.25808
A79: 1976-08-01 | B79: 60.47408
A80: 1976-09-01 | B80: 61.58924
A81: 1976-10-01 | B81: 59.88464
A82: 1976-11-01 | B82: 59.73821
A83: 1976-12-01 | B83: 63.16945
A84: 1977-01-01 | B84: 60.51921
A85: 1977-02-01 | B85: 58.67327
A86: 1977-03-01 | B86: 57.55615
A87: 1977-04-01 | B87: 57.3732
A88: 1977-05-01 | B88: 56.36891
A89: 1977-06-01 | B89: 58.34671
A90: 1977-07-01 | B90: 57.20515
A91: 1977-08-01 | B91: 55.88308
A92: 1977-09-01 | B92: 55.68975
A93: 1977-10-01 | B93: 53.26657
A94: 1977-11-01 | B94: 54.92495
A95: 1977-12-01 | B95: 55.07069
A96: 1978-01-01 | B96: 51.58652
A97: 1978-02-01 | B97: 50.36903
A98: 1978-03-01 | B98: 51.52394
A99: 1978-04-01 | B99: 55.25778
A100: 1978-05-01 | B100: 55.59381
A101: 1978-06-01 | B101: 54.24761
A102: 1978-07-01 | B102: 56.83801
A103: 1978-08-01 | B103: 58.62116
A104: 1978-09-01 | B104: 57.71398
A105: 1978-10-01 | B105: 50.92859
A106: 1978-11-01 | B106: 51.92641
A107: 1978-12-01 | B107: 52.51756
A108: 1979-01-01 | B108: 54.43176
A109: 1979-02-01 | B109: 52.18231
A110: 1979-03-01 | B110: 55.06929
A111: 1979-04-01 | B111: 54.83167
A112: 1979-05-01 | B112: 52.87241
A113: 1979-06-01 | B113: 54.79636
A114: 1979-07-01 | B114: 54.72007
A115: 1979-08-01 | B115: 57.3153
A116: 1979-09-01 | B116: 56.90777
A117: 1979-10-01 | B117: 52.26358
A118: 1979-11-01 | B118: 54.59188
A119: 1979-12-01 | B119: 55.29391
A120: 1980-01-01 | B120: 58.28985
A121: 1980-02-01 | B121: 57.21642
A122: 1980-03-01 | B122: 49.35456
A123: 1980-04-01 | B123: 51.17982
A124: 1980-05-01 | B124: 53.09142
A125: 1980-06-01 | B125: 54.28406
A126: 1980-07-01 | B126: 57.89154
A127: 1980-08-01 | B127: 58.62722
A128: 1980-09-01 | B128: 59.67115
A129: 1980-10-01 | B129: 60.44222
A130: 1980-11-01 | B130: 66.09326
A131: 1980-12-01 | B131: 62.7107
A132: 1981-01-01 | B132: 59.44126
A133: 1981-02-01 | B133: 59.23899
A134: 1981-03-01 | B134: 61.60631
A135: 1981-04-01 | B135: 60.58777
A136: 1981-05-01 | B136: 60.53983
A137: 1981-06-01 | B137: 59.173
A138: 1981-07-01 | B138: 58.1438
A139: 1981-08-01 | B139: 54.15081
A140: 1981-09-01 | B140: 49.95845
A141: 1981-10-01 | B141: 52.69832
A142: 1981-11-01 | B142: 54.53505
A143: 1981-12-01 | B143: 52.72225
A144: 1982-01-01 | B144: 50.96551
A145: 1982-02-01 | B145: 47.66853
A146: 1982-03-01 | B146: 47.0393
A147: 1982-04-01 | B147: 48.78012
A148: 1982-05-01 | B148: 46.56789
A149: 1982-06-01 | B149: 44.6921
A150: 1982-07-01 | B150: 43.45796
A151: 1982-08-01 | B151: 48.11092
A152: 1982-09-01 | B152: 48.63644
A153: 1982-10-01 | B153: 54.04136
A154: 1982-11-01 | B154: 56.43357
A155: 1982-12-01 | B155: 57.30518
A156: 1983-01-01 | B156: 59.44898
A157: 1983-02-01 | B157: 60.92906
A158: 1983-03-01 | B158: 62.97285
A159: 1983-04-01 | B159: 67.09116
A160: 1983-05-01 | B160: 67.19108
A161: 1983-06-01 | B161: 69.38123
A162: 1983-07-01 | B162: 66.8568
A163: 1983-08-01 | B163: 66.68355
A164: 1983-09-01 | B164: 67.25964
A165: 1983-10-01 | B165: 65.13718
A166: 1983-11-01 | B166: 66.52376
A167: 1983-12-01 | B167: 65.55893
A168: 1984-01-01 | B168: 64.00188
A169: 1984-02-01 | B169: 60.84063
A170: 1984-03-01 | B170: 61.36195
A171: 1984-04-01 | B171: 61.11892
A172: 1984-05-01 | B172: 57.38819
A173: 1984-06-01 | B173: 58.38327
A174: 1984-07-01 | B174: 56.88496
A175: 1984-08-01 | B175: 62.75792
A176: 1984-09-01 | B176: 62.31119
A177: 1984-10-01 | B177: 61.94339
A178: 1984-11-01 | B178: 60.99386
A179: 1984-12-01 | B179: 62.27783
A180: 1985-01-01 | B180: 67.39073
A181: 1985-02-01 | B181: 67.90997
A182: 1985-03-01 | B182: 67.34686
A183: 1985-04-01 | B183: 66.7792
A184: 1985-05-01 | B184: 69.95918
A185: 1985-06-01 | B185: 70.8237
A186: 1985-07-01 | B186: 70.5186
A187: 1985-08-01 | B187: 69.67877
A188: 1985-09-01 | B188: 66.57305
A189: 1985-10-01 | B189: 69.11876
A190: 1985-11-01 | B190: 73.40932
A191: 1985-12-01 | B191: 76.30892
A192: 1986-01-01 | B192: 76.78276
A193: 1986-02-01 | B193: 82.34577
A194: 1986-03-01 | B194: 86.94904
A195: 1986-04-01 | B195: 86.36163
A196: 1986-05-01 | B196: 90.18264
A197: 1986-06-01 | B197: 90.70048
A198: 1986-07-01 | B198: 85.12893
A199: 1986-08-01 | B199: 90.29628
A200: 1986-09-01 | B200: 82.53126
A201: 1986-10-01 | B201: 86.47118
A202: 1986-11-01 | B202: 87.3767
... 447 more rows

Sheet Tocalino Index 1980
A1: FRED Graph Observations
A2: Federal Reserve Economic Data
A3: Link: https://fred.stlouisfed.org
A4: Help: https://fredhelp.stlouisfed.org
A5: Economic Research Division
A6: Federal Reserve Bank of St. Louis
A8: LNU00000060_UNRATE_CPILFESL_PC1 | B8: LNU00000060/(UNRATE+CPILFESL), Index Jul 1990=100 of (Thous. of Persons/(%+% Chg. from Yr. Ago)), Monthly
A10: Frequency: Monthly
A11: observation_date | B11: LNU00000060_UNRATE_CPILFESL_PC1
A12: 1980-11-01 | B12: 43.54439
A13: 1980-12-01 | B13: 44.31965
A14: 1981-01-01 | B14: 45.60041
A15: 1981-02-01 | B15: 47.19347
A16: 1981-03-01 | B16: 49.76792
A17: 1981-04-01 | B17: 51.92192
A18: 1981-05-01 | B18: 50.55646
A19: 1981-06-01 | B19: 51.33393
A20: 1981-07-01 | B20: 47.34335
A21: 1981-08-01 | B21: 45.86331
A22: 1981-09-01 | B22: 44.87855
A23: 1981-10-01 | B23: 46.28194
A24: 1981-11-01 | B24: 47.15456
A25: 1981-12-01 | B25: 48.57289
A26: 1982-01-01 | B26: 49.17938
A27: 1982-02-01 | B27: 48.59526
A28: 1982-03-01 | B28: 49.82026
A29: 1982-04-01 | B29: 48.61527
A30: 1982-05-01 | B30: 48.95924
A31: 1982-06-01 | B31: 49.01988
A32: 1982-07-01 | B32: 50.73912
A33: 1982-08-01 | B33: 52.72082
A34: 1982-09-01 | B34: 55.70579
A35: 1982-10-01 | B35: 54.85424
A36: 1982-11-01 | B36: 55.90216
A37: 1982-12-01 | B37: 58.41835
A38: 1983-01-01 | B38: 59.71552
A39: 1983-02-01 | B39: 60.35263
A40: 1983-03-01 | B40: 60.45213
A41: 1983-04-01 | B41: 62.92747
A42: 1983-05-01 | B42: 65.5591
A43: 1983-06-01 | B43: 67.85948
A44: 1983-07-01 | B44: 71.87077
A45: 1983-08-01 | B45: 72.09147
A46: 1983-09-01 | B46: 72.19959
A47: 1983-10-01 | B47: 73.53047
A48: 1983-11-01 | B48: 71.22424
A49: 1983-12-01 | B49: 70.17715
A50: 1984-01-01 | B50: 70.50464
A51: 1984-02-01 | B51: 72.43213
A52: 1984-03-01 | B52: 71.47849
A53: 1984-04-01 | B53: 71.7178
A54: 1984-05-01 | B54: 73.07538
A55: 1984-06-01 | B55: 73.88832
A56: 1984-07-01 | B56: 73.04378
A57: 1984-08-01 | B57: 72.69664
A58: 1984-09-01 | B58: 74.11765
A59: 1984-10-01 | B59: 74.4187
A60: 1984-11-01 | B60: 77.79526
A61: 1984-12-01 | B61: 76.74793
A62: 1985-01-01 | B62: 79.59394
A63: 1985-02-01 | B63: 78.5132
A64: 1985-03-01 | B64: 78.80759
A65: 1985-04-01 | B65: 79.71593
A66: 1985-05-01 | B66: 80.65358
A67: 1985-06-01 | B67: 80.21868
A68: 1985-07-01 | B68: 81.83865
A69: 1985-08-01 | B69: 84.2652
A70: 1985-09-01 | B70: 85.96932
A71: 1985-10-01 | B71: 85.53848
A72: 1985-11-01 | B72: 83.68629
A73: 1985-12-01 | B73: 84.67822
A74: 1986-01-01 | B74: 86.18621
A75: 1986-02-01 | B75: 84.82666
A76: 1986-03-01 | B76: 85.7843
A77: 1986-04-01 | B77: 86.06216
A78: 1986-05-01 | B78: 86.97247
A79: 1986-06-01 | B79: 87.28781
A80: 1986-07-01 | B80: 88.39539
A81: 1986-08-01 | B81: 89.47997
A82: 1986-09-01 | B82: 87.41856
A83: 1986-10-01 | B83: 88.44462
A84: 1986-11-01 | B84: 91.85437
A85: 1986-12-01 | B85: 94.80396
A86: 1987-01-01 | B86: 96.87969
A87: 1987-02-01 | B87: 97.14843
A88: 1987-03-01 | B88: 96.56604
A89: 1987-04-01 | B89: 97.20474
A90: 1987-05-01 | B90: 95.78058
A91: 1987-06-01 | B91: 97.81639
A92: 1987-07-01 | B92: 99.11345
A93: 1987-08-01 | B93: 100.37677
A94: 1987-09-01 | B94: 100.82316
A95: 1987-10-01 | B95: 98.42059
A96: 1987-11-01 | B96: 100.70293
A97: 1987-12-01 | B97: 102.01974
A98: 1988-01-01 | B98: 100.59866
A99: 1988-02-01 | B99: 100.8931
A100: 1988-03-01 | B100: 100.31843
A101: 1988-04-01 | B101: 104.79894
A102: 1988-05-01 | B102: 103.00501
A103: 1988-06-01 | B103: 102.70678
A104: 1988-07-01 | B104: 103.0648
A105: 1988-08-01 | B105: 101.35582
A106: 1988-09-01 | B106: 102.04479
A107: 1988-10-01 | B107: 103.30959
A108: 1988-11-01 | B108: 103.7292
A109: 1988-12-01 | B109: 103.13162
A110: 1989-01-01 | B110: 102.54826
A111: 1989-02-01 | B111: 104.13184
A112: 1989-03-01 | B112: 106.70263
A113: 1989-04-01 | B113: 106.71452
A114: 1989-05-01 | B114: 106.15351
A115: 1989-06-01 | B115: 105.4045
A116: 1989-07-01 | B116: 106.87075
A117: 1989-08-01 | B117: 108.09804
A118: 1989-09-01 | B118: 110.14255
A119: 1989-10-01 | B119: 108.68674
A120: 1989-11-01 | B120: 107.02671
A121: 1989-12-01 | B121: 106.45973
A122: 1990-01-01 | B122: 107.15117
A123: 1990-02-01 | B123: 106.84602
A124: 1990-03-01 | B124: 105.70615
A125: 1990-04-01 | B125: 103.10898
A126: 1990-05-01 | B126: 104.29095
A127: 1990-06-01 | B127: 104.98664
A128: 1990-07-01 | B128: 100
A129: 1990-08-01 | B129: 95.06556
A130: 1990-09-01 | B130: 93.04667
A131: 1990-10-01 | B131: 94.72693
A132: 1990-11-01 | B132: 93.22299
A133: 1990-12-01 | B133: 92.06987
A134: 1991-01-01 | B134: 89.22873
A135: 1991-02-01 | B135: 87.51259
A136: 1991-03-01 | B136: 89.09603
A137: 1991-04-01 | B137: 90.65784
A138: 1991-05-01 | B138: 89.41408
A139: 1991-06-01 | B139: 90.86613
A140: 1991-07-01 | B140: 93.13313
A141: 1991-08-01 | B141: 93.83905
A142: 1991-09-01 | B142: 94.11685
A143: 1991-10-01 | B143: 94.75924
A144: 1991-11-01 | B144: 94.46937
A145: 1991-12-01 | B145: 92.91287
A146: 1992-01-01 | B146: 96.21079
A147: 1992-02-01 | B147: 98.21319
A148: 1992-03-01 | B148: 97.09869
A149: 1992-04-01 | B149: 97.31981
A150: 1992-05-01 | B150: 95.2366
A151: 1992-06-01 | B151: 94.97367
A152: 1992-07-01 | B152: 96.03881
A153: 1992-08-01 | B153: 98.97805
A154: 1992-09-01 | B154: 101.15586
A155: 1992-10-01 | B155: 101.54632
A156: 1992-11-01 | B156: 101.49208
A157: 1992-12-01 | B157: 102.48758
A158: 1993-01-01 | B158: 102.98043
A159: 1993-02-01 | B159: 103.8252
A160: 1993-03-01 | B160: 107.12468
A161: 1993-04-01 | B161: 104.94443
A162: 1993-05-01 | B162: 105.81994
A163: 1993-06-01 | B163: 107.01715
A164: 1993-07-01 | B164: 110.56149
A165: 1993-08-01 | B165: 110.27374
A166: 1993-09-01 | B166: 112.36938
A167: 1993-10-01 | B167: 113.07641
A168: 1993-11-01 | B168: 114.84441
A169: 1993-12-01 | B169: 116.36262
A170: 1994-01-01 | B170: 117.82324
A171: 1994-02-01 | B171: 119.81394
A172: 1994-03-01 | B172: 118.7345
A173: 1994-04-01 | B173: 123.7443
A174: 1994-05-01 | B174: 128.14031
A175: 1994-06-01 | B175: 126.41803
A176: 1994-07-01 | B176: 125.6429
A177: 1994-08-01 | B177: 128.28043
A178: 1994-09-01 | B178: 127.09395
A179: 1994-10-01 | B179: 130.81679
A180: 1994-11-01 | B180: 135.30314
A181: 1994-12-01 | B181: 140.45239
A182: 1995-01-01 | B182: 133.61368
A183: 1995-02-01 | B183: 136.11516
A184: 1995-03-01 | B184: 136.3789
A185: 1995-04-01 | B185: 127.48154
A186: 1995-05-01 | B186: 131.55884
A187: 1995-06-01 | B187: 132.74161
A188: 1995-07-01 | B188: 131.45236
A189: 1995-08-01 | B189: 131.72356
A190: 1995-09-01 | B190: 133.54412
A191: 1995-10-01 | B191: 133.42346
A192: 1995-11-01 | B192: 133.1379
A193: 1995-12-01 | B193: 133.28588
A194: 1996-01-01 | B194: 134.50185
A195: 1996-02-01 | B195: 137.50963
A196: 1996-03-01 | B196: 138.82829
A197: 1996-04-01 | B197: 140.65301
A198: 1996-05-01 | B198: 139.87847
A199: 1996-06-01 | B199: 145.36776
A200: 1996-07-01 | B200: 142.00923
A201: 1996-08-01 | B201: 150.76444
A202: 1996-09-01 | B202: 147.97609
... 328 more rows

Sheet WILL5000PR_M2
A1: FRED Graph Observations
A2: Federal Reserve Economic Data
A3: Link: https://fred.stlouisfed.org
A4: Help: https://fredhelp.stlouisfed.org
A5: Economic Research Division
A6: Federal Reserve Bank of St. Louis
A8: WILL5000PR_M2SL | B8: WILL5000PR/M2SL, Index Jul 1990=100 of (Index/Bil. of $), Monthly
A10: Frequency: Monthly
A11: observation_date | B11: WILL5000PR_M2SL
A12: 1980-11-01 | B12: 87.56481
A13: 1980-12-01 | B13: 83.65107
A14: 1981-01-01 | B14: 79.57987
A15: 1981-02-01 | B15: 79.54538
A16: 1981-03-01 | B16: 82.3779
A17: 1981-04-01 | B17: 80.4542
A18: 1981-05-01 | B18: 80.77869
A19: 1981-06-01 | B19: 79.36738
A20: 1981-07-01 | B20: 78.30393
A21: 1981-08-01 | B21: 72.94595
A22: 1981-09-01 | B22: 67.48863
A23: 1981-10-01 | B23: 70.68801
A24: 1981-11-01 | B24: 72.78223
A25: 1981-12-01 | B25: 69.80808
A26: 1982-01-01 | B26: 67.12765
A27: 1982-02-01 | B27: 62.83936
A28: 1982-03-01 | B28: 61.52823
A29: 1982-04-01 | B29: 63.45727
A30: 1982-05-01 | B30: 60.76654
A31: 1982-06-01 | B31: 58.70654
A32: 1982-07-01 | B32: 57.20735
A33: 1982-08-01 | B33: 62.99115
A34: 1982-09-01 | B34: 63.35633
A35: 1982-10-01 | B35: 70.18602
A36: 1982-11-01 | B36: 72.60001
A37: 1982-12-01 | B37: 72.5652
A38: 1983-01-01 | B38: 73.37446
A39: 1983-02-01 | B39: 73.86818
A40: 1983-03-01 | B40: 75.64891
A41: 1983-04-01 | B41: 80.6363
A42: 1983-05-01 | B42: 80.67118
A43: 1983-06-01 | B43: 83.12949
A44: 1983-07-01 | B44: 79.98672
A45: 1983-08-01 | B45: 79.66406
A46: 1983-09-01 | B46: 80.39663
A47: 1983-10-01 | B47: 77.49635
A48: 1983-11-01 | B48: 78.81094
A49: 1983-12-01 | B49: 77.33459
A50: 1984-01-01 | B50: 75.42293
A51: 1984-02-01 | B51: 71.38168
A52: 1984-03-01 | B52: 71.57018
A53: 1984-04-01 | B53: 71.09484
A54: 1984-05-01 | B54: 66.57276
A55: 1984-06-01 | B55: 67.58629
A56: 1984-07-01 | B56: 65.85608
A57: 1984-08-01 | B57: 72.70878
A58: 1984-09-01 | B58: 72.08417
A59: 1984-10-01 | B59: 71.40213
A60: 1984-11-01 | B60: 69.6142
A61: 1984-12-01 | B61: 70.30918
A62: 1985-01-01 | B62: 75.37622
A63: 1985-02-01 | B63: 75.61349
A64: 1985-03-01 | B64: 74.88457
A65: 1985-04-01 | B65: 74.31337
A66: 1985-05-01 | B66: 77.68232
A67: 1985-06-01 | B67: 78.10708
A68: 1985-07-01 | B68: 77.37316
A69: 1985-08-01 | B69: 76.13911
A70: 1985-09-01 | B70: 72.57928
A71: 1985-10-01 | B71: 75.27748
A72: 1985-11-01 | B72: 79.85392
A73: 1985-12-01 | B73: 82.75892
A74: 1986-01-01 | B74: 83.16764
A75: 1986-02-01 | B75: 88.56681
A76: 1986-03-01 | B76: 92.34772
A77: 1986-04-01 | B77: 90.6711
A78: 1986-05-01 | B78: 93.95258
A79: 1986-06-01 | B79: 94.27592
A80: 1986-07-01 | B80: 87.75707
A81: 1986-08-01 | B81: 92.55276
A82: 1986-09-01 | B82: 84.30078
A83: 1986-10-01 | B83: 87.76056
A84: 1986-11-01 | B84: 88.30325
A85: 1986-12-01 | B85: 85.04137
A86: 1987-01-01 | B86: 95.24498
A87: 1987-02-01 | B87: 99.44827
A88: 1987-03-01 | B88: 101.36467
A89: 1987-04-01 | B89: 98.93347
A90: 1987-05-01 | B90: 99.06267
A91: 1987-06-01 | B91: 103.18478
A92: 1987-07-01 | B92: 107.46603
A93: 1987-08-01 | B93: 110.91401
A94: 1987-09-01 | B94: 107.91892
A95: 1987-10-01 | B95: 82.70124
A96: 1987-11-01 | B96: 76.36699
A97: 1987-12-01 | B97: 81.47965
A98: 1988-01-01 | B98: 84.24789
A99: 1988-02-01 | B99: 87.4869
A100: 1988-03-01 | B100: 85.16588
A101: 1988-04-01 | B101: 85.38494
A102: 1988-05-01 | B102: 84.74602
A103: 1988-06-01 | B103: 88.50761
A104: 1988-07-01 | B104: 87.35691
A105: 1988-08-01 | B105: 84.34948
A106: 1988-09-01 | B106: 87.2134
A107: 1988-10-01 | B107: 88.38426
A108: 1988-11-01 | B108: 85.99957
A109: 1988-12-01 | B109: 87.3122
A110: 1989-01-01 | B110: 92.90555
A111: 1989-02-01 | B111: 90.99863
A112: 1989-03-01 | B112: 92.58821
A113: 1989-04-01 | B113: 96.77003
A114: 1989-05-01 | B114: 100.05364
A115: 1989-06-01 | B115: 98.70949
A116: 1989-07-01 | B116: 105.42063
A117: 1989-08-01 | B117: 106.63227
A118: 1989-09-01 | B118: 105.5713
A119: 1989-10-01 | B119: 101.58647
A120: 1989-11-01 | B120: 102.40195
A121: 1989-12-01 | B121: 103.3571
A122: 1990-01-01 | B122: 95.17092
A123: 1990-02-01 | B123: 95.93583
A124: 1990-03-01 | B124: 97.76587
A125: 1990-04-01 | B125: 94.40518
A126: 1990-05-01 | B126: 102.65518
A127: 1990-06-01 | B127: 101.52194
A128: 1990-07-01 | B128: 100
A129: 1990-08-01 | B129: 89.73951
A130: 1990-09-01 | B130: 84.29074
A131: 1990-10-01 | B131: 82.84352
A132: 1990-11-01 | B132: 88.04626
A133: 1990-12-01 | B133: 90.31294
A134: 1991-01-01 | B134: 94.04894
A135: 1991-02-01 | B135: 100.47613
A136: 1991-03-01 | B136: 102.78412
A137: 1991-04-01 | B137: 102.58177
A138: 1991-05-01 | B138: 106.00086
A139: 1991-06-01 | B139: 100.77836
A140: 1991-07-01 | B140: 105.2064
A141: 1991-08-01 | B141: 107.7726
A142: 1991-09-01 | B142: 106.32576
A143: 1991-10-01 | B143: 107.95042
A144: 1991-11-01 | B144: 103.33005
A145: 1991-12-01 | B145: 114.17495
A146: 1992-01-01 | B146: 113.49542
A147: 1992-02-01 | B147: 114.08627
A148: 1992-03-01 | B148: 110.88502
A149: 1992-04-01 | B149: 112.34367
A150: 1992-05-01 | B150: 112.73886
A151: 1992-06-01 | B151: 110.35157
A152: 1992-07-01 | B152: 114.64504
A153: 1992-08-01 | B153: 111.70877
A154: 1992-09-01 | B154: 112.4317
A155: 1992-10-01 | B155: 113.19666
A156: 1992-11-01 | B156: 117.43486
A157: 1992-12-01 | B157: 119.34191
A158: 1993-01-01 | B158: 120.85209
A159: 1993-02-01 | B159: 121.18092
A160: 1993-03-01 | B160: 124.11294
A161: 1993-04-01 | B161: 120.54748
A162: 1993-05-01 | B162: 123.04353
A163: 1993-06-01 | B163: 123.15194
A164: 1993-07-01 | B164: 122.99214
A165: 1993-08-01 | B165: 127.23636
A166: 1993-09-01 | B166: 127.00479
A167: 1993-10-01 | B167: 128.79448
A168: 1993-11-01 | B168: 125.85489
A169: 1993-12-01 | B169: 127.72499
A170: 1994-01-01 | B170: 131.55544
A171: 1994-02-01 | B171: 128.24448
A172: 1994-03-01 | B172: 122.04014
A173: 1994-04-01 | B173: 123.01151
A174: 1994-05-01 | B174: 123.51738
A175: 1994-06-01 | B175: 120.35062
A176: 1994-07-01 | B176: 123.45321
A177: 1994-08-01 | B177: 128.63042
A178: 1994-09-01 | B178: 125.87853
A179: 1994-10-01 | B179: 127.81283
A180: 1994-11-01 | B180: 122.69027
A181: 1994-12-01 | B181: 124.08592
A182: 1995-01-01 | B182: 126.3493
A183: 1995-02-01 | B183: 131.14944
A184: 1995-03-01 | B184: 134.28405
A185: 1995-04-01 | B185: 137.11722
A186: 1995-05-01 | B186: 140.38658
A187: 1995-06-01 | B187: 143.59678
A188: 1995-07-01 | B188: 148.5432
A189: 1995-08-01 | B189: 148.72223
A190: 1995-09-01 | B190: 153.58646
A191: 1995-10-01 | B191: 151.37223
A192: 1995-11-01 | B192: 157.13089
A193: 1995-12-01 | B193: 159.00485
A194: 1996-01-01 | B194: 162.24095
A195: 1996-02-01 | B195: 164.10808
A196: 1996-03-01 | B196: 164.50622
A197: 1996-04-01 | B197: 167.86235
A198: 1996-05-01 | B198: 171.499
A199: 1996-06-01 | B199: 169.25178
A200: 1996-07-01 | B200: 159.26613
A201: 1996-08-01 | B201: 163.73133
A202: 1996-09-01 | B202: 171.73912
... 329 more rows

Sheet DJIA_def
A1: FRED Graph Observations
A2: Federal Reserve Economic Data
A3: Link: https://fred.stlouisfed.org
A4: Help: https://fredhelp.stlouisfed.org
A5: Economic Research Division
A6: Federal Reserve Bank of St. Louis
A8: DJIA_CPIAUCSL | B8: DJIA/CPIAUCSL, Index/Index 1982-1984=100, Monthly
A10: Frequency: Monthly
A11: observation_date | B11: DJIA_CPIAUCSL
A12: 2014-03-01 | B12: 69.72757469
A13: 2014-04-01 | B13: 70.11874757
A14: 2014-05-01 | B14: 70.56099579
A15: 2014-06-01 | B15: 70.92917873
A16: 2014-07-01 | B16: 69.74079782
A17: 2014-08-01 | B17: 72.00560094
A18: 2014-09-01 | B18: 71.76652897
A19: 2014-10-01 | B19: 73.24483006
A20: 2014-11-01 | B20: 75.2300376
A21: 2014-12-01 | B21: 75.44092748
A22: 2015-01-01 | B22: 73.12106225
A23: 2015-02-01 | B23: 77.04829567
A24: 2015-03-01 | B24: 75.33020307
A25: 2015-04-01 | B25: 75.52437961
A26: 2015-05-01 | B26: 75.99410973
A27: 2015-06-01 | B27: 74.13840114
A28: 2015-07-01 | B28: 74.31652621
A29: 2015-08-01 | B29: 69.43587654
A30: 2015-09-01 | B30: 68.56773531
A31: 2015-10-01 | B31: 74.29990788
A32: 2015-11-01 | B32: 74.44812765
A33: 2015-12-01 | B33: 73.28800771
A34: 2016-01-01 | B34: 69.28744551
A35: 2016-02-01 | B35: 69.59121246
A36: 2016-03-01 | B36: 74.28213206
A37: 2016-04-01 | B37: 74.36918391
A38: 2016-05-01 | B38: 74.25038717
A39: 2016-06-01 | B39: 74.63925036
A40: 2016-07-01 | B40: 76.76869317
A41: 2016-08-01 | B41: 76.49662225
A42: 2016-09-01 | B42: 75.91198958
A43: 2016-10-01 | B43: 75.04899872
A44: 2016-11-01 | B44: 79.01456868
A45: 2016-12-01 | B45: 81.44924311
A46: 2017-01-01 | B46: 81.53785845
A47: 2017-02-01 | B47: 85.29396818
A48: 2017-03-01 | B48: 84.72282814
A49: 2017-04-01 | B49: 85.75393234
A50: 2017-05-01 | B50: 86.09961312
A51: 2017-06-01 | B51: 87.44007077
A52: 2017-07-01 | B52: 89.6284438
A53: 2017-08-01 | B53: 89.51721775
A54: 2017-09-01 | B54: 90.91683405
A55: 2017-10-01 | B55: 94.78822184
A56: 2017-11-01 | B56: 98.15576422
A57: 2017-12-01 | B57: 99.75270878
A58: 2018-01-01 | B58: 105.077132
A59: 2018-02-01 | B59: 100.3057761
A60: 2018-03-01 | B60: 96.57584633
A61: 2018-04-01 | B61: 96.56491905
A62: 2018-05-01 | B62: 97.35493955
A63: 2018-06-01 | B63: 96.69191054
A64: 2018-07-01 | B64: 101.169481
A65: 2018-08-01 | B65: 103.1729734
A66: 2018-09-01 | B66: 104.9175199
A67: 2018-10-01 | B67: 99.36132167
A68: 2018-11-01 | B68: 101.1047768
A69: 2018-12-01 | B69: 92.28839208
A70: 2019-01-01 | B70: 98.92318711
A71: 2019-02-01 | B71: 102.3045768
A72: 2019-03-01 | B72: 102.000299
A73: 2019-04-01 | B73: 104.1997014
A74: 2019-05-01 | B74: 97.20333738
A75: 2019-06-01 | B75: 104.2485666
A76: 2019-07-01 | B76: 105.0678374
A77: 2019-08-01 | B77: 103.1140479
A78: 2019-09-01 | B78: 104.9344083
A79: 2019-10-01 | B79: 105.1384289
A80: 2019-11-01 | B80: 108.8094786
A81: 2019-12-01 | B81: 110.3506357
A82: 2020-01-01 | B82: 109.0810579
A83: 2020-02-01 | B83: 98.01178794
A84: 2020-03-01 | B84: 84.90942338
A85: 2020-04-01 | B85: 95.0663043
A86: 2020-05-01 | B86: 99.20392546
A87: 2020-06-01 | B87: 100.4446935
A88: 2020-07-01 | B88: 102.3250916
A89: 2020-08-01 | B89: 109.5946201
A90: 2020-09-01 | B90: 106.8407755
A91: 2020-10-01 | B91: 101.8172318
A92: 2020-11-01 | B92: 113.6394275
A93: 2020-12-01 | B93: 116.8030225
A94: 2021-01-01 | B94: 114.1542737
A95: 2021-02-01 | B95: 117.3289511
A96: 2021-03-01 | B96: 124.4990827
A97: 2021-04-01 | B97: 127.0290996
A98: 2021-05-01 | B98: 128.628131
A99: 2021-06-01 | B99: 127.5230541
A100: 2021-07-01 | B100: 128.5507646
A101: 2021-08-01 | B101: 129.5881922
A102: 2021-09-01 | B102: 123.5053352
A103: 2021-10-01 | B103: 129.5360225
A104: 2021-11-01 | B104: 123.7257231
A105: 2021-12-01 | B105: 129.3698178
A106: 2022-01-01 | B106: 124.3170004
A107: 2022-02-01 | B107: 119.0843611
A108: 2022-03-01 | B108: 120.6320963
A109: 2022-04-01 | B109: 114.2617918
A110: 2022-05-01 | B110: 113.2637983
A111: 2022-06-01 | B111: 104.4197701
A112: 2022-07-01 | B112: 111.4800019
A113: 2022-08-01 | B113: 106.6992754
A114: 2022-09-01 | B114: 96.86924823
A115: 2022-10-01 | B115: 109.8469061
A116: 2022-11-01 | B116: 115.840595
A117: 2022-12-01 | B117: 110.8640757
A118: 2023-01-01 | B118: 113.4174941
A119: 2023-02-01 | B119: 108.2609532
A120: 2023-03-01 | B120: 110.249397
A121: 2023-04-01 | B121: 112.5656448
A122: 2023-05-01 | B122: 108.5028718
A123: 2023-06-01 | B123: 113.2421233
A124: 2023-07-01 | B124: 116.8383889
A125: 2023-08-01 | B125: 113.3706317
A126: 2023-09-01 | B126: 108.974213
A127: 2023-10-01 | B127: 107.4474268
A128: 2023-11-01 | B128: 116.7551321
A129: 2023-12-01 | B129: 122.0318601
A130: 2024-01-01
A131: 2024-02-01

Sheet Tocalino Index x DJIA
B2: Tocalino Index was developed by Sebastiao Buck Tocalino
B4: Copyright © Sebastiao Buck Tocalino
B5: www.deolhonabolsa.com/sbt/ - www.deolhonabolsa.com.br/sbt/
B7: The economy is directly proportional to the population between 25 and 54 years old, but
B8: inversely proportional to the unemployment rate and the consumer price inflation rate.
A10: The Tocalino Index: is the number of civilian people, between 25 and 54 years of age in the U.S., divided by the sum of the unemployment rate, and the core inflation rate, that is CPI less food and energy. The result is a gauge for the Stock Market indexes, adjusted for inflation, such as the Dow Jones Industrial Average, or the Wilshire 5000.
A12: Tocalino Index data sheet form FRED economic data repository | H12: =MAXA(H16:H1176) -> 2023-12-01
A13: Civilian Noninstitutional Population - 25 to 54 years (LNU00000060) | J13: Dow Jones Industrial Average / Consumer Price Index
A14: Tocalino Index © ® | D14: Índice Tocalino © ® | G14: =TODAY() -> 2024-02-08 | J14: (Dow Jones adjusted for inflation)
A15: mmm-yyyy | B15: LNU00000060 | C15: UNRATE | D15: CPILFESL | E15: = LNU00000060/(UNRATE+CPILFESL) | H15: yyyy-mm-dd | I15: DJIA | J15: CPIAUCSL | K15: = DJIA/CPIAUCSL
A16: 1957-01-01 | B16: 64857 | C16: 4.2 | E16: =B16/(C16+D16) ->  | H16: 1957-01-01 | I16: 0 | J16: 0
A17: 1957-02-01 | B17: 64879 | C17: 3.9 | H17: 1957-02-01 | I17: 0 | J17: 0
A18: 1957-03-01 | B18: 64908 | C18: 3.7 | H18: 1957-03-01 | I18: 0 | J18: 0
A19: 1957-04-01 | B19: 64934 | C19: 3.9 | H19: 1957-04-01 | I19: 0 | J19: 0
A20: 1957-05-01 | B20: 64972 | C20: 4.1 | H20: 1957-05-01 | I20: 0 | J20: 0
A21: 1957-06-01 | B21: 65025 | C21: 4.3 | H21: 1957-06-01 | I21: 0 | J21: 0
A22: 1957-07-01 | B22: 65113 | C22: 4.2 | H22: 1957-07-01 | I22: 0 | J22: 0
A23: 1957-08-01 | B23: 65134 | C23: 4.1 | H23: 1957-08-01 | I23: 0 | J23: 0
A24: 1957-09-01 | B24: 65165 | C24: 4.4 | H24: 1957-09-01 | I24: 0 | J24: 0
A25: 1957-10-01 | B25: 65205 | C25: 4.5 | H25: 1957-10-01 | I25: 0 | J25: 0
A26: 1957-11-01 | B26: 65251 | C26: 5.1 | H26: 1957-11-01 | I26: 0 | J26: 0
A27: 1957-12-01 | B27: 65290 | C27: 5.2 | H27: 1957-12-01 | I27: 0 | J27: 0
A28: 1958-01-01 | B28: 65325 | C28: 5.8 | D28: 2.80702 | E28: 7589.734891 | F28: 76.1 | G28: 1958-01-01 | H28: 1958-01-01 | I28: 450.02 | J28: 28.64 | K28: =I28/J28 -> 15.71298883 | L28: =IF(J28="","",K28/$M$418) -> 70.58188909
A29: 1958-02-01 | B29: 65350 | C29: 6.4 | D29: 2.7972 | E29: 7105.42339 | F29: 71.3 | G29: 1958-02-01 | H29: 1958-02-01 | I29: 439.92 | J29: 28.7 | K29: 15.328223 | L29: 68.85354196 | P29: =VLOOKUP($H29,CPIAUCSL!$A$12:$B$1041,2,FALSE) -> 28.7
A30: 1958-03-01 | B30: 65373 | C30: 6.7 | D30: 2.78746 | E30: 6890.463833 | F30: 69.1 | G30: 1958-03-01 | H30: 1958-03-01 | I30: 446.76 | J30: 28.87 | K30: 15.47488743 | L30: 69.51235058
A31: 1958-04-01 | B31: 65392 | C31: 7.4 | D31: 2.43056 | E31: 6651.909962 | F31: 66.7 | G31: 1958-04-01 | H31: 1958-04-01 | I31: 455.86 | J31: 28.94 | K31: 15.75190048 | L31: 70.75667813
A32: 1958-05-01 | B32: 65422 | C32: 7.4 | D32: 2.43056 | E32: 6654.961671 | F32: 66.8 | G32: 1958-05-01 | H32: 1958-05-01 | I32: 462.7 | J32: 28.94 | K32: 15.98825155 | L32: 71.81835426
A33: 1958-06-01 | B33: 65451 | C33: 7.3 | D33: 2.42215 | E33: 6732.152867 | F33: 67.5 | G33: 1958-06-01 | H33: 1958-06-01 | I33: 478.18 | J33: 28.91 | K33: 16.54029747 | L33: 74.29811443
A34: 1958-07-01 | B34: 65460 | C34: 7.5 | D34: 2.06897 | E34: 6840.86166 | F34: 68.6 | G34: 1958-07-01 | H34: 1958-07-01 | I34: 502.99 | J34: 28.89 | K34: 17.41052267 | L34: 78.20711857
A35: 1958-08-01 | B35: 65449 | C35: 7.4 | D35: 2.06897 | E35: 6911.945016 | F35: 69.3 | G35: 1958-08-01 | H35: 1958-08-01 | I35: 508.63 | J35: 28.94 | K35: 17.57532827 | L35: 78.94741631
A36: 1958-09-01 | B36: 65426 | C36: 7.1 | D36: 2.06186 | E36: 7141.126365 | F36: 71.6 | G36: 1958-09-01 | H36: 1958-09-01 | I36: 532.09 | J36: 28.91 | K36: 18.40505016 | L36: 82.6744818
A37: 1958-10-01 | B37: 65454 | C37: 6.7 | D37: 1.71233 | E37: 7780.721869 | F37: 78 | G37: 1958-10-01 | H37: 1958-10-01 | I37: 543.22 | J37: 28.91 | K37: 18.79003805 | L37: 84.40382643
A38: 1958-11-01 | B38: 65476 | C38: 6.2 | D38: 1.70648 | E38: 8281.308496 | F38: 83.1 | G38: 1958-11-01 | H38: 1958-11-01 | I38: 557.46 | J38: 28.95 | K38: 19.25595855 | L38: 86.49671591
A39: 1958-12-01 | B39: 65497 | C39: 6.2 | D39: 2.04778 | E39: 7941.167199 | F39: 79.7 | G39: 1958-12-01 | H39: 1958-12-01 | I39: 583.65 | J39: 28.97 | K39: 20.14670349 | L39: 90.4978936
A40: 1959-01-01 | B40: 65525 | C40: 6 | D40: 2.04778 | E40: 8141.996923 | F40: 81.7 | G40: 1959-01-01 | H40: 1959-01-01 | I40: 593.96 | J40: 29.01 | K40: 20.4743192 | L40: 91.96952553
A41: 1959-02-01 | B41: 65544 | C41: 5.9 | D41: 1.70068 | E41: 8623.438955 | F41: 86.5 | G41: 1959-02-01 | H41: 1959-02-01 | I41: 603.5 | J41: 29 | K41: 20.81034483 | L41: 93.47893432
A42: 1959-03-01 | B42: 65566 | C42: 5.6 | D42: 1.69492 | E42: 8987.898428 | F42: 90.2 | G42: 1959-03-01 | H42: 1959-03-01 | I42: 601.71 | J42: 28.97 | K42: 20.77010701 | L42: 93.29818823
A43: 1959-04-01 | B43: 65587 | C43: 5.2 | D43: 1.69492 | E43: 9512.365626 | F43: 95.4 | G43: 1959-04-01 | H43: 1959-04-01 | I43: 623.75 | J43: 28.98 | K43: 21.52346446 | L43: 96.68222882
A44: 1959-05-01 | B44: 65614 | C44: 5.1 | D44: 2.0339 | E44: 9197.493657 | F44: 92.3 | G44: 1959-05-01 | H44: 1959-05-01 | I44: 643.79 | J44: 29.04 | K44: 22.16907713 | L44: 99.58228577
A45: 1959-06-01 | B45: 65638 | C45: 5 | D45: 2.02703 | E45: 9340.788356 | F45: 93.7 | G45: 1959-06-01 | H45: 1959-06-01 | I45: 643.6 | J45: 29.11 | K45: 22.10924081 | L45: 99.31350426
A46: 1959-07-01 | B46: 65660 | C46: 5.1 | D46: 2.02703 | E46: 9212.813753 | F46: 92.4 | G46: 1959-07-01 | H46: 1959-07-01 | I46: 674.88 | J46: 29.15 | K46: 23.15197256 | L46: 103.9973984
A47: 1959-08-01 | B47: 65681 | C47: 5.2 | D47: 2.02703 | E47: 9088.242335 | F47: 91.2 | G47: 1959-08-01 | H47: 1959-08-01 | I47: 664.41 | J47: 29.18 | K47: 22.76936258 | L47: 102.2787352
A48: 1959-09-01 | B48: 65650 | C48: 5.5 | D48: 2.0202 | E48: 8729.821015 | F48: 87.6 | G48: 1959-09-01 | H48: 1959-09-01 | I48: 631.68 | J48: 29.25 | K48: 21.59589744 | L48: 97.00759381
A49: 1959-10-01 | B49: 65639 | C49: 5.7 | D49: 2.3569 | E49: 8146.929961 | F49: 81.7 | G49: 1959-10-01 | H49: 1959-10-01 | I49: 646.6 | J49: 29.35 | K49: 22.0306644 | L49: 98.96054329
A50: 1959-11-01 | B50: 65621 | C50: 5.8 | D50: 2.01342 | E50: 8398.498993 | F50: 84.2 | G50: 1959-11-01 | H50: 1959-11-01 | I50: 659.18 | J50: 29.35 | K50: 22.4592845 | L50: 100.8858814
A51: 1959-12-01 | B51: 65642 | C51: 5.3 | D51: 2.00669 | E51: 8983.821676 | F51: 90.1 | G51: 1959-12-01 | H51: 1959-12-01 | I51: 679.36 | J51: 29.41 | K51: 23.09962598 | L51: 103.7622604
A52: 1960-01-01 | B52: 65931 | C52: 5.2 | D52: 2.00669 | E52: 9148.582775 | F52: 91.8 | G52: 1960-01-01 | H52: 1960-01-01 | I52: 622.62 | J52: 29.37 | K52: 21.19918284 | L52: 95.22557347
A53: 1960-02-01 | B53: 65952 | C53: 4.8 | D53: 2.34114 | E53: 9235.500214 | F53: 92.6 | G53: 1960-02-01 | H53: 1960-02-01 | I53: 630.12 | J53: 29.41 | K53: 21.42536552 | L53: 96.24157375
A54: 1960-03-01 | B54: 65975 | C54: 5.4 | D54: 2 | E54: 8915.540541 | F54: 89.4 | G54: 1960-03-01 | H54: 1960-03-01 | I54: 616.59 | J54: 29.41 | K54: 20.96531792 | L54: 94.175065
A55: 1960-04-01 | B55: 65974 | C55: 5.2 | D55: 2 | E55: 9163.055556 | F55: 91.9 | G55: 1960-04-01 | H55: 1960-04-01 | I55: 601.7 | J55: 29.54 | K55: 20.3689912 | L55: 91.49639789
A56: 1960-05-01 | B56: 65989 | C56: 5.1 | D56: 1.66113 | E56: 9760.054902 | F56: 97.9 | G56: 1960-05-01 | H56: 1960-05-01 | I56: 625.5 | J56: 29.57 | K56: 21.15319581 | L56: 95.01900223
A57: 1960-06-01 | B57: 66017 | C57: 5.4 | D57: 1.65563 | E57: 9356.641434 | F57: 93.9 | G57: 1960-06-01 | H57: 1960-06-01 | I57: 640.62 | J57: 29.61 | K57: 21.63525836 | L57: 97.18440093
A58: 1960-07-01 | B58: 66034 | C58: 5.5 | D58: 1.3245 | E58: 9676.020221 | F58: 97.1 | G58: 1960-07-01 | H58: 1960-07-01 | I58: 616.73 | J58: 29.55 | K58: 20.87072758 | L58: 93.75017036
A59: 1960-08-01 | B59: 66069 | C59: 5.6 | D59: 1.3245 | E59: 9541.338725 | F59: 95.7 | G59: 1960-08-01 | H59: 1960-08-01 | I59: 625.99 | J59: 29.61 | K59: 21.14116852 | L59: 94.96497633
A60: 1960-09-01 | B60: 66073 | C60: 5.5 | D60: 0.9901 | E60: 10180.58273 | F60: 102.1 | G60: 1960-09-01 | H60: 1960-09-01 | I60: 580.14 | J60: 29.61 | K60: 19.59270517 | L60: 88.00936336
A61: 1960-10-01 | B61: 66091 | C61: 6.1 | D61: 1.31579 | E61: 8912.199509 | F61: 89.4 | G61: 1960-10-01 | H61: 1960-10-01 | I61: 580.36 | J61: 29.75 | K61: 19.50789916 | L61: 87.6284194
A62: 1960-11-01 | B62: 66146 | C62: 6.1 | D62: 1.31579 | E62: 8919.616116 | F62: 89.5 | G62: 1960-11-01 | H62: 1960-11-01 | I62: 597.22 | J62: 29.78 | K62: 20.05439893 | L62: 90.08326655
A63: 1960-12-01 | B63: 66194 | C63: 6.6 | D63: 0.65574 | E63: 9122.98401 | F63: 91.5 | G63: 1960-12-01 | H63: 1960-12-01 | I63: 615.89 | J63: 29.81 | K63: 20.66051661 | L63: 92.80591412
A64: 1961-01-01 | B64: 66237 | C64: 6.6 | D64: 0.98361 | E64: 8734.230795 | F64: 87.6 | G64: 1961-01-01 | H64: 1961-01-01 | I64: 648.2 | J64: 29.84 | K64: 21.72252011 | L64: 97.57637595
A65: 1961-02-01 | B65: 66243 | C65: 6.9 | D65: 0.65359 | E65: 8769.737304 | F65: 88 | G65: 1961-02-01 | H65: 1961-02-01 | I65: 662.08 | J65: 29.84 | K65: 22.18766756 | L65: 99.66579294
A66: 1961-03-01 | B66: 66253 | C66: 6.9 | D66: 0.98039 | E66: 8407.325018 | F66: 84.3 | G66: 1961-03-01 | H66: 1961-03-01 | I66: 676.63 | J66: 29.84 | K66: 22.6752681 | L66: 101.856068
A67: 1961-04-01 | B67: 66274 | C67: 7 | D67: 0.98039 | E67: 8304.606667 | F67: 83.3 | G67: 1961-04-01 | H67: 1961-04-01 | I67: 678.71 | J67: 29.81 | K67: 22.76786313 | L67: 102.2719998
A68: 1961-05-01 | B68: 66301 | C68: 7.1 | D68: 0.98039 | E68: 8205.173265 | F68: 82.3 | G68: 1961-05-01 | H68: 1961-05-01 | I68: 696.72 | J68: 29.84 | K68: 23.34852547 | L68: 104.8803034
A69: 1961-06-01 | B69: 66328 | C69: 6.9 | D69: 0.9772 | E69: 8420.250851 | F69: 84.5 | G69: 1961-06-01 | H69: 1961-06-01 | I69: 683.96 | J69: 29.84 | K69: 22.92091153 | L69: 102.9594849
A70: 1961-07-01 | B70: 66348 | C70: 7 | D70: 1.30719 | E70: 7986.81624 | F70: 80.1 | G70: 1961-07-01 | H70: 1961-07-01 | I70: 705.37 | J70: 29.92 | K70: 23.57520053 | L70: 105.8985154
A71: 1961-08-01 | B71: 66362 | C71: 6.6 | D71: 1.63399 | E71: 8059.51914 | F71: 80.8 | G71: 1961-08-01 | H71: 1961-08-01 | I71: 719.94 | J71: 29.94 | K71: 24.04609218 | L71: 108.013735
A72: 1961-09-01 | B72: 66373 | C72: 6.7 | D72: 1.63399 | E72: 7964.132426 | F72: 79.9 | G72: 1961-09-01 | H72: 1961-09-01 | I72: 701.21 | J72: 29.98 | K72: 23.38925951 | L72: 105.0632785
A73: 1961-10-01 | B73: 66380 | C73: 6.5 | D73: 0.97403 | E73: 8881.420064 | F73: 89.1 | G73: 1961-10-01 | H73: 1961-10-01 | I73: 703.92 | J73: 29.98 | K73: 23.4796531 | L73: 105.4693216
A74: 1961-11-01 | B74: 66324 | C74: 6.1 | D74: 1.2987 | E74: 8964.277508 | F74: 89.9 | G74: 1961-11-01 | H74: 1961-11-01 | I74: 721.6 | J74: 29.98 | K74: 24.06937959 | L74: 108.1183408
A75: 1961-12-01 | B75: 66316 | C75: 6 | D75: 1.62866 | E75: 8693.007684 | F75: 87.2 | G75: 1961-12-01 | H75: 1961-12-01 | I75: 731.14 | J75: 30.01 | K75: 24.36321226 | L75: 109.4382211
A76: 1962-01-01 | B76: 66277 | C76: 5.8 | D76: 1.2987 | E76: 9336.498232 | F76: 93.7 | G76: 1962-01-01 | H76: 1962-01-01 | I76: 700 | J76: 30.04 | K76: 23.30226365 | L76: 104.6724978
A77: 1962-02-01 | B77: 66272 | C77: 5.5 | D77: 1.2987 | E77: 9747.745893 | F77: 97.8 | G77: 1962-02-01 | H77: 1962-02-01 | I77: 708.05 | J77: 30.11 | K77: 23.51544337 | L77: 105.6300895
A78: 1962-03-01 | B78: 66290 | C78: 5.6 | D78: 1.2945 | E78: 9614.910436 | F78: 96.4 | G78: 1962-03-01 | H78: 1962-03-01 | I78: 706.95 | J78: 30.17 | K78: 23.43221743 | L78: 105.2562431
A79: 1962-04-01 | B79: 66023 | C79: 5.6 | D79: 1.2945 | E79: 9576.183915 | F79: 96.1 | G79: 1962-04-01 | H79: 1962-04-01 | I79: 665.33 | J79: 30.21 | K79: 22.02350215 | L79: 98.92837088
A80: 1962-05-01 | B80: 66043 | C80: 5.5 | D80: 1.61812 | E80: =B80/(C80+D80) -> 9278.152096 | F80: 93.1 | G80: 1962-05-01 | H80: 1962-05-01 | I80: 613.36 | J80: 30.24 | K80: 20.28306878 | L80: 91.11043908
A81: 1962-06-01 | B81: 66069 | C81: 5.5 | D81: 1.29032 | E81: 9729.880182 | F81: 97.6 | G81: 1962-06-01 | H81: 1962-06-01 | I81: 561.28 | J81: 30.21 | K81: 18.57927838 | L81: 83.45710551
A82: 1962-07-01 | B82: 66167 | C82: 5.4 | D82: 1.29032 | E82: 9889.96042 | F82: 99.2 | G82: 1962-07-01 | H82: 1962-07-01 | I82: 597.93 | J82: 30.22 | K82: 19.78590338 | L82: 88.87719918
A83: 1962-08-01 | B83: 66204 | C83: 5.7 | D83: 1.28617 | E83: 9476.437018 | F83: 95.1 | G83: 1962-08-01 | H83: 1962-08-01 | I83: 609.18 | J83: 30.28 | K83: 20.11822985 | L83: 90.3699916
A84: 1962-09-01 | B84: 66282 | C84: 5.6 | D84: 1.28617 | E84: 9625.379565 | F84: 96.6 | G84: 1962-09-01 | H84: 1962-09-01 | I84: 578.98 | J84: 30.42 | K84: 19.03287311 | L84: 85.49462828
A85: 1962-10-01 | B85: 66318 | C85: 5.4 | D85: 1.28617 | E85: 9918.682893 | F85: 99.5 | G85: 1962-10-01 | H85: 1962-10-01 | I85: 589.77 | J85: 30.38 | K85: 19.41310072 | L85: 87.20258999
A86: 1962-11-01 | B86: 66334 | C86: 5.7 | D86: 0.96154 | E86: 9957.757516 | F86: 99.9 | G86: 1962-11-01 | H86: 1962-11-01 | I86: 649.3 | J86: 30.38 | K86: 21.37261356 | L86: 96.00461482
A87: 1962-12-01 | B87: 66349 | C87: 5.5 | D87: 1.28205 | E87: 9783.030205 | F87: 98.1 | G87: 1962-12-01 | H87: 1962-12-01 | I87: 652.1 | J87: 30.38 | K87: 21.46477946 | L87: 96.41861901
A88: 1963-01-01 | B88: 66390 | C88: 5.7 | D88: 0.96154 | E88: 9966.16398 | F88: 100 | G88: 1963-01-01 | H88: 1963-01-01 | I88: 682.85 | J88: 30.44 | K88: 22.4326544 | L88: 100.7662605
A89: 1963-02-01 | B89: 66405 | C89: 5.9 | D89: 1.28205 | E89: 9245.967377 | F89: 92.7 | G89: 1963-02-01 | H89: 1963-02-01 | I89: 662.94 | J89: 30.48 | K89: 21.75 | L89: 97.69981413
A90: 1963-03-01 | B90: 66422 | C90: 5.7 | D90: 1.27796 | E90: 9518.827852 | F90: 95.5 | G90: 1963-03-01 | H90: 1963-03-01 | I90: 682.52 | J90: 30.51 | K90: 22.37037037 | L90: 100.486484
A91: 1963-04-01 | B91: 66437 | C91: 5.7 | D91: 1.27796 | E91: 9520.977478 | F91: 95.5 | G91: 1963-04-01 | H91: 1963-04-01 | I91: 717.7 | J91: 30.48 | K91: 23.54658793 | L91: 105.7699891
A92: 1963-05-01 | B92: 66440 | C92: 5.9 | D92: 0.95541 | E92: 9691.615819 | F92: 97.2 | G92: 1963-05-01 | H92: 1963-05-01 | I92: 726.96 | J92: 30.51 | K92: =I92/J92 -> 23.82694199 | L92: =IF(J92="","",K92/$M$418) -> 107.0293243
A93: 1963-06-01 | B93: 66461 | C93: 5.6 | D93: 1.27389 | E93: 9668.615587 | F93: 97 | G93: 1963-06-01 | H93: 1963-06-01 | I93: 706.88 | J93: 30.61 | K93: 23.09310683 | L93: 103.7329768
A94: 1963-07-01 | B94: 66509 | C94: 5.6 | D94: 1.27389 | E94: 9675.598533 | F94: 97.1 | G94: 1963-07-01 | H94: 1963-07-01 | I94: 695.43 | J94: 30.69 | K94: 22.65982405 | L94: 101.7866941
A95: 1963-08-01 | B95: 66551 | C95: 5.4 | D95: 1.26984 | E95: 9977.900519 | F95: 100.1 | G95: 1963-08-01 | H95: 1963-08-01 | I95: 729.32 | J95: 30.75 | K95: 23.71772358 | L95: 106.5387211
A96: 1963-09-01 | B96: 66547 | C96: 5.5 | D96: 1.26984 | E96: 9829.922125 | F96: 98.6 | G96: 1963-09-01 | H96: 1963-09-01 | I96: 732.79 | J96: 30.72 | K96: 23.85384115 | L96: 107.1501538
A97: 1963-10-01 | B97: 66572 | C97: 5.5 | D97: 1.5873 | E97: 9393.139842 | F97: 94.2 | G97: 1963-10-01 | H97: 1963-10-01 | I97: 755.23 | J97: 30.75 | K97: 24.5603252 | L97: 110.3236417
A98: 1963-11-01 | B98: 66596 | C98: 5.7 | D98: 1.5873 | E98: 9138.638453 | F98: 91.7 | G98: 1963-11-01 | H98: 1963-11-01 | I98: 750.52 | J98: 30.78 | K98: 24.38336582 | L98: 109.5287498
A99: 1963-12-01 | B99: 66613 | C99: 5.5 | D99: 1.58228 | E99: 9405.586901 | F99: 94.3 | G99: 1963-12-01 | H99: 1963-12-01 | I99: 762.95 | J99: 30.88 | K99: 24.70693005 | L99: 110.9821827
A100: 1964-01-01 | B100: 66653 | C100: 5.6 | D100: 2.22222 | E100: 8520.982534 | F100: 85.5 | G100: 1964-01-01 | H100: 1964-01-01 | I100: 785.34 | J100: 30.94 | K100: 25.38267615 | L100: 114.0175973
A101: 1964-02-01 | B101: 66666 | C101: 5.4 | D101: 1.89873 | E101: 9133.917819 | F101: 91.6 | G101: 1964-02-01 | H101: 1964-02-01 | I101: 800.14 | J101: 30.91 | K101: 25.886121 | L101: 116.2790441
A102: 1964-03-01 | B102: 66679 | C102: 5.4 | D102: 1.57729 | E102: 9556.575691 | F102: 95.9 | G102: 1964-03-01 | H102: 1964-03-01 | I102: 813.29 | J102: 30.94 | K102: 26.28603749 | L102: 118.0754472
A103: 1964-04-01 | B103: 66702 | C103: 5.3 | D103: 1.57729 | E103: 9698.878483 | F103: 97.3 | G103: 1964-04-01 | H103: 1964-04-01 | I103: 810.77 | J103: 30.95 | K103: 26.19612278 | L103: 117.6715552
A104: 1964-05-01 | B104: 66724 | C104: 5.1 | D104: 1.57729 | E104: 9992.67667 | F104: 100.2 | G104: 1964-05-01 | H104: 1964-05-01 | I104: 820.56 | J104: 30.98 | K104: 26.48676566 | L104: 118.9771072
A105: 1964-06-01 | B105: 66749 | C105: 5.2 | D105: 1.57233 | E105: 9856.135185 | F105: 98.9 | G105: 1964-06-01 | H105: 1964-06-01 | I105: 831.5 | J105: 31.01 | K105: 26.81393099 | L105: 120.446716
A106: 1964-07-01 | B106: 66774 | C106: 4.9 | D106: 1.57233 | E106: 10316.84108 | F106: 103.5 | G106: 1964-07-01 | H106: 1964-07-01 | I106: 841.1 | J106: 31.02 | K106: 27.11476467 | L106: 121.7980445
A107: 1964-08-01 | B107: 66789 | C107: 5 | D107: 1.25392 | E107: 10679.54179 | F107: 107.1 | G107: 1964-08-01 | H107: 1964-08-01 | I107: 838.48 | J107: 31.05 | K107: 27.0041868 | L107: 121.3013347
A108: 1964-09-01 | B108: 66814 | C108: 5.1 | D108: 1.25392 | E108: 10515.39837 | F108: 105.5 | G108: 1964-09-01 | H108: 1964-09-01 | I108: 875.37 | J108: 31.08 | K108: 28.16505792 | L108: 126.5159045
A109: 1964-10-01 | B109: 66838 | C109: 5.1 | D109: 1.25 | E109: 10525.66929 | F109: 105.6 | G109: 1964-10-01 | H109: 1964-10-01 | I109: 873.08 | J109: 31.12 | K109: 28.05526992 | L109: 126.0227428
A110: 1964-11-01 | B110: 66862 | C110: 4.8 | D110: 1.5625 | E110: 10508.76228 | F110: 105.4 | G110: 1964-11-01 | H110: 1964-11-01 | I110: 875.43 | J110: 31.21 | K110: 28.04966357 | L110: 125.9975594
A111: 1964-12-01 | B111: 66885 | C111: 5 | D111: 1.24611 | E111: 10708.26482 | F111: 107.4 | G111: 1964-12-01 | H111: 1964-12-01 | I111: 874.13 | J111: 31.25 | K111: 27.97216 | L111: 125.6494176
A112: 1965-01-01 | B112: 66911 | C112: 4.9 | D112: 1.24224 | E112: 10893.5828 | F112: 109.3 | G112: 1965-01-01 | H112: 1965-01-01 | I112: 902.86 | J112: 31.28 | K112: 28.86381074 | L112: 129.6546641
A113: 1965-02-01 | B113: 66929 | C113: 5.1 | D113: 1.24224 | E113: 10552.89614 | F113: 105.9 | G113: 1965-02-01 | H113: 1965-02-01 | I113: 903.48 | J113: 31.28 | K113: 28.88363171 | L113: 129.7436988
A114: 1965-03-01 | B114: 66951 | C114: 4.7 | D114: 1.24224 | E114: 11266.9633 | F114: 113 | G114: 1965-03-01 | H114: 1965-03-01 | I114: 889.05 | J114: 31.31 | K114: 28.39508144 | L114: 127.5491577
A115: 1965-04-01 | B115: 66977 | C115: 4.8 | D115: 1.5528 | E115: 10542.91021 | F115: 105.8 | G115: 1965-04-01 | H115: 1965-04-01 | I115: 922.31 | J115: 31.38 | K115: 29.39165073 | L115: 132.0256926
A116: 1965-05-01 | B116: 66996 | C116: 4.6 | D116: 1.5528 | E116: 10888.70108 | F116: 109.2 | G116: 1965-05-01 | H116: 1965-05-01 | I116: 918.04 | J116: 31.48 | K116: 29.16264295 | L116: 130.9970021
A117: 1965-06-01 | B117: 67021 | C117: 4.6 | D117: 1.23839 | E117: 11479.36332 | F117: 115.1 | G117: 1965-06-01 | H117: 1965-06-01 | I117: 868.03 | J117: 31.61 | K117: 27.46061373 | L117: 123.3515796
A118: 1965-07-01 | B118: 66934 | C118: 4.4 | D118: 1.23839 | E118: 11871.11924 | F118: 119.1 | G118: 1965-07-01 | H118: 1965-07-01 | I118: 881.74 | J118: 31.58 | K118: 27.92083597 | L118: 125.4188729
A119: 1965-08-01 | B119: 66975 | C119: 4.4 | D119: 1.23839 | E119: 11878.39082 | F119: 119.2 | G119: 1965-08-01 | H119: 1965-08-01 | I119: 893.1 | J119: 31.55 | K119: 28.30744849 | L119: 127.1555152
A120: 1965-09-01 | B120: 67005 | C120: 4.3 | D120: 1.54799 | E120: 11457.78293 | F120: 114.9 | G120: 1965-09-01 | H120: 1965-09-01 | I120: 930.58 | J120: 31.62 | K120: 29.43010753 | L120: 132.1984384
A121: 1965-10-01 | B121: 67013 | C121: 4.2 | D121: 1.23457 | E121: 12330.87438 | F121: 123.7 | G121: 1965-10-01 | H121: 1965-10-01 | I121: 960.82 | J121: 31.65 | K121: 30.35766193 | L121: 136.3649622
A122: 1965-11-01 | B122: 67019 | C122: 4.1 | D122: 1.23077 | E122: 12572.10497 | F122: 126.1 | G122: 1965-11-01 | H122: 1965-11-01 | I122: 946.71 | J122: 31.75 | K122: 29.8176378 | L122: 133.9392032
A123: 1965-12-01 | B123: 67024 | C123: 4 | D123: 1.53846 | E123: 12101.55892 | F123: 121.4 | G123: 1965-12-01 | H123: 1965-12-01 | I123: 969.26 | J123: 31.85 | K123: 30.43202512 | L123: 136.6989976
A124: 1966-01-01 | B124: 67022 | C124: 4 | D124: 1.22699 | E124: 12822.29352 | F124: 128.6 | G124: 1966-01-01 | H124: 1966-01-01 | I124: 983.51 | J124: 31.88 | K124: 30.85037641 | L124: 138.5782088
A125: 1966-02-01 | B125: 67029 | C125: 3.8 | D125: 1.53374 | E125: 12566.97927 | F125: 126.1 | G125: 1966-02-01 | H125: 1966-02-01 | I125: 951.89 | J125: 32.08 | K125: 29.67238155 | L125: 133.2867201
A126: 1966-03-01 | B126: 67002 | C126: 3.8 | D126: 1.53374 | E126: 12561.91715 | F126: 126 | G126: 1966-03-01 | H126: 1966-03-01 | I126: 924.77 | J126: 32.18 | K126: 28.73741454 | L126: 129.0868993
A127: 1966-04-01 | B127: 67037 | C127: 3.8 | D127: 1.83486 | E127: 11896.83506 | F127: 119.3 | G127: 1966-04-01 | H127: 1966-04-01 | I127: 933.68 | J127: 32.28 | K127: 28.9244114 | L127: 129.926879
A128: 1966-05-01 | B128: 67096 | C128: 3.9 | D128: 2.14067 | E128: 11107.37716 | F128: 111.4 | G128: 1966-05-01 | H128: 1966-05-01 | I128: 884.07 | J128: 32.35 | K128: 27.32828439 | L128: 122.7571635
A129: 1966-06-01 | B129: 67098 | C129: 3.8 | D129: 2.44648 | E129: 10741.72974 | F129: 107.8 | G129: 1966-06-01 | H129: 1966-06-01 | I129: 870.1 | J129: 32.38 | K129: 26.87152563 | L129: 120.705428
A130: 1966-07-01 | B130: 67105 | C130: 3.8 | D130: 2.75229 | E130: 10241.45757 | F130: 102.7 | G130: 1966-07-01 | H130: 1966-07-01 | I130: 847.38 | J130: 32.45 | K130: 26.11340524 | L130: 117.2999926
A131: 1966-08-01 | B131: 67129 | C131: 3.8 | D131: 3.0581 | E131: 9788.279553 | F131: 98.2 | G131: 1966-08-01 | H131: 1966-08-01 | I131: 788.41 | J131: 32.65 | K131: 24.14732006 | L131: 108.4684451
A132: 1966-09-01 | B132: 67144 | C132: 3.7 | D132: 3.04878 | E132: 9949.057459 | F132: 99.8 | G132: 1966-09-01 | H132: 1966-09-01 | I132: 774.22 | J132: 32.75 | K132: 23.64030534 | L132: 106.1909627
A133: 1966-10-01 | B133: 67162 | C133: 3.7 | D133: 3.65854 | E133: 9127.082274 | F133: 91.6 | G133: 1966-10-01 | H133: 1966-10-01 | I133: 807.07 | J133: 32.85 | K133: 24.56834094 | L133: 110.359648
A134: 1966-11-01 | B134: 67179 | C134: 3.6 | D134: 3.34347 | E134: 9675.133615 | F134: 97.1 | G134: 1966-11-01 | H134: 1966-11-01 | I134: 791.59 | J134: 32.88 | K134: 24.07512165 | L134: 108.1441338
A135: 1966-12-01 | B135: 67212 | C135: 3.8 | D135: 3.33333 | E135: 9422.247394 | F135: 94.5 | G135: 1966-12-01 | H135: 1966-12-01 | I135: 785.69 | J135: 32.92 | K135: 23.86664642 | L135: 107.2076744
A136: 1967-01-01 | B136: 67275 | C136: 3.9 | D136: 3.63636 | E136: 8926.723246 | F136: 89.5 | G136: 1967-01-01 | H136: 1967-01-01 | I136: 849.89 | J136: 32.9 | K136: 25.8325228 | L136: 116.0382839
A137: 1967-02-01 | B137: 67318 | C137: 3.8 | D137: 3.32326 | E137: 9450.44825 | F137: 94.8 | G137: 1967-02-01 | H137: 1967-02-01 | I137: 839.37 | J137: 33 | K137: 25.43545455 | L137: 114.254675
A138: 1967-03-01 | B138: 67348 | C138: 3.8 | D138: 3.62538 | E138: 9069.973523 | F138: 91 | G138: 1967-03-01 | H138: 1967-03-01 | I138: 865.98 | J138: 33 | K138: 26.24181818 | L138: 117.8768165
A139: 1967-04-01 | B139: 67357 | C139: 3.8 | D139: 3.3033 | E139: 9482.494052 | F139: 95.1 | G139: 1967-04-01 | H139: 1967-04-01 | I139: 897.05 | J139: 33.1 | K139: 27.10120846 | L139: 121.7371508
A140: 1967-05-01 | B140: 67398 | C140: 3.8 | D140: 3.29341 | E140: 9501.49505 | F140: 95.3 | G140: 1967-05-01 | H140: 1967-05-01 | I140: 852.56 | J140: 33.1 | K140: 25.7570997 | L140: 115.6994875
A141: 1967-06-01 | B141: 67475 | C141: 3.9 | D141: 3.28358 | E141: 9392.94892 | F141: 94.2 | G141: 1967-06-01 | H141: 1967-06-01 | I141: 860.26 | J141: 33.3 | K141: 25.83363363 | L141: 116.0432738
A142: 1967-07-01 | B142: 67579 | C142: 3.8 | D142: 3.27381 | E142: 9553.408983 | F142: 95.8 | G142: 1967-07-01 | H142: 1967-07-01 | I142: 904.24 | J142: 33.4 | K142: 27.07305389 | L142: 121.610682
A143: 1967-08-01 | B143: 67788 | C143: 3.8 | D143: 3.56083 | E143: 9209.28754 | F143: 92.4 | G143: 1967-08-01 | H143: 1967-08-01 | I143: 901.29 | J143: 33.5 | K143: 26.9041791 | L143: 120.8521056
A144: 1967-09-01 | B144: 67908 | C144: 3.8 | D144: 3.5503 | E144: =B144/(C144+D144) -> 9238.806579 | F144: 92.7 | G144: 1967-09-01 | H144: 1967-09-01 | I144: 926.66 | J144: 33.6 | K144: 27.57916667 | L144: 123.884113
A145: 1967-10-01 | B145: 67973 | C145: 4 | D145: 3.23529 | E145: 9394.647623 | F145: 94.2 | G145: 1967-10-01 | H145: 1967-10-01 | I145: 879.74 | J145: 33.7 | K145: 26.10504451 | L145: 117.2624366
A146: 1967-11-01 | B146: 68036 | C146: 3.9 | D146: 3.52941 | E146: 9157.658549 | F146: 91.9 | G146: 1967-11-01 | H146: 1967-11-01 | I146: 875.81 | J146: 33.9 | K146: 25.83510324 | L146: 116.0498752
A147: 1967-12-01 | B147: 68102 | C147: 3.8 | D147: 3.81232 | E147: 8946.287071 | F147: 89.7 | G147: 1967-12-01 | H147: 1967-12-01 | I147: 905.11 | J147: 34 | K147: 26.62088235 | L147: 119.5795521
A148: 1968-01-01 | B148: 68170 | C148: 3.7 | D148: 3.80117 | E148: 9087.915618 | F148: 91.2 | G148: 1968-01-01 | H148: 1968-01-01 | I148: 855.47 | J148: 34.1 | K148: 25.08709677 | L148: 112.6898709
A149: 1968-02-01 | B149: 68232 | C149: 3.8 | D149: 4.38596 | E149: 8335.247179 | F149: 83.6 | G149: 1968-02-01 | H149: 1968-02-01 | I149: 840.5 | J149: 34.2 | K149: 24.57602339 | L149: 110.3941571
A150: 1968-03-01 | B150: 68293 | C150: 3.7 | D150: 4.37318 | E150: 8459.244065 | F150: 84.9 | G150: 1968-03-01 | H150: 1968-03-01 | I150: 840.67 | J150: 34.3 | K150: 24.50932945 | L150: 110.0945716
A151: 1968-04-01 | B151: 68356 | C151: 3.5 | D151: 4.36047 | E151: 8696.172112 | F151: 87.2 | G151: 1968-04-01 | H151: 1968-04-01 | I151: 912.22 | J151: 34.4 | K151: 26.51802326 | L151: 119.1175146
A152: 1968-05-01 | B152: 68418 | C152: 3.5 | D152: 4.34783 | E152: 8718.078756 | F152: 87.5 | G152: 1968-05-01 | H152: 1968-05-01 | I152: 899 | J152: 34.5 | K152: 26.05797101 | L152: 117.050985
A153: 1968-06-01 | B153: 68473 | C153: 3.7 | D153: 4.62428 | E153: 8225.696397 | F153: 82.5 | G153: 1968-06-01 | H153: 1968-06-01 | I153: 897.8 | J153: 34.7 | K153: 25.87319885 | L153: 116.2209985
A154: 1968-07-01 | B154: 68522 | C154: 3.7 | D154: 4.89914 | E154: 7968.471266 | F154: 79.9 | G154: 1968-07-01 | H154: 1968-07-01 | I154: 883 | J154: 34.9 | K154: 25.3008596 | L154: 113.6500818
A155: 1968-08-01 | B155: 68557 | C155: 3.5 | D155: 4.58453 | E155: 8480.022957 | F155: 85.1 | G155: 1968-08-01 | H155: 1968-08-01 | I155: 896.01 | J155: 35 | K155: 25.60028571 | L155: 114.9950876
A156: 1968-09-01 | B156: 68607 | C156: 3.4 | D156: 4.85714 | E156: 8308.809103 | F156: 83.3 | G156: 1968-09-01 | H156: 1968-09-01 | I156: 935.79 | J156: 35.1 | K156: =I156/J156 -> 26.66068376 | L156: =IF(J156="","",K156/$M$418) -> 119.7583378
A157: 1968-10-01 | B157: 68651 | C157: 3.4 | D157: 5.12821 | E157: 8049.87213 | F157: 80.7 | G157: 1968-10-01 | H157: 1968-10-01 | I157: 952.39 | J157: 35.3 | K157: 26.97988669 | L157: 121.19218
A158: 1968-11-01 | B158: 68734 | C158: 3.4 | D158: 5.39773 | E158: 7812.697139 | F158: 78.4 | G158: 1968-11-01 | H158: 1968-11-01 | I158: 985.08 | J158: 35.4 | K158: 27.82711864 | L158: 124.9978997
A159: 1968-12-01 | B159: 68793 | C159: 3.4 | D159: 5.08475 | E159: 8107.840537 | F159: 81.3 | G159: 1968-12-01 | H159: 1968-12-01 | I159: 943.75 | J159: 35.6 | K159: 26.50983146 | L159: 119.0807175
A160: 1969-01-01 | B160: 68857 | C160: 3.4 | D160: 5.07042 | E160: 8129.112842 | F160: 81.5 | G160: 1969-01-01 | H160: 1969-01-01 | I160: 946.05 | J160: 35.7 | K160: 26.5 | L160: 119.0365551
A161: 1969-02-01 | B161: 68900 | C161: 3.4 | D161: 5.32213 | E161: 7899.44658 | F161: 79.2 | G161: 1969-02-01 | H161: 1969-02-01 | I161: 905.21 | J161: 35.8 | K161: 25.28519553 | L161: 113.5797197
A162: 1969-03-01 | B162: 68942 | C162: 3.4 | D162: 5.58659 | E162: 7671.652985 | F162: 77 | G162: 1969-03-01 | H162: 1969-03-01 | I162: 935.48 | J162: 36.1 | K162: 25.91357341 | L162: 116.4023589
A163: 1969-04-01 | B163: 68988 | C163: 3.4 | D163: 6.12813 | E163: 7240.455367 | F163: 72.6 | G163: 1969-04-01 | H163: 1969-04-01 | I163: 950.18 | J163: 36.3 | K163: 26.17575758 | L163: 117.5800759
A164: 1969-05-01 | B164: 69054 | C164: 3.4 | D164: 5.83333 | E164: 7478.775263 | F164: 75 | G164: 1969-05-01 | H164: 1969-05-01 | I164: 937.56 | J164: 36.4 | K164: 25.75714286 | L164: 115.6996814
A165: 1969-06-01 | B165: 69106 | C165: 3.5 | D165: 5.8011 | E165: 7429.873886 | F165: 74.5 | G165: 1969-06-01 | H165: 1969-06-01 | I165: 873.19 | J165: 36.6 | K165: 23.85765027 | L165: 107.1672642
A166: 1969-07-01 | B166: 69208 | C166: 3.5 | D166: 5.76923 | E166: 7466.423856 | F166: 74.9 | G166: 1969-07-01 | H166: 1969-07-01 | I166: 815.47 | J166: 36.8 | K166: 22.15951087 | L166: 99.53931462
A167: 1969-08-01 | B167: 69258 | C167: 3.5 | D167: 6.0274 | E167: 7269.349455 | F167: 72.9 | G167: 1969-08-01 | H167: 1969-08-01 | I167: 836.72 | J167: 36.9 | K167: 22.67533875 | L167: 101.8563854
A168: 1969-09-01 | B168: 69302 | C168: 3.7 | D168: 5.99455 | E168: 7148.552537 | F168: 71.7 | G168: 1969-09-01 | H168: 1969-09-01 | I168: 813.09 | J168: 37.1 | K168: 21.91617251 | L168: 98.44625197
A169: 1969-10-01 | B169: 69362 | C169: 3.7 | D169: 5.96206 | E169: 7178.80038 | F169: 72 | G169: 1969-10-01 | H169: 1969-10-01 | I169: 855.99 | J169: 37.3 | K169: 22.94879357 | L169: 103.0847295
A170: 1969-11-01 | B170: 69424 | C170: 3.5 | D170: 5.66038 | E170: 7578.7249 | F170: 76 | G170: 1969-11-01 | H170: 1969-11-01 | I170: 812.3 | J170: 37.5 | K170: 21.66133333 | L170: 97.30152829
A171: 1969-12-01 | B171: 69541 | C171: 3.5 | D171: 5.91398 | E171: 7386.992537 | F171: 74.1 | G171: 1969-12-01 | H171: 1969-12-01 | I171: 800.36 | J171: 37.7 | K171: 21.22970822 | L171: 95.36269183
A172: 1970-01-01 | B172: 69604 | C172: 3.9 | D172: 6.16622 | E172: 6914.611443 | F172: 69.4 | G172: 1970-01-01 | H172: 1970-01-01 | I172: 744.06 | J172: 37.9 | K172: 19.63218997 | L172: 88.18672696
A173: 1970-02-01 | B173: 69672 | C173: 4.2 | D173: 5.85106 | E173: 6931.806198 | F173: 69.5 | G173: 1970-02-01 | H173: 1970-02-01 | I173: 777.59 | J173: 38.1 | K173: 20.40918635 | L173: 91.67695232
A174: 1970-03-01 | B174: 69743 | C174: 4.4 | D174: 6.08466 | E174: 6651.908598 | F174: 66.7 | G174: 1970-03-01 | H174: 1970-03-01 | I174: 785.57 | J174: 38.3 | K174: 20.51096606 | L174: 92.13414121
A175: 1970-04-01 | B175: 69821 | C175: 4.6 | D175: 6.03675 | E175: 6564.129081 | F175: 65.8 | G175: 1970-04-01 | H175: 1970-04-01 | I175: 736.07 | J175: 38.5 | K175: 19.1187013 | L175: 85.88016383
A176: 1970-05-01 | B176: 69903 | C176: 4.8 | D176: 6.29921 | E176: 6298.015805 | F176: 63.2 | G176: 1970-05-01 | H176: 1970-05-01 | I176: 700.44 | J176: 38.6 | K176: 18.14611399 | L176: 81.51135466
A177: 1970-06-01 | B177: 69967 | C177: 4.9 | D177: 6.52742 | E177: 6122.729365 | F177: 61.4 | G177: 1970-06-01 | H177: 1970-06-01 | I177: 683.53 | J177: 38.8 | K177: 17.61675258 | L177: 79.13349206
A178: 1970-07-01 | B178: 70043 | C178: 5 | D178: 6.23377 | E178: 6235.039528 | F178: 62.5 | G178: 1970-07-01 | H178: 1970-07-01 | I178: 734.12 | J178: 38.9 | K178: 18.87197943 | L178: 84.77190266
A179: 1970-08-01 | B179: 70093 | C179: 5.1 | D179: 6.20155 | E179: 6202.069628 | F179: 62.2 | G179: 1970-08-01 | H179: 1970-08-01 | I179: 764.58 | J179: 39 | K179: 19.60461538 | L179: 88.06286341
A180: 1970-09-01 | B180: 70138 | C180: 5.4 | D180: 6.16967 | E180: 6062.229951 | F180: 60.8 | G180: 1970-09-01 | H180: 1970-09-01 | I180: 760.68 | J180: 39.2 | K180: 19.40510204 | L180: 87.16666034
A181: 1970-10-01 | B181: 70210 | C181: 5.5 | D181: 6.13811 | E181: 6032.766489 | F181: 60.5 | G181: 1970-10-01 | H181: 1970-10-01 | I181: 755.61 | J181: 39.4 | K181: 19.17791878 | L181: 86.14616553
A182: 1970-11-01 | B182: 70284 | C182: 5.9 | D182: 6.63265 | E182: 5608.071717 | F182: 56.3 | G182: 1970-11-01 | H182: 1970-11-01 | I182: 794.09 | J182: 39.6 | K182: 20.05277778 | L182: 90.07598444
A183: 1970-12-01 | B183: 70340 | C183: 6.1 | D183: 6.59898 | E183: 5539.027544 | F183: 55.6 | G183: 1970-12-01 | H183: 1970-12-01 | I183: 838.92 | J183: 39.8 | K183: 21.07839196 | L183: 94.68298743
A184: 1971-01-01 | B184: 70414 | C184: 5.9 | D184: 6.31313 | E184: 5765.434414 | F184: =IF(D184="","",E184/$N$418) -> 57.8329398 | G184: 1971-01-01 | H184: 1971-01-01 | I184: 868.5 | J184: 39.9 | K184: 21.76691729 | L184: 97.77580569
A185: 1971-02-01 | B185: 70472 | C185: 5.9 | D185: 6.03015 | E185: 5907.050624 | F185: 59.25348874 | G185: 1971-02-01 | H185: 1971-02-01 | I185: 878.83 | J185: 39.9 | K185: 22.02581454 | L185: 98.93875799
A186: 1971-03-01 | B186: 70511 | C186: 6 | D186: 5.23691 | E186: 6274.945692 | F186: 62.9438357 | G186: 1971-03-01 | H186: 1971-03-01 | I186: 904.37 | J186: 40 | K186: 22.60925 | L186: 101.5595183
A187: 1971-04-01 | B187: 70588 | C187: 5.9 | D187: 4.9505 | E187: 6505.506659 | F187: 65.25658744 | G187: 1971-04-01 | H187: 1971-04-01 | I187: 941.75 | J187: 40.1 | K187: 23.48503741 | L187: 105.4935076
A188: 1971-05-01 | B188: 70663 | C188: 5.9 | D188: 5.18519 | E188: 6374.541167 | F188: 63.94287561 | G188: 1971-05-01 | H188: 1971-05-01 | I188: 907.81 | J188: 40.3 | K188: 22.52630273 | L188: 101.1869237
A189: 1971-06-01 | B189: 70721 | C189: 5.9 | D189: 4.90196 | E189: 6547.052572 | F189: 65.67333354 | G189: 1971-06-01 | H189: 1971-06-01 | I189: 891.14 | J189: 40.5 | K189: 22.00345679 | L189: 98.83832821
A190: 1971-07-01 | B190: 70789 | C190: 6 | D190: 4.88998 | E190: 6500.379248 | F190: 65.2051545 | G190: 1971-07-01 | H190: 1971-07-01 | I190: 858.43 | J190: 40.6 | K190: 21.14359606 | L190: 94.97588069
A191: 1971-08-01 | B191: 70938 | C191: 6.1 | D191: 4.62287 | E191: 6615.579598 | F191: 66.36072656 | G191: 1971-08-01 | H191: 1971-08-01 | I191: 898.07 | J191: 40.7 | K191: 22.06560197 | L191: 99.11748095
A192: 1971-09-01 | B192: 71087 | C192: 6 | D192: 4.11622 | E192: 7027.031836 | F192: 70.48799449 | G192: 1971-09-01 | H192: 1971-09-01 | I192: 887.19 | J192: 40.8 | K192: 21.74485294 | L192: 97.67669382
A193: 1971-10-01 | B193: 71238 | C193: 5.8 | D193: 3.85542 | E193: 7378.032235 | F193: 74.0088714 | G193: 1971-10-01 | H193: 1971-10-01 | I193: 839 | J193: 40.9 | K193: 20.51344743 | L193: 92.14528741
A194: 1971-11-01 | B194: 71362 | C194: 6 | D194: 3.34928 | E194: 7632.887238 | F194: 76.56531607 | G194: 1971-11-01 | H194: 1971-11-01 | I194: 831.34 | J194: 41 | K194: 20.27658537 | L194: 91.08131592
A195: 1971-12-01 | B195: 71514 | C195: 6 | D195: 3.09524 | E195: 7862.794165 | F195: 78.87150715 | G195: 1971-12-01 | H195: 1971-12-01 | I195: 890.2 | J195: 41.1 | K195: 21.6593674 | L195: 97.29269741
A196: 1972-01-01 | B196: 71723 | C196: 5.8 | D196: 3.32542 | E196: 7859.693033 | F196: 78.84039978 | G196: 1972-01-01 | H196: 1972-01-01 | I196: 902.17 | J196: 41.2 | K196: 21.8973301 | L196: 98.36161289
A197: 1972-02-01 | B197: 71878 | C197: 5.7 | D197: 3.31754 | E197: 7970.910026 | F197: 79.95601487 | G197: 1972-02-01 | H197: 1972-02-01 | I197: 928.13 | J197: 41.4 | K197: 22.41859903 | L197: 100.7031245
A198: 1972-03-01 | B198: 71997 | C198: 5.8 | D198: 3.31754 | E198: 7896.537882 | F198: 79.2099896 | G198: 1972-03-01 | H198: 1972-03-01 | I198: 940.7 | J198: 41.4 | K198: 22.72222222 | L198: 102.0669833
A199: 1972-04-01 | B199: 72138 | C199: 5.7 | D199: 3.30189 | E199: 8013.650467 | F199: 80.38474324 | G199: 1972-04-01 | H199: 1972-04-01 | I199: 954.17 | J199: 41.5 | K199: 22.99204819 | L199: 103.2790269
A200: 1972-05-01 | B200: 72293 | C200: 5.7 | D200: 3.05164 | E200: 8260.508887 | F200: 82.86097438 | G200: 1972-05-01 | H200: 1972-05-01 | I200: 960.72 | J200: 41.6 | K200: 23.09423077 | L200: 103.7380255
A201: 1972-06-01 | B201: 72393 | C201: 5.7 | D201: 2.80374 | E201: 8513.077775 | F201: 85.39448707 | G201: 1972-06-01 | H201: 1972-06-01 | I201: 929.03 | J201: 41.7 | K201: 22.27889688 | L201: 100.0755901
A202: 1972-07-01 | B202: 72538 | C202: 5.6 | D202: 2.7972 | E202: 8638.355642 | F202: 86.65114647 | G202: 1972-07-01 | H202: 1972-07-01 | I202: 924.74 | J202: 41.8 | K202: 22.12296651 | L202: 99.37515934
A203: 1972-08-01 | B203: 72648 | C203: 5.6 | D203: 3.02326 | E203: 8424.656105 | F203: 84.50753133 | G203: 1972-08-01 | H203: 1972-08-01 | I203: 963.73 | J203: 41.9 | K203: 23.00071599 | L203: 103.3179622
A204: 1972-09-01 | B204: 72761 | C204: 5.5 | D204: 3.02326 | E204: 8536.757062 | F204: 85.63201346 | G204: 1972-09-01 | H204: 1972-09-01 | I204: 953.27 | J204: 42.1 | K204: 22.64299287 | L204: 101.7110894
A205: 1972-10-01 | B205: 72854 | C205: 5.6 | D205: 3.01624 | E205: 8455.428354 | F205: 84.81620705 | G205: 1972-10-01 | H205: 1972-10-01 | I205: 955.52 | J205: 42.2 | K205: 22.64265403 | L205: 101.7095674
... 971 more rows

Sheet URLs
C1: DATA | D1: SOURCE | E1: VALUES
B2: Tocalino Index | C2: - Population Level - 25-54 Yrs. | D2: LNU00000060 | E2: Fed Spreadsheet (population 25-54yrs) lin | G2: 1
C3: - Unemployment Rate | D3: UNRATE | E3: Fed Spreadsheet (unemployment rate) lin | H3: 2
C4: - Core Inflation Rate | D4: CPILFESL | E4: Fed Spreadsheet (core inflation rate) pc1 | I4: 3
B8: Tocalino Index 1990-07-01 = 100 | C8: - Tocalino Index & Wilshire 5000 Price Index | D8: qQN7 | E8: Fed Spreadsheet (Tocalino Index vs. USA Stocks)
B10: Tocalino Index = | C10: https://fred.stlouisfed.org/graph/fredgraph.xls?id=LNU00000060_UNRATE_CPILFESL&fml=a%2F%28b%2Bc%29&fq=Monthly&fam=eop&fgst=nbd&fgsnd=1990-07-01&line_index=1&transformation=lin_lin_pc1
B11: Stocks / Inflation = | C11: https://fred.stlouisfed.org/graph/fredgraph.xls?id=WILL5000PR_CPIAUCNS&fml=a%2Fb&fq=Monthly&fam=eop&fgst=nbd&fgsnd=1990-07-01&line_index=1&transformation=lin_lin
C13: DATA | D13: SOURCE | E13: VALUES
B14: USA Stocks adjusted to inflation | C14: - Wilshire 5000 Price Index | D14: WILL5000PR | E14: Fed Spreadsheet (Wilshire 5000) eop lin | G14: 4
C15: - Dow Jones Industrial Average | D15: DJIA | E15: Fed Spreadsheet (Dow Jones Ind Avg) eop lin | I15: 6
C16: - Inflation Rate | D16: CPIAUCSL | E16: Fed Spreadsheet (inflation rate) pc1 | J16: 7

Sheet DJIA
A1: FRED Graph Observations
A2: Federal Reserve Economic Data
A3: Link: https://fred.stlouisfed.org
A4: Help: https://fred.stlouisfed.org/help-faq
A5: Economic Research Division
A6: Federal Reserve Bank of St. Louis
A8: DJIA | B8: Dow Jones Industrial Average, Index, Monthly, Not Seasonally Adjusted
A10: Frequency: Monthly
A11: observation_date | B11: DJIA
A12: 2011-01-01 | B12: 11891.93
A13: 2011-02-01 | B13: 12226.34
A14: 2011-03-01 | B14: 12319.73
A15: 2011-04-01 | B15: 12810.54
A16: 2011-05-01 | B16: 12569.79
A17: 2011-06-01 | B17: 12414.34
A18: 2011-07-01 | B18: 12143.24
A19: 2011-08-01 | B19: 11613.53
A20: 2011-09-01 | B20: 10913.38
A21: 2011-10-01 | B21: 11955.01
A22: 2011-11-01 | B22: 12045.68
A23: 2011-12-01 | B23: 12217.56
A24: 2012-01-01 | B24: 12632.91
A25: 2012-02-01 | B25: 12952.07
A26: 2012-03-01 | B26: 13212.04
A27: 2012-04-01 | B27: 13213.63
A28: 2012-05-01 | B28: 12393.45
A29: 2012-06-01 | B29: 12880.09
A30: 2012-07-01 | B30: 13008.68
A31: 2012-08-01 | B31: 13090.84
A32: 2012-09-01 | B32: 13437.13
A33: 2012-10-01 | B33: 13096.46
A34: 2012-11-01 | B34: 13025.58
A35: 2012-12-01 | B35: 13104.14
A36: 2013-01-01 | B36: 13860.58
A37: 2013-02-01 | B37: 14054.49
A38: 2013-03-01 | B38: 14578.54
A39: 2013-04-01 | B39: 14839.8
A40: 2013-05-01 | B40: 15115.57
A41: 2013-06-01 | B41: 14909.6
A42: 2013-07-01 | B42: 15499.54
A43: 2013-08-01 | B43: 14810.31
A44: 2013-09-01 | B44: 15129.67
A45: 2013-10-01 | B45: 15545.75
A46: 2013-11-01 | B46: 16086.41
A47: 2013-12-01 | B47: 16576.66
A48: 2014-01-01 | B48: 15698.85
A49: 2014-02-01 | B49: 16321.71
A50: 2014-03-01 | B50: 16457.66
A51: 2014-04-01 | B51: 16580.84
A52: 2014-05-01 | B52: 16717.17
A53: 2014-06-01 | B53: 16826.6
A54: 2014-07-01 | B54: 16563.3
A55: 2014-08-01 | B55: 17098.45
A56: 2014-09-01 | B56: 17042.9
A57: 2014-10-01 | B57: 17390.52
A58: 2014-11-01 | B58: 17828.24
A59: 2014-12-01 | B59: 17823.07
A60: 2015-01-01 | B60: 17164.95
A61: 2015-02-01 | B61: 18132.7
A62: 2015-03-01 | B62: 17776.12
A63: 2015-04-01 | B63: 17840.52
A64: 2015-05-01 | B64: 18010.68
A65: 2015-06-01 | B65: 17619.51
A66: 2015-07-01 | B66: 17689.86
A67: 2015-08-01 | B67: 16528.03
A68: 2015-09-01 | B68: 16284.7
A69: 2015-10-01 | B69: 17663.54
A70: 2015-11-01 | B70: 17719.92
A71: 2015-12-01 | B71: 17425.03
A72: 2016-01-01 | B72: 16466.3
A73: 2016-02-01 | B73: 16516.5
A74: 2016-03-01 | B74: 17685.09
A75: 2016-04-01 | B75: 17773.64
A76: 2016-05-01 | B76: 17787.2
A77: 2016-06-01 | B77: 17929.99
A78: 2016-07-01 | B78: 18432.24
A79: 2016-08-01 | B79: 18400.88
A80: 2016-09-01 | B80: 18308.15
A81: 2016-10-01 | B81: 18142.42
A82: 2016-11-01 | B82: 19123.58
A83: 2016-12-01 | B83: 19762.6
A84: 2017-01-01 | B84: 19864.09
A85: 2017-02-01 | B85: 20812.24
A86: 2017-03-01 | B86: 20663.22
A87: 2017-04-01 | B87: 20940.51
A88: 2017-05-01 | B88: 21008.65
A89: 2017-06-01 | B89: 21349.63
A90: 2017-07-01 | B90: 21891.12
A91: 2017-08-01 | B91: 21948.1
A92: 2017-09-01 | B92: 22405.09
A93: 2017-10-01 | B93: 23377.24
A94: 2017-11-01 | B94: 24272.35
A95: 2017-12-01 | B95: 24719.22
A96: 2018-01-01 | B96: 26149.39
A97: 2018-02-01 | B97: 25029.2
A98: 2018-03-01 | B98: 24103.11
A99: 2018-04-01 | B99: 24163.15
A100: 2018-05-01 | B100: 24415.84
A101: 2018-06-01 | B101: 24271.41
A102: 2018-07-01 | B102: 25415.19
A103: 2018-08-01 | B103: 25964.82
A104: 2018-09-01 | B104: 26458.31
A105: 2018-10-01 | B105: 25115.76
A106: 2018-11-01 | B106: 25538.46
A107: 2018-12-01 | B107: 23327.46
A108: 2019-01-01 | B108: 24999.67
A109: 2019-02-01 | B109: 25916
A110: 2019-03-01 | B110: 25928.68
A111: 2019-04-01 | B111: 26592.91
A112: 2019-05-01 | B112: 24815.04
A113: 2019-06-01 | B113: 26599.96
A114: 2019-07-01 | B114: 26864.27
A115: 2019-08-01 | B115: 26403.28
A116: 2019-09-01 | B116: 26916.83
A117: 2019-10-01 | B117: 27046.23
A118: 2019-11-01 | B118: 28051.41
A119: 2019-12-01 | B119: 28538.44
A120: 2020-01-01 | B120: 28256.03
A121: 2020-02-01 | B121: 25409.36
A122: 2020-03-01 | B122: 21917.16
A123: 2020-04-01 | B123: 24345.72
A124: 2020-05-01 | B124: =NA() -> 

Sheet CPIAUCSL
A1: FRED Graph Observations
A2: Federal Reserve Economic Data
A3: Link: https://fred.stlouisfed.org
A4: Help: https://fred.stlouisfed.org/help-faq
A5: Economic Research Division
A6: Federal Reserve Bank of St. Louis
A8: CPIAUCSL | B8: Consumer Price Index for All Urban Consumers: All Items in U.S. City Average, Index 1982-1984=100, Monthly, Seasonally Adjusted
A10: Frequency: Monthly
A11: observation_date | B11: CPIAUCSL
A12: 1947-01-01 | B12: 21.48
A13: 1947-02-01 | B13: 21.62
A14: 1947-03-01 | B14: 22
A15: 1947-04-01 | B15: 22
A16: 1947-05-01 | B16: 21.95
A17: 1947-06-01 | B17: 22.08
A18: 1947-07-01 | B18: 22.23
A19: 1947-08-01 | B19: 22.4
A20: 1947-09-01 | B20: 22.84
A21: 1947-10-01 | B21: 22.91
A22: 1947-11-01 | B22: 23.06
A23: 1947-12-01 | B23: 23.41
A24: 1948-01-01 | B24: 23.68
A25: 1948-02-01 | B25: 23.67
A26: 1948-03-01 | B26: 23.5
A27: 1948-04-01 | B27: 23.82
A28: 1948-05-01 | B28: 24.01
A29: 1948-06-01 | B29: 24.15
A30: 1948-07-01 | B30: 24.4
A31: 1948-08-01 | B31: 24.43
A32: 1948-09-01 | B32: 24.36
A33: 1948-10-01 | B33: 24.31
A34: 1948-11-01 | B34: 24.16
A35: 1948-12-01 | B35: 24.05
A36: 1949-01-01 | B36: 24.01
A37: 1949-02-01 | B37: 23.91
A38: 1949-03-01 | B38: 23.91
A39: 1949-04-01 | B39: 23.92
A40: 1949-05-01 | B40: 23.91
A41: 1949-06-01 | B41: 23.92
A42: 1949-07-01 | B42: 23.7
A43: 1949-08-01 | B43: 23.7
A44: 1949-09-01 | B44: 23.75
A45: 1949-10-01 | B45: 23.67
A46: 1949-11-01 | B46: 23.7
A47: 1949-12-01 | B47: 23.61
A48: 1950-01-01 | B48: 23.51
A49: 1950-02-01 | B49: 23.61
A50: 1950-03-01 | B50: 23.64
A51: 1950-04-01 | B51: 23.65
A52: 1950-05-01 | B52: 23.77
A53: 1950-06-01 | B53: 23.88
A54: 1950-07-01 | B54: 24.07
A55: 1950-08-01 | B55: 24.2
A56: 1950-09-01 | B56: 24.34
A57: 1950-10-01 | B57: 24.5
A58: 1950-11-01 | B58: 24.6
A59: 1950-12-01 | B59: 24.98
A60: 1951-01-01 | B60: 25.38
A61: 1951-02-01 | B61: 25.83
A62: 1951-03-01 | B62: 25.88
A63: 1951-04-01 | B63: 25.92
A64: 1951-05-01 | B64: 25.99
A65: 1951-06-01 | B65: 25.93
A66: 1951-07-01 | B66: 25.91
A67: 1951-08-01 | B67: 25.86
A68: 1951-09-01 | B68: 26.03
A69: 1951-10-01 | B69: 26.16
A70: 1951-11-01 | B70: 26.32
A71: 1951-12-01 | B71: 26.47
A72: 1952-01-01 | B72: 26.45
A73: 1952-02-01 | B73: 26.41
A74: 1952-03-01 | B74: 26.39
A75: 1952-04-01 | B75: 26.46
A76: 1952-05-01 | B76: 26.47
A77: 1952-06-01 | B77: 26.53
A78: 1952-07-01 | B78: 26.68
A79: 1952-08-01 | B79: 26.69
A80: 1952-09-01 | B80: 26.63
A81: 1952-10-01 | B81: 26.69
A82: 1952-11-01 | B82: 26.69
A83: 1952-12-01 | B83: 26.71
A84: 1953-01-01 | B84: 26.64
A85: 1953-02-01 | B85: 26.59
A86: 1953-03-01 | B86: 26.63
A87: 1953-04-01 | B87: 26.69
A88: 1953-05-01 | B88: 26.7
A89: 1953-06-01 | B89: 26.77
A90: 1953-07-01 | B90: 26.79
A91: 1953-08-01 | B91: 26.85
A92: 1953-09-01 | B92: 26.89
A93: 1953-10-01 | B93: 26.95
A94: 1953-11-01 | B94: 26.85
A95: 1953-12-01 | B95: 26.87
A96: 1954-01-01 | B96: 26.94
A97: 1954-02-01 | B97: 26.99
A98: 1954-03-01 | B98: 26.93
A99: 1954-04-01 | B99: 26.86
A100: 1954-05-01 | B100: 26.93
A101: 1954-06-01 | B101: 26.94
A102: 1954-07-01 | B102: 26.86
A103: 1954-08-01 | B103: 26.85
A104: 1954-09-01 | B104: 26.81
A105: 1954-10-01 | B105: 26.72
A106: 1954-11-01 | B106: 26.78
A107: 1954-12-01 | B107: 26.77
A108: 1955-01-01 | B108: 26.77
A109: 1955-02-01 | B109: 26.82
A110: 1955-03-01 | B110: 26.79
A111: 1955-04-01 | B111: 26.79
A112: 1955-05-01 | B112: 26.77
A113: 1955-06-01 | B113: 26.71
A114: 1955-07-01 | B114: 26.76
A115: 1955-08-01 | B115: 26.72
A116: 1955-09-01 | B116: 26.85
A117: 1955-10-01 | B117: 26.82
A118: 1955-11-01 | B118: 26.88
A119: 1955-12-01 | B119: 26.87
A120: 1956-01-01 | B120: 26.83
A121: 1956-02-01 | B121: 26.86
A122: 1956-03-01 | B122: 26.89
A123: 1956-04-01 | B123: 26.93
A124: 1956-05-01 | B124: 27.03
A125: 1956-06-01 | B125: 27.15
A126: 1956-07-01 | B126: 27.29
A127: 1956-08-01 | B127: 27.31
A128: 1956-09-01 | B128: 27.35
A129: 1956-10-01 | B129: 27.51
A130: 1956-11-01 | B130: 27.51
A131: 1956-12-01 | B131: 27.63
A132: 1957-01-01 | B132: 27.67
A133: 1957-02-01 | B133: 27.8
A134: 1957-03-01 | B134: 27.86
A135: 1957-04-01 | B135: 27.93
A136: 1957-05-01 | B136: 28
A137: 1957-06-01 | B137: 28.11
A138: 1957-07-01 | B138: 28.19
A139: 1957-08-01 | B139: 28.28
A140: 1957-09-01 | B140: 28.32
A141: 1957-10-01 | B141: 28.32
A142: 1957-11-01 | B142: 28.41
A143: 1957-12-01 | B143: 28.47
A144: 1958-01-01 | B144: 28.64
A145: 1958-02-01 | B145: 28.7
A146: 1958-03-01 | B146: 28.87
A147: 1958-04-01 | B147: 28.94
A148: 1958-05-01 | B148: 28.94
A149: 1958-06-01 | B149: 28.91
A150: 1958-07-01 | B150: 28.89
A151: 1958-08-01 | B151: 28.94
A152: 1958-09-01 | B152: 28.91
A153: 1958-10-01 | B153: 28.91
A154: 1958-11-01 | B154: 28.95
A155: 1958-12-01 | B155: 28.97
A156: 1959-01-01 | B156: 29.01
A157: 1959-02-01 | B157: 29
A158: 1959-03-01 | B158: 28.97
A159: 1959-04-01 | B159: 28.98
A160: 1959-05-01 | B160: 29.04
A161: 1959-06-01 | B161: 29.11
A162: 1959-07-01 | B162: 29.15
A163: 1959-08-01 | B163: 29.18
A164: 1959-09-01 | B164: 29.25
A165: 1959-10-01 | B165: 29.35
A166: 1959-11-01 | B166: 29.35
A167: 1959-12-01 | B167: 29.41
A168: 1960-01-01 | B168: 29.37
A169: 1960-02-01 | B169: 29.41
A170: 1960-03-01 | B170: 29.41
A171: 1960-04-01 | B171: 29.54
A172: 1960-05-01 | B172: 29.57
A173: 1960-06-01 | B173: 29.61
A174: 1960-07-01 | B174: 29.55
A175: 1960-08-01 | B175: 29.61
A176: 1960-09-01 | B176: 29.61
A177: 1960-10-01 | B177: 29.75
A178: 1960-11-01 | B178: 29.78
A179: 1960-12-01 | B179: 29.81
A180: 1961-01-01 | B180: 29.84
A181: 1961-02-01 | B181: 29.84
A182: 1961-03-01 | B182: 29.84
A183: 1961-04-01 | B183: 29.81
A184: 1961-05-01 | B184: 29.84
A185: 1961-06-01 | B185: 29.84
A186: 1961-07-01 | B186: 29.92
A187: 1961-08-01 | B187: 29.94
A188: 1961-09-01 | B188: 29.98
A189: 1961-10-01 | B189: 29.98
A190: 1961-11-01 | B190: 29.98
A191: 1961-12-01 | B191: 30.01
A192: 1962-01-01 | B192: 30.04
A193: 1962-02-01 | B193: 30.11
A194: 1962-03-01 | B194: 30.17
A195: 1962-04-01 | B195: 30.21
A196: 1962-05-01 | B196: 30.24
A197: 1962-06-01 | B197: 30.21
A198: 1962-07-01 | B198: 30.22
A199: 1962-08-01 | B199: 30.28
A200: 1962-09-01 | B200: 30.42
A201: 1962-10-01 | B201: 30.38
A202: 1962-11-01 | B202: 30.38
... 688 more rows

Sheet LNU00000060 lin
A1: FRED Graph Observations
A2: Federal Reserve Economic Data
A3: Link: https://fred.stlouisfed.org
A4: Help: https://fred.stlouisfed.org/help-faq
A5: Economic Research Division
A6: Federal Reserve Bank of St. Louis
A8: LNU00000060 | B8: Population Level - 25-54 Yrs., Thousands of Persons, Monthly, Not Seasonally Adjusted
A10: Frequency: Monthly
A11: observation_date | B11: LNU00000060
A12: 1958-01-01 | B12: 65325
A13: 1958-02-01 | B13: 65350
A14: 1958-03-01 | B14: 65373
A15: 1958-04-01 | B15: 65392
A16: 1958-05-01 | B16: 65422
A17: 1958-06-01 | B17: 65451
A18: 1958-07-01 | B18: 65460
A19: 1958-08-01 | B19: 65449
A20: 1958-09-01 | B20: 65426
A21: 1958-10-01 | B21: 65454
A22: 1958-11-01 | B22: 65476
A23: 1958-12-01 | B23: 65497
A24: 1959-01-01 | B24: 65525
A25: 1959-02-01 | B25: 65544
A26: 1959-03-01 | B26: 65566
A27: 1959-04-01 | B27: 65587
A28: 1959-05-01 | B28: 65614
A29: 1959-06-01 | B29: 65638
A30: 1959-07-01 | B30: 65660
A31: 1959-08-01 | B31: 65681
A32: 1959-09-01 | B32: 65650
A33: 1959-10-01 | B33: 65639
A34: 1959-11-01 | B34: 65621
A35: 1959-12-01 | B35: 65642
A36: 1960-01-01 | B36: 65931
A37: 1960-02-01 | B37: 65952
A38: 1960-03-01 | B38: 65975
A39: 1960-04-01 | B39: 65974
A40: 1960-05-01 | B40: 65989
A41: 1960-06-01 | B41: 66017
A42: 1960-07-01 | B42: 66034
A43: 1960-08-01 | B43: 66069
A44: 1960-09-01 | B44: 66073
A45: 1960-10-01 | B45: 66091
A46: 1960-11-01 | B46: 66146
A47: 1960-12-01 | B47: 66194
A48: 1961-01-01 | B48: 66237
A49: 1961-02-01 | B49: 66243
A50: 1961-03-01 | B50: 66253
A51: 1961-04-01 | B51: 66274
A52: 1961-05-01 | B52: 66301
A53: 1961-06-01 | B53: 66328
A54: 1961-07-01 | B54: 66348
A55: 1961-08-01 | B55: 66362
A56: 1961-09-01 | B56: 66373
A57: 1961-10-01 | B57: 66380
A58: 1961-11-01 | B58: 66324
A59: 1961-12-01 | B59: 66316
A60: 1962-01-01 | B60: 66277
A61: 1962-02-01 | B61: 66272
A62: 1962-03-01 | B62: 66290
A63: 1962-04-01 | B63: 66023
A64: 1962-05-01 | B64: 66043
A65: 1962-06-01 | B65: 66069
A66: 1962-07-01 | B66: 66167
A67: 1962-08-01 | B67: 66204
A68: 1962-09-01 | B68: 66282
A69: 1962-10-01 | B69: 66318
A70: 1962-11-01 | B70: 66334
A71: 1962-12-01 | B71: 66349
A72: 1963-01-01 | B72: 66390
A73: 1963-02-01 | B73: 66405
A74: 1963-03-01 | B74: 66422
A75: 1963-04-01 | B75: 66437
A76: 1963-05-01 | B76: 66440
A77: 1963-06-01 | B77: 66461
A78: 1963-07-01 | B78: 66509
A79: 1963-08-01 | B79: 66551
A80: 1963-09-01 | B80: 66547
A81: 1963-10-01 | B81: 66572
A82: 1963-11-01 | B82: 66596
A83: 1963-12-01 | B83: 66613
A84: 1964-01-01 | B84: 66653
A85: 1964-02-01 | B85: 66666
A86: 1964-03-01 | B86: 66679
A87: 1964-04-01 | B87: 66702
A88: 1964-05-01 | B88: 66724
A89: 1964-06-01 | B89: 66749
A90: 1964-07-01 | B90: 66774
A91: 1964-08-01 | B91: 66789
A92: 1964-09-01 | B92: 66814
A93: 1964-10-01 | B93: 66838
A94: 1964-11-01 | B94: 66862
A95: 1964-12-01 | B95: 66885
A96: 1965-01-01 | B96: 66911
A97: 1965-02-01 | B97: 66929
A98: 1965-03-01 | B98: 66951
A99: 1965-04-01 | B99: 66977
A100: 1965-05-01 | B100: 66996
A101: 1965-06-01 | B101: 67021
A102: 1965-07-01 | B102: 66934
A103: 1965-08-01 | B103: 66975
A104: 1965-09-01 | B104: 67005
A105: 1965-10-01 | B105: 67013
A106: 1965-11-01 | B106: 67019
A107: 1965-12-01 | B107: 67024
A108: 1966-01-01 | B108: 67022
A109: 1966-02-01 | B109: 67029
A110: 1966-03-01 | B110: 67002
A111: 1966-04-01 | B111: 67037
A112: 1966-05-01 | B112: 67096
A113: 1966-06-01 | B113: 67098
A114: 1966-07-01 | B114: 67105
A115: 1966-08-01 | B115: 67129
A116: 1966-09-01 | B116: 67144
A117: 1966-10-01 | B117: 67162
A118: 1966-11-01 | B118: 67179
A119: 1966-12-01 | B119: 67212
A120: 1967-01-01 | B120: 67275
A121: 1967-02-01 | B121: 67318
A122: 1967-03-01 | B122: 67348
A123: 1967-04-01 | B123: 67357
A124: 1967-05-01 | B124: 67398
A125: 1967-06-01 | B125: 67475
A126: 1967-07-01 | B126: 67579
A127: 1967-08-01 | B127: 67788
A128: 1967-09-01 | B128: 67908
A129: 1967-10-01 | B129: 67973
A130: 1967-11-01 | B130: 68036
A131: 1967-12-01 | B131: 68102
A132: 1968-01-01 | B132: 68170
A133: 1968-02-01 | B133: 68232
A134: 1968-03-01 | B134: 68293
A135: 1968-04-01 | B135: 68356
A136: 1968-05-01 | B136: 68418
A137: 1968-06-01 | B137: 68473
A138: 1968-07-01 | B138: 68522
A139: 1968-08-01 | B139: 68557
A140: 1968-09-01 | B140: 68607
A141: 1968-10-01 | B141: 68651
A142: 1968-11-01 | B142: 68734
A143: 1968-12-01 | B143: 68793
A144: 1969-01-01 | B144: 68857
A145: 1969-02-01 | B145: 68900
A146: 1969-03-01 | B146: 68942
A147: 1969-04-01 | B147: 68988
A148: 1969-05-01 | B148: 69054
A149: 1969-06-01 | B149: 69106
A150: 1969-07-01 | B150: 69208
A151: 1969-08-01 | B151: 69258
A152: 1969-09-01 | B152: 69302
A153: 1969-10-01 | B153: 69362
A154: 1969-11-01 | B154: 69424
A155: 1969-12-01 | B155: 69541
A156: 1970-01-01 | B156: 69604
A157: 1970-02-01 | B157: 69672
A158: 1970-03-01 | B158: 69743
A159: 1970-04-01 | B159: 69821
A160: 1970-05-01 | B160: 69903
A161: 1970-06-01 | B161: 69967
A162: 1970-07-01 | B162: 70043
A163: 1970-08-01 | B163: 70093
A164: 1970-09-01 | B164: 70138
A165: 1970-10-01 | B165: 70210
A166: 1970-11-01 | B166: 70284
A167: 1970-12-01 | B167: 70340
A168: 1971-01-01 | B168: 70414
A169: 1971-02-01 | B169: 70472
A170: 1971-03-01 | B170: 70511
A171: 1971-04-01 | B171: 70588
A172: 1971-05-01 | B172: 70663
A173: 1971-06-01 | B173: 70721
A174: 1971-07-01 | B174: 70789
A175: 1971-08-01 | B175: 70938
A176: 1971-09-01 | B176: 71087
A177: 1971-10-01 | B177: 71238
A178: 1971-11-01 | B178: 71362
A179: 1971-12-01 | B179: 71514
A180: 1972-01-01 | B180: 71723
A181: 1972-02-01 | B181: 71878
A182: 1972-03-01 | B182: 71997
A183: 1972-04-01 | B183: 72138
A184: 1972-05-01 | B184: 72293
A185: 1972-06-01 | B185: 72393
A186: 1972-07-01 | B186: 72538
A187: 1972-08-01 | B187: 72648
A188: 1972-09-01 | B188: 72761
A189: 1972-10-01 | B189: 72854
A190: 1972-11-01 | B190: 72959
A191: 1972-12-01 | B191: 73092
A192: 1973-01-01 | B192: 73216
A193: 1973-02-01 | B193: 73330
A194: 1973-03-01 | B194: 73492
A195: 1973-04-01 | B195: 73605
A196: 1973-05-01 | B196: 73730
A197: 1973-06-01 | B197: 73836
A198: 1973-07-01 | B198: 73958
A199: 1973-08-01 | B199: 74071
A200: 1973-09-01 | B200: 74184
A201: 1973-10-01 | B201: 74297
A202: 1973-11-01 | B202: 74410
... 557 more rows

Sheet UNRATE lin
A1: FRED Graph Observations
A2: Federal Reserve Economic Data
A3: Link: https://fred.stlouisfed.org
A4: Help: https://fred.stlouisfed.org/help-faq
A5: Economic Research Division
A6: Federal Reserve Bank of St. Louis
A8: UNRATE | B8: Unemployment Rate, Percent, Monthly, Seasonally Adjusted
A10: Frequency: Monthly
A11: observation_date | B11: UNRATE
A12: 1958-01-01 | B12: 5.8
A13: 1958-02-01 | B13: 6.4
A14: 1958-03-01 | B14: 6.7
A15: 1958-04-01 | B15: 7.4
A16: 1958-05-01 | B16: 7.4
A17: 1958-06-01 | B17: 7.3
A18: 1958-07-01 | B18: 7.5
A19: 1958-08-01 | B19: 7.4
A20: 1958-09-01 | B20: 7.1
A21: 1958-10-01 | B21: 6.7
A22: 1958-11-01 | B22: 6.2
A23: 1958-12-01 | B23: 6.2
A24: 1959-01-01 | B24: 6
A25: 1959-02-01 | B25: 5.9
A26: 1959-03-01 | B26: 5.6
A27: 1959-04-01 | B27: 5.2
A28: 1959-05-01 | B28: 5.1
A29: 1959-06-01 | B29: 5
A30: 1959-07-01 | B30: 5.1
A31: 1959-08-01 | B31: 5.2
A32: 1959-09-01 | B32: 5.5
A33: 1959-10-01 | B33: 5.7
A34: 1959-11-01 | B34: 5.8
A35: 1959-12-01 | B35: 5.3
A36: 1960-01-01 | B36: 5.2
A37: 1960-02-01 | B37: 4.8
A38: 1960-03-01 | B38: 5.4
A39: 1960-04-01 | B39: 5.2
A40: 1960-05-01 | B40: 5.1
A41: 1960-06-01 | B41: 5.4
A42: 1960-07-01 | B42: 5.5
A43: 1960-08-01 | B43: 5.6
A44: 1960-09-01 | B44: 5.5
A45: 1960-10-01 | B45: 6.1
A46: 1960-11-01 | B46: 6.1
A47: 1960-12-01 | B47: 6.6
A48: 1961-01-01 | B48: 6.6
A49: 1961-02-01 | B49: 6.9
A50: 1961-03-01 | B50: 6.9
A51: 1961-04-01 | B51: 7
A52: 1961-05-01 | B52: 7.1
A53: 1961-06-01 | B53: 6.9
A54: 1961-07-01 | B54: 7
A55: 1961-08-01 | B55: 6.6
A56: 1961-09-01 | B56: 6.7
A57: 1961-10-01 | B57: 6.5
A58: 1961-11-01 | B58: 6.1
A59: 1961-12-01 | B59: 6
A60: 1962-01-01 | B60: 5.8
A61: 1962-02-01 | B61: 5.5
A62: 1962-03-01 | B62: 5.6
A63: 1962-04-01 | B63: 5.6
A64: 1962-05-01 | B64: 5.5
A65: 1962-06-01 | B65: 5.5
A66: 1962-07-01 | B66: 5.4
A67: 1962-08-01 | B67: 5.7
A68: 1962-09-01 | B68: 5.6
A69: 1962-10-01 | B69: 5.4
A70: 1962-11-01 | B70: 5.7
A71: 1962-12-01 | B71: 5.5
A72: 1963-01-01 | B72: 5.7
A73: 1963-02-01 | B73: 5.9
A74: 1963-03-01 | B74: 5.7
A75: 1963-04-01 | B75: 5.7
A76: 1963-05-01 | B76: 5.9
A77: 1963-06-01 | B77: 5.6
A78: 1963-07-01 | B78: 5.6
A79: 1963-08-01 | B79: 5.4
A80: 1963-09-01 | B80: 5.5
A81: 1963-10-01 | B81: 5.5
A82: 1963-11-01 | B82: 5.7
A83: 1963-12-01 | B83: 5.5
A84: 1964-01-01 | B84: 5.6
A85: 1964-02-01 | B85: 5.4
A86: 1964-03-01 | B86: 5.4
A87: 1964-04-01 | B87: 5.3
A88: 1964-05-01 | B88: 5.1
A89: 1964-06-01 | B89: 5.2
A90: 1964-07-01 | B90: 4.9
A91: 1964-08-01 | B91: 5
A92: 1964-09-01 | B92: 5.1
A93: 1964-10-01 | B93: 5.1
A94: 1964-11-01 | B94: 4.8
A95: 1964-12-01 | B95: 5
A96: 1965-01-01 | B96: 4.9
A97: 1965-02-01 | B97: 5.1
A98: 1965-03-01 | B98: 4.7
A99: 1965-04-01 | B99: 4.8
A100: 1965-05-01 | B100: 4.6
A101: 1965-06-01 | B101: 4.6
A102: 1965-07-01 | B102: 4.4
A103: 1965-08-01 | B103: 4.4
A104: 1965-09-01 | B104: 4.3
A105: 1965-10-01 | B105: 4.2
A106: 1965-11-01 | B106: 4.1
A107: 1965-12-01 | B107: 4
A108: 1966-01-01 | B108: 4
A109: 1966-02-01 | B109: 3.8
A110: 1966-03-01 | B110: 3.8
A111: 1966-04-01 | B111: 3.8
A112: 1966-05-01 | B112: 3.9
A113: 1966-06-01 | B113: 3.8
A114: 1966-07-01 | B114: 3.8
A115: 1966-08-01 | B115: 3.8
A116: 1966-09-01 | B116: 3.7
A117: 1966-10-01 | B117: 3.7
A118: 1966-11-01 | B118: 3.6
A119: 1966-12-01 | B119: 3.8
A120: 1967-01-01 | B120: 3.9
A121: 1967-02-01 | B121: 3.8
A122: 1967-03-01 | B122: 3.8
A123: 1967-04-01 | B123: 3.8
A124: 1967-05-01 | B124: 3.8
A125: 1967-06-01 | B125: 3.9
A126: 1967-07-01 | B126: 3.8
A127: 1967-08-01 | B127: 3.8
A128: 1967-09-01 | B128: 3.8
A129: 1967-10-01 | B129: 4
A130: 1967-11-01 | B130: 3.9
A131: 1967-12-01 | B131: 3.8
A132: 1968-01-01 | B132: 3.7
A133: 1968-02-01 | B133: 3.8
A134: 1968-03-01 | B134: 3.7
A135: 1968-04-01 | B135: 3.5
A136: 1968-05-01 | B136: 3.5
A137: 1968-06-01 | B137: 3.7
A138: 1968-07-01 | B138: 3.7
A139: 1968-08-01 | B139: 3.5
A140: 1968-09-01 | B140: 3.4
A141: 1968-10-01 | B141: 3.4
A142: 1968-11-01 | B142: 3.4
A143: 1968-12-01 | B143: 3.4
A144: 1969-01-01 | B144: 3.4
A145: 1969-02-01 | B145: 3.4
A146: 1969-03-01 | B146: 3.4
A147: 1969-04-01 | B147: 3.4
A148: 1969-05-01 | B148: 3.4
A149: 1969-06-01 | B149: 3.5
A150: 1969-07-01 | B150: 3.5
A151: 1969-08-01 | B151: 3.5
A152: 1969-09-01 | B152: 3.7
A153: 1969-10-01 | B153: 3.7
A154: 1969-11-01 | B154: 3.5
A155: 1969-12-01 | B155: 3.5
A156: 1970-01-01 | B156: 3.9
A157: 1970-02-01 | B157: 4.2
A158: 1970-03-01 | B158: 4.4
A159: 1970-04-01 | B159: 4.6
A160: 1970-05-01 | B160: 4.8
A161: 1970-06-01 | B161: 4.9
A162: 1970-07-01 | B162: 5
A163: 1970-08-01 | B163: 5.1
A164: 1970-09-01 | B164: 5.4
A165: 1970-10-01 | B165: 5.5
A166: 1970-11-01 | B166: 5.9
A167: 1970-12-01 | B167: 6.1
A168: 1971-01-01 | B168: 5.9
A169: 1971-02-01 | B169: 5.9
A170: 1971-03-01 | B170: 6
A171: 1971-04-01 | B171: 5.9
A172: 1971-05-01 | B172: 5.9
A173: 1971-06-01 | B173: 5.9
A174: 1971-07-01 | B174: 6
A175: 1971-08-01 | B175: 6.1
A176: 1971-09-01 | B176: 6
A177: 1971-10-01 | B177: 5.8
A178: 1971-11-01 | B178: 6
A179: 1971-12-01 | B179: 6
A180: 1972-01-01 | B180: 5.8
A181: 1972-02-01 | B181: 5.7
A182: 1972-03-01 | B182: 5.8
A183: 1972-04-01 | B183: 5.7
A184: 1972-05-01 | B184: 5.7
A185: 1972-06-01 | B185: 5.7
A186: 1972-07-01 | B186: 5.6
A187: 1972-08-01 | B187: 5.6
A188: 1972-09-01 | B188: 5.5
A189: 1972-10-01 | B189: 5.6
A190: 1972-11-01 | B190: 5.3
A191: 1972-12-01 | B191: 5.2
A192: 1973-01-01 | B192: 4.9
A193: 1973-02-01 | B193: 5
A194: 1973-03-01 | B194: 4.9
A195: 1973-04-01 | B195: 5
A196: 1973-05-01 | B196: 4.9
A197: 1973-06-01 | B197: 4.9
A198: 1973-07-01 | B198: 4.8
A199: 1973-08-01 | B199: 4.8
A200: 1973-09-01 | B200: 4.8
A201: 1973-10-01 | B201: 4.6
A202: 1973-11-01 | B202: 4.8
... 557 more rows

Sheet CPILFESL pc1
A1: FRED Graph Observations
A2: Federal Reserve Economic Data
A3: Link: https://fred.stlouisfed.org
A4: Help: https://fred.stlouisfed.org/help-faq
A5: Economic Research Division
A6: Federal Reserve Bank of St. Louis
A8: CPILFESL_PC1 | B8: Consumer Price Index for All Urban Consumers: All Items Less Food and Energy in U.S. City Average, Percent Change from Year Ago, Monthly, Seasonally Adjusted
A10: Frequency: Monthly
A11: observation_date | B11: CPILFESL_PC1
A12: 1958-01-01 | B12: 2.80702
A13: 1958-02-01 | B13: 2.7972
A14: 1958-03-01 | B14: 2.78746
A15: 1958-04-01 | B15: 2.43056
A16: 1958-05-01 | B16: 2.43056
A17: 1958-06-01 | B17: 2.42215
A18: 1958-07-01 | B18: 2.06897
A19: 1958-08-01 | B19: 2.06897
A20: 1958-09-01 | B20: 2.06186
A21: 1958-10-01 | B21: 1.71233
A22: 1958-11-01 | B22: 1.70648
A23: 1958-12-01 | B23: 2.04778
A24: 1959-01-01 | B24: 2.04778
A25: 1959-02-01 | B25: 1.70068
A26: 1959-03-01 | B26: 1.69492
A27: 1959-04-01 | B27: 1.69492
A28: 1959-05-01 | B28: 2.0339
A29: 1959-06-01 | B29: 2.02703
A30: 1959-07-01 | B30: 2.02703
A31: 1959-08-01 | B31: 2.02703
A32: 1959-09-01 | B32: 2.0202
A33: 1959-10-01 | B33: 2.3569
A34: 1959-11-01 | B34: 2.01342
A35: 1959-12-01 | B35: 2.00669
A36: 1960-01-01 | B36: 2.00669
A37: 1960-02-01 | B37: 2.34114
A38: 1960-03-01 | B38: 2
A39: 1960-04-01 | B39: 2
A40: 1960-05-01 | B40: 1.66113
A41: 1960-06-01 | B41: 1.65563
A42: 1960-07-01 | B42: 1.3245
A43: 1960-08-01 | B43: 1.3245
A44: 1960-09-01 | B44: 0.9901
A45: 1960-10-01 | B45: 1.31579
A46: 1960-11-01 | B46: 1.31579
A47: 1960-12-01 | B47: 0.65574
A48: 1961-01-01 | B48: 0.98361
A49: 1961-02-01 | B49: 0.65359
A50: 1961-03-01 | B50: 0.98039
A51: 1961-04-01 | B51: 0.98039
A52: 1961-05-01 | B52: 0.98039
A53: 1961-06-01 | B53: 0.9772
A54: 1961-07-01 | B54: 1.30719
A55: 1961-08-01 | B55: 1.63399
A56: 1961-09-01 | B56: 1.63399
A57: 1961-10-01 | B57: 0.97403
A58: 1961-11-01 | B58: 1.2987
A59: 1961-12-01 | B59: 1.62866
A60: 1962-01-01 | B60: 1.2987
A61: 1962-02-01 | B61: 1.2987
A62: 1962-03-01 | B62: 1.2945
A63: 1962-04-01 | B63: 1.2945
A64: 1962-05-01 | B64: 1.61812
A65: 1962-06-01 | B65: 1.29032
A66: 1962-07-01 | B66: 1.29032
A67: 1962-08-01 | B67: 1.28617
A68: 1962-09-01 | B68: 1.28617
A69: 1962-10-01 | B69: 1.28617
A70: 1962-11-01 | B70: 0.96154
A71: 1962-12-01 | B71: 1.28205
A72: 1963-01-01 | B72: 0.96154
A73: 1963-02-01 | B73: 1.28205
A74: 1963-03-01 | B74: 1.27796
A75: 1963-04-01 | B75: 1.27796
A76: 1963-05-01 | B76: 0.95541
A77: 1963-06-01 | B77: 1.27389
A78: 1963-07-01 | B78: 1.27389
A79: 1963-08-01 | B79: 1.26984
A80: 1963-09-01 | B80: 1.26984
A81: 1963-10-01 | B81: 1.5873
A82: 1963-11-01 | B82: 1.5873
A83: 1963-12-01 | B83: 1.58228
A84: 1964-01-01 | B84: 2.22222
A85: 1964-02-01 | B85: 1.89873
A86: 1964-03-01 | B86: 1.57729
A87: 1964-04-01 | B87: 1.57729
A88: 1964-05-01 | B88: 1.57729
A89: 1964-06-01 | B89: 1.57233
A90: 1964-07-01 | B90: 1.57233
A91: 1964-08-01 | B91: 1.25392
A92: 1964-09-01 | B92: 1.25392
A93: 1964-10-01 | B93: 1.25
A94: 1964-11-01 | B94: 1.5625
A95: 1964-12-01 | B95: 1.24611
A96: 1965-01-01 | B96: 1.24224
A97: 1965-02-01 | B97: 1.24224
A98: 1965-03-01 | B98: 1.24224
A99: 1965-04-01 | B99: 1.5528
A100: 1965-05-01 | B100: 1.5528
A101: 1965-06-01 | B101: 1.23839
A102: 1965-07-01 | B102: 1.23839
A103: 1965-08-01 | B103: 1.23839
A104: 1965-09-01 | B104: 1.54799
A105: 1965-10-01 | B105: 1.23457
A106: 1965-11-01 | B106: 1.23077
A107: 1965-12-01 | B107: 1.53846
A108: 1966-01-01 | B108: 1.22699
A109: 1966-02-01 | B109: 1.53374
A110: 1966-03-01 | B110: 1.53374
A111: 1966-04-01 | B111: 1.83486
A112: 1966-05-01 | B112: 2.14067
A113: 1966-06-01 | B113: 2.44648
A114: 1966-07-01 | B114: 2.75229
A115: 1966-08-01 | B115: 3.0581
A116: 1966-09-01 | B116: 3.04878
A117: 1966-10-01 | B117: 3.65854
A118: 1966-11-01 | B118: 3.34347
A119: 1966-12-01 | B119: 3.33333
A120: 1967-01-01 | B120: 3.63636
A121: 1967-02-01 | B121: 3.32326
A122: 1967-03-01 | B122: 3.62538
A123: 1967-04-01 | B123: 3.3033
A124: 1967-05-01 | B124: 3.29341
A125: 1967-06-01 | B125: 3.28358
A126: 1967-07-01 | B126: 3.27381
A127: 1967-08-01 | B127: 3.56083
A128: 1967-09-01 | B128: 3.5503
A129: 1967-10-01 | B129: 3.23529
A130: 1967-11-01 | B130: 3.52941
A131: 1967-12-01 | B131: 3.81232
A132: 1968-01-01 | B132: 3.80117
A133: 1968-02-01 | B133: 4.38596
A134: 1968-03-01 | B134: 4.37318
A135: 1968-04-01 | B135: 4.36047
A136: 1968-05-01 | B136: 4.34783
A137: 1968-06-01 | B137: 4.62428
A138: 1968-07-01 | B138: 4.89914
A139: 1968-08-01 | B139: 4.58453
A140: 1968-09-01 | B140: 4.85714
A141: 1968-10-01 | B141: 5.12821
A142: 1968-11-01 | B142: 5.39773
A143: 1968-12-01 | B143: 5.08475
A144: 1969-01-01 | B144: 5.07042
A145: 1969-02-01 | B145: 5.32213
A146: 1969-03-01 | B146: 5.58659
A147: 1969-04-01 | B147: 6.12813
A148: 1969-05-01 | B148: 5.83333
A149: 1969-06-01 | B149: 5.8011
A150: 1969-07-01 | B150: 5.76923
A151: 1969-08-01 | B151: 6.0274
A152: 1969-09-01 | B152: 5.99455
A153: 1969-10-01 | B153: 5.96206
A154: 1969-11-01 | B154: 5.66038
A155: 1969-12-01 | B155: 5.91398
A156: 1970-01-01 | B156: 6.16622
A157: 1970-02-01 | B157: 5.85106
A158: 1970-03-01 | B158: 6.08466
A159: 1970-04-01 | B159: 6.03675
A160: 1970-05-01 | B160: 6.29921
A161: 1970-06-01 | B161: 6.52742
A162: 1970-07-01 | B162: 6.23377
A163: 1970-08-01 | B163: 6.20155
A164: 1970-09-01 | B164: 6.16967
A165: 1970-10-01 | B165: 6.13811
A166: 1970-11-01 | B166: 6.63265
A167: 1970-12-01 | B167: 6.59898
A168: 1971-01-01 | B168: 6.31313
A169: 1971-02-01 | B169: 6.03015
A170: 1971-03-01 | B170: 5.23691
A171: 1971-04-01 | B171: 4.9505
A172: 1971-05-01 | B172: 5.18519
A173: 1971-06-01 | B173: 4.90196
A174: 1971-07-01 | B174: 4.88998
A175: 1971-08-01 | B175: 4.62287
A176: 1971-09-01 | B176: 4.11622
A177: 1971-10-01 | B177: 3.85542
A178: 1971-11-01 | B178: 3.34928
A179: 1971-12-01 | B179: 3.09524
A180: 1972-01-01 | B180: 3.32542
A181: 1972-02-01 | B181: 3.31754
A182: 1972-03-01 | B182: 3.31754
A183: 1972-04-01 | B183: 3.30189
A184: 1972-05-01 | B184: 3.05164
A185: 1972-06-01 | B185: 2.80374
A186: 1972-07-01 | B186: 2.7972
A187: 1972-08-01 | B187: 3.02326
A188: 1972-09-01 | B188: 3.02326
A189: 1972-10-01 | B189: 3.01624
A190: 1972-11-01 | B190: 2.77778
A191: 1972-12-01 | B191: 3.00231
A192: 1973-01-01 | B192: 2.52874
A193: 1973-02-01 | B193: 2.75229
A194: 1973-03-01 | B194: 3.21101
A195: 1973-04-01 | B195: 2.96804
A196: 1973-05-01 | B196: 3.18907
A197: 1973-06-01 | B197: 3.18182
A198: 1973-07-01 | B198: 3.1746
A199: 1973-08-01 | B199: 3.16027
A200: 1973-09-01 | B200: 3.83747
A201: 1973-10-01 | B201: 4.27928
A202: 1973-11-01 | B202: 4.72973
... 556 more rows

Sheet WILL5000PR eop
A1: FRED Graph Observations
A2: Federal Reserve Economic Data
A3: Link: https://fred.stlouisfed.org
A4: Help: https://fred.stlouisfed.org/help-faq
A5: Economic Research Division
A6: Federal Reserve Bank of St. Louis
A8: WILL5000PR | B8: Wilshire 5000 Price Index, Index, Monthly, Not Seasonally Adjusted
A10: Frequency: Monthly
A11: observation_date | B11: WILL5000PR
A12: 1971-01-01 | B12: 873.31
A13: 1971-02-01 | B13: 885.37
A14: 1971-03-01 | B14: 923.13
A15: 1971-04-01 | B15: 955.25
A16: 1971-05-01 | B16: 919.83
A17: 1971-06-01 | B17: 921.91
A18: 1971-07-01 | B18: 887.9
A19: 1971-08-01 | B19: 919.19
A20: 1971-09-01 | B20: 914.22
A21: 1971-10-01 | B21: 877.33
A22: 1971-11-01 | B22: 871.15
A23: 1971-12-01 | B23: 949.26
A24: 1972-01-01 | B24: 976.73
A25: 1972-02-01 | B25: 1005.79
A26: 1972-03-01 | B26: 1013.1
A27: 1972-04-01 | B27: 1019.47
A28: 1972-05-01 | B28: 1033.38
A29: 1972-06-01 | B29: 1010.34
A30: 1972-07-01 | B30: 1006.5
A31: 1972-08-01 | B31: 1037.9
A32: 1972-09-01 | B32: 1028.17
A33: 1972-10-01 | B33: 1036.01
A34: 1972-11-01 | B34: 1080.29
A35: 1972-12-01 | B35: 1090.31
A36: 1973-01-01 | B36: 1059.76
A37: 1973-02-01 | B37: 1010.11
A38: 1973-03-01 | B38: 1001.61
A39: 1973-04-01 | B39: 950.87
A40: 1973-05-01 | B40: 923.96
A41: 1973-06-01 | B41: 914.85
A42: 1973-07-01 | B42: 965.02
A43: 1973-08-01 | B43: 931.52
A44: 1973-09-01 | B44: 979.04
A45: 1973-10-01 | B45: 978.75
A46: 1973-11-01 | B46: 854.6
A47: 1973-12-01 | B47: 861.73
A48: 1974-01-01 | B48: 863.57
A49: 1974-02-01 | B49: 862.06
A50: 1974-03-01 | B50: 838.94
A51: 1974-04-01 | B51: 799.58
A52: 1974-05-01 | B52: 760.04
A53: 1974-06-01 | B53: 739.5
A54: 1974-07-01 | B54: 686.32
A55: 1974-08-01 | B55: 620.04
A56: 1974-09-01 | B56: 550.04
A57: 1974-10-01 | B57: 639.41
A58: 1974-11-01 | B58: 607.86
A59: 1974-12-01 | B59: 590.34
A60: 1975-01-01 | B60: 675.54
A61: 1975-02-01 | B61: 712.86
A62: 1975-03-01 | B62: 730.29
A63: 1975-04-01 | B63: 763.99
A64: 1975-05-01 | B64: 802.3
A65: 1975-06-01 | B65: 840.17
A66: 1975-07-01 | B66: 787.06
A67: 1975-08-01 | B67: 766.26
A68: 1975-09-01 | B68: 734.62
A69: 1975-10-01 | B69: 773.79
A70: 1975-11-01 | B70: 794.05
A71: 1975-12-01 | B71: 784.15
A72: 1976-01-01 | B72: 880.47
A73: 1976-02-01 | B73: 881.88
A74: 1976-03-01 | B74: 903.47
A75: 1976-04-01 | B75: 893.64
A76: 1976-05-01 | B76: 879.52
A77: 1976-06-01 | B77: 914.8
A78: 1976-07-01 | B78: 907.82
A79: 1976-08-01 | B79: 900.91
A80: 1976-09-01 | B80: 920.72
A81: 1976-10-01 | B81: 899.9
A82: 1976-11-01 | B82: 899.25
A83: 1976-12-01 | B83: 954.18
A84: 1977-01-01 | B84: 918.86
A85: 1977-02-01 | B85: 899.97
A86: 1977-03-01 | B86: 888.81
A87: 1977-04-01 | B87: 893.43
A88: 1977-05-01 | B88: 882.18
A89: 1977-06-01 | B89: 919.19
A90: 1977-07-01 | B90: 905.66
A91: 1977-08-01 | B91: 887.63
A92: 1977-09-01 | B92: 887.45
A93: 1977-10-01 | B93: 851.6
A94: 1977-11-01 | B94: 882.39
A95: 1977-12-01 | B95: 887.59
A96: 1978-01-01 | B96: 836.79
A97: 1978-02-01 | B97: 822.27
A98: 1978-03-01 | B98: 847.81
A99: 1978-04-01 | B99: 916.42
A100: 1978-05-01 | B100: 930.65
A101: 1978-06-01 | B101: 917.97
A102: 1978-07-01 | B102: 969.18
A103: 1978-08-01 | B103: 1004.15
A104: 1978-09-01 | B104: 996.1
A105: 1978-10-01 | B105: 886.92
A106: 1978-11-01 | B106: 908.34
A107: 1978-12-01 | B107: 922.77
A108: 1979-01-01 | B108: 964.88
A109: 1979-02-01 | B109: 935.84
A110: 1979-03-01 | B110: 997.62
A111: 1979-04-01 | B111: 1004.7
A112: 1979-05-01 | B112: 981.15
A113: 1979-06-01 | B113: 1028.23
A114: 1979-07-01 | B114: 1038.16
A115: 1979-08-01 | B115: 1097.81
A116: 1979-09-01 | B116: 1101.82
A117: 1979-10-01 | B117: 1020.04
A118: 1979-11-01 | B118: 1075.4
A119: 1979-12-01 | B119: 1100.71
A120: 1980-01-01 | B120: 1176.99
A121: 1980-02-01 | B121: 1171.65
A122: 1980-03-01 | B122: 1026.03
A123: 1980-04-01 | B123: 1075.93
A124: 1980-05-01 | B124: 1127.14
A125: 1980-06-01 | B125: 1165.14
A126: 1980-07-01 | B126: 1242.57
A127: 1980-08-01 | B127: 1267.49
A128: 1980-09-01 | B128: 1300.9
A129: 1980-10-01 | B129: 1330.26
A130: 1980-11-01 | B130: 1466.64
A131: 1980-12-01 | B131: 1404.6
A132: 1981-01-01 | B132: 1342.17
A133: 1981-02-01 | B133: 1351.44
A134: 1981-03-01 | B134: 1415.04
A135: 1981-04-01 | B135: 1401.08
A136: 1981-05-01 | B136: 1410.97
A137: 1981-06-01 | B137: 1391.4
A138: 1981-07-01 | B138: 1382.29
A139: 1981-08-01 | B139: 1297.2
A140: 1981-09-01 | B140: 1208.44
A141: 1981-10-01 | B141: 1277.45
A142: 1981-11-01 | B142: 1326.22
A143: 1981-12-01 | B143: 1286.24
A144: 1982-01-01 | B144: 1247.35
A145: 1982-02-01 | B145: 1170.37
A146: 1982-03-01 | B146: 1153.7
A147: 1982-04-01 | B147: 1201.46
A148: 1982-05-01 | B148: 1157.85
A149: 1982-06-01 | B149: 1125.13
A150: 1982-07-01 | B150: 1099.7
A151: 1982-08-01 | B151: 1219.94
A152: 1982-09-01 | B152: 1235.79
A153: 1982-10-01 | B153: 1377.33
A154: 1982-11-01 | B154: 1435.37
A155: 1982-12-01 | B155: 1451.59
A156: 1983-01-01 | B156: 1508.98
A157: 1983-02-01 | B157: 1548.13
A158: 1983-03-01 | B158: 1600.06
A159: 1983-04-01 | B159: 1716.89
A160: 1983-05-01 | B160: 1729.91
A161: 1983-06-01 | B161: 1791.7
A162: 1983-07-01 | B162: 1733.45
A163: 1983-08-01 | B163: 1734.15
A164: 1983-09-01 | B164: 1757.86
A165: 1983-10-01 | B165: 1707.46
A166: 1983-11-01 | B166: 1747.26
A167: 1983-12-01 | B167: 1723.62
A168: 1984-01-01 | B168: 1692.65
A169: 1984-02-01 | B169: 1616.94
A170: 1984-03-01 | B170: 1633.98
A171: 1984-04-01 | B171: 1635.44
A172: 1984-05-01 | B172: 1540.08
A173: 1984-06-01 | B173: 1571.33
A174: 1984-07-01 | B174: 1536.91
A175: 1984-08-01 | B175: 1702.1
A176: 1984-09-01 | B176: 1698.07
A177: 1984-10-01 | B177: 1692.87
A178: 1984-11-01 | B178: 1666.92
A179: 1984-12-01 | B179: 1702.01
A180: 1985-01-01 | B180: 1845.24
A181: 1985-02-01 | B181: 1868.27
A182: 1985-03-01 | B182: 1859.77
A183: 1985-04-01 | B183: 1852.76
A184: 1985-05-01 | B184: 1948.25
A185: 1985-06-01 | B185: 1977.84
A186: 1985-07-01 | B186: 1972.98
A187: 1985-08-01 | B187: 1953.1
A188: 1985-09-01 | B188: 1871.23
A189: 1985-10-01 | B189: 1949.96
A190: 1985-11-01 | B190: 2076.72
A191: 1985-12-01 | B191: 2164.69
A192: 1986-01-01 | B192: 2184.11
A193: 1986-02-01 | B193: 2335.94
A194: 1986-03-01 | B194: 2455.24
A195: 1986-04-01 | B195: 2434.17
A196: 1986-05-01 | B196: 2548.89
A197: 1986-06-01 | B197: 2577.65
A198: 1986-07-01 | B198: 2419.31
A199: 1986-08-01 | B199: 2570.85
A200: 1986-09-01 | B200: 2360.48
A201: 1986-10-01 | B201: 2475.41
A202: 1986-11-01 | B202: 2503.6
... 402 more rows

Sheet data_ex
A1: FRED Graph Observations
A2: Federal Reserve Economic Data
A3: Link: https://fred.stlouisfed.org
A4: Help: https://fred.stlouisfed.org/help-faq
A5: Economic Research Division
A6: Federal Reserve Bank of St. Louis
A8: LNU00000060_UNRATE_CPILFESL_PC1 | B8: LNU00000060/(UNRATE+CPILFESL), Index Jul 1990=100 of (Thous. of Persons/(%+% Chg. from Yr. Ago)), Monthly
A9: WILL5000PR_CPIAUCNS | B9: WILL5000PR/CPIAUCNS, Index Jul 1990=100 of (Index/Index 1982-1984=100), Monthly, Not Seasonally Adjusted
A11: Frequency: Monthly
A12: observation_date | B12: LNU00000060_UNRATE_CPILFESL_PC1 | C12: WILL5000PR_CPIAUCNS
A13: 1971-01-01 | B13: 57.83294 | C13: 84.54445
A14: 1971-02-01 | B14: 59.25349 | C14: 85.49715
A15: 1971-03-01 | B15: 62.94384 | C15: 88.92065
A16: 1971-04-01 | B16: 65.25659 | C16: 91.78515
A17: 1971-05-01 | B17: 63.94288 | C17: 87.9432
A18: 1971-06-01 | B18: 65.67333 | C18: 87.49077
A19: 1971-07-01 | B19: 65.20515 | C19: 84.05613
A20: 1971-08-01 | B20: 66.36073 | C20: 86.80503
A21: 1971-09-01 | B21: 70.48799 | C21: 86.33568
A22: 1971-10-01 | B22: 74.00887 | C22: 82.64935
A23: 1971-11-01 | B23: 76.56532 | C23: 82.06716
A24: 1971-12-01 | B24: 78.87151 | C24: 88.99039
A25: 1972-01-01 | B25: 78.8404 | C25: 91.56562
A26: 1972-02-01 | B26: 79.95601 | C26: 93.83331
A27: 1972-03-01 | B27: 79.20999 | C27: 94.28698
A28: 1972-04-01 | B28: 80.38474 | C28: 94.6512
A29: 1972-05-01 | B29: 82.86097 | C29: 95.71202
A30: 1972-06-01 | B30: 85.39449 | C30: 93.35364
A31: 1972-07-01 | B31: 86.65115 | C31: 92.55492
A32: 1972-08-01 | B32: 84.50753 | C32: 95.21513
A33: 1972-09-01 | B33: 85.63201 | C33: 94.09848
A34: 1972-10-01 | B34: 84.81621 | C34: 94.36769
A35: 1972-11-01 | B35: 90.60039 | C35: 98.16897
A36: 1972-12-01 | B36: 89.38752 | C36: 98.84639
A37: 1973-01-01 | B37: 98.86307 | C37: 95.85123
A38: 1973-02-01 | B38: 94.88442 | C38: 90.72169
A39: 1973-03-01 | B39: 90.88838 | C39: 89.12725
A40: 1973-04-01 | B40: 92.66144 | C40: 84.03001
A41: 1973-05-01 | B41: 91.43003 | C41: 81.09394
A42: 1973-06-01 | B42: 91.64362 | C42: 79.74939
A43: 1973-07-01 | B43: 93.02924 | C43: 83.93292
A44: 1973-08-01 | B44: 93.33911 | C44: 79.5821
A45: 1973-09-01 | B45: 86.15231 | C45: 83.45681
A46: 1973-10-01 | B46: 83.93378 | C46: 82.70022
A47: 1973-11-01 | B47: 78.32383 | C47: 71.73811
A48: 1973-12-01 | B48: 77.86114 | C48: 71.86691
A49: 1974-01-01 | B49: 73.22835 | C49: 71.40217
A50: 1974-02-01 | B50: 71.24968 | C50: 70.37125
A51: 1974-03-01 | B51: 69.23985 | C51: 67.6243
A52: 1974-04-01 | B52: 66.70417 | C52: 64.18306
A53: 1974-05-01 | B53: 62.1179 | C53: 60.25595
A54: 1974-06-01 | B54: 56.78053 | C54: 58.14895
A55: 1974-07-01 | B55: 53.03755 | C55: 53.53027
A56: 1974-08-01 | B56: 49.4528 | C56: 47.78036
A57: 1974-09-01 | B57: 47.14825 | C57: 41.88355
A58: 1974-10-01 | B58: 45.88633 | C58: 48.21235
A59: 1974-11-01 | B59: 43.37171 | C59: 45.47745
A60: 1974-12-01 | B60: 41.13076 | C60: 43.82628
A61: 1975-01-01 | B61: 38.95355 | C61: 49.95893
A62: 1975-02-01 | B62: 38.31931 | C62: 52.31722
A63: 1975-03-01 | B63: 38.40628 | C63: 53.39302
A64: 1975-04-01 | B64: 38.20603 | C64: 55.64572
A65: 1975-05-01 | B65: 39.77735 | C65: 58.10653
A66: 1975-06-01 | B66: 41.36582 | C66: 60.39516
A67: 1975-07-01 | B67: 43.56928 | C67: 55.95106
A68: 1975-08-01 | B68: 47.15588 | C68: 54.3721
A69: 1975-09-01 | B69: 48.63567 | C69: 51.84058
A70: 1975-10-01 | B70: 50.16707 | C70: 54.30634
A71: 1975-11-01 | B71: 50.75063 | C71: 55.32513
A72: 1975-12-01 | B72: 52.00454 | C72: 54.43847
A73: 1976-01-01 | B73: 52.60448 | C73: 61.01541
A74: 1976-02-01 | B74: 55.07698 | C74: 60.89408
A75: 1976-03-01 | B75: 54.90573 | C75: 62.27327
A76: 1976-04-01 | B76: 55.46716 | C76: 61.37613
A77: 1976-05-01 | B77: 56.0997 | C77: 59.9787
A78: 1976-06-01 | B78: 56.28061 | C78: 62.05511
A79: 1976-07-01 | B79: 54.23521 | C79: 61.25808
A80: 1976-08-01 | B80: 53.72529 | C80: 60.47408
A81: 1976-09-01 | B81: 54.69602 | C81: 61.58924
A82: 1976-10-01 | B82: 54.52694 | C82: 59.88464
A83: 1976-11-01 | B83: 55.80868 | C83: 59.73821
A84: 1976-12-01 | B84: 56.77396 | C84: 63.16945
A85: 1977-01-01 | B85: 58.29541 | C85: 60.51921
A86: 1977-02-01 | B86: 57.34325 | C86: 58.67327
A87: 1977-03-01 | B87: 58.40456 | C87: 57.55615
A88: 1977-04-01 | B88: 58.69019 | C88: 57.3732
A89: 1977-05-01 | B89: 59.82221 | C89: 56.36891
A90: 1977-06-01 | B90: 57.63803 | C90: 58.34671
A91: 1977-07-01 | B91: 60.77323 | C91: 57.20515
A92: 1977-08-01 | B92: 60.56098 | C92: 55.88308
A93: 1977-09-01 | B93: 61.74129 | C93: 55.68975
A94: 1977-10-01 | B94: 62.8198 | C94: 53.26657
A95: 1977-11-01 | B95: 62.19682 | C95: 54.92495
A96: 1977-12-01 | B96: 62.68926 | C96: 55.07069
A97: 1978-01-01 | B97: 63.00174 | C97: 51.58652
A98: 1978-02-01 | B98: 64.66301 | C98: 50.36903
A99: 1978-03-01 | B99: 64.05985 | C99: 51.52394
A100: 1978-04-01 | B100: 63.65911 | C100: 55.25778
A101: 1978-05-01 | B101: 63.60864 | C101: 55.59381
A102: 1978-06-01 | B102: 63.62661 | C102: 54.24761
A103: 1978-07-01 | B103: 60.85169 | C103: 56.83801
A104: 1978-08-01 | B104: 61.00004 | C104: 58.62116
A105: 1978-09-01 | B105: 58.69167 | C105: 57.71398
A106: 1978-10-01 | B106: 57.73198 | C106: 50.92859
A107: 1978-11-01 | B107: 56.94461 | C107: 51.92641
A108: 1978-12-01 | B108: 56.86368 | C108: 52.51756
A109: 1979-01-01 | B109: 56.94783 | C109: 54.43176
A110: 1979-02-01 | B110: 54.8008 | C110: 52.18231
A111: 1979-03-01 | B111: 54.3357 | C111: 55.06929
A112: 1979-04-01 | B112: 54.6719 | C112: 54.83167
A113: 1979-05-01 | B113: 55.15521 | C113: 52.87241
A114: 1979-06-01 | B114: 55.15834 | C114: 54.79636
A115: 1979-07-01 | B115: 54.35489 | C115: 54.72007
A116: 1979-08-01 | B116: 52.12762 | C116: 57.3153
A117: 1979-09-01 | B117: 52.84489 | C117: 56.90777
A118: 1979-10-01 | B118: 51.92457 | C118: 52.26358
A119: 1979-11-01 | B119: 50.65644 | C119: 54.59188
A120: 1979-12-01 | B120: 48.48688 | C120: 55.29391
A121: 1980-01-01 | B121: 46.05483 | C121: 58.28985
A122: 1980-02-01 | B122: 46.07263 | C122: 57.21642
A123: 1980-03-01 | B123: 44.65103 | C123: 49.35456
A124: 1980-04-01 | B124: 42.31408 | C124: 51.17982
A125: 1980-05-01 | B125: 41.0551 | C125: 53.09142
A126: 1980-06-01 | B126: 40.02648 | C126: 54.28406
A127: 1980-07-01 | B127: 42.15453 | C127: 57.89154
A128: 1980-08-01 | B128: 43.62393 | C128: 58.62722
A129: 1980-09-01 | B129: 43.75162 | C129: 59.67115
A130: 1980-10-01 | B130: 43.47997 | C130: 60.44222
A131: 1980-11-01 | B131: 43.54439 | C131: 66.09326
A132: 1980-12-01 | B132: 44.31965 | C132: 62.7107
A133: 1981-01-01 | B133: 45.60041 | C133: 59.44126
A134: 1981-02-01 | B134: 47.19347 | C134: 59.23899
A135: 1981-03-01 | B135: 49.76792 | C135: 61.60631
A136: 1981-04-01 | B136: 51.92192 | C136: 60.58777
A137: 1981-05-01 | B137: 50.55646 | C137: 60.53983
A138: 1981-06-01 | B138: 51.33393 | C138: 59.173
A139: 1981-07-01 | B139: 47.34335 | C139: 58.1438
A140: 1981-08-01 | B140: 45.86331 | C140: 54.15081
A141: 1981-09-01 | B141: 44.87855 | C141: 49.95845
A142: 1981-10-01 | B142: 46.28194 | C142: 52.69832
A143: 1981-11-01 | B143: 47.15456 | C143: 54.53505
A144: 1981-12-01 | B144: 48.57289 | C144: 52.72225
A145: 1982-01-01 | B145: 49.17938 | C145: 50.96551
A146: 1982-02-01 | B146: 48.59526 | C146: 47.66853
A147: 1982-03-01 | B147: 49.82026 | C147: 47.0393
A148: 1982-04-01 | B148: 48.61527 | C148: 48.78012
A149: 1982-05-01 | B149: 48.95924 | C149: 46.56789
A150: 1982-06-01 | B150: 49.01988 | C150: 44.6921
A151: 1982-07-01 | B151: 50.73912 | C151: 43.45796
A152: 1982-08-01 | B152: 52.72082 | C152: 48.11092
A153: 1982-09-01 | B153: 55.70579 | C153: 48.63644
A154: 1982-10-01 | B154: 54.85424 | C154: 54.04136
A155: 1982-11-01 | B155: 55.90216 | C155: 56.43357
A156: 1982-12-01 | B156: 58.41835 | C156: 57.30518
A157: 1983-01-01 | B157: 59.71552 | C157: 59.44898
A158: 1983-02-01 | B158: 60.35263 | C158: 60.92906
A159: 1983-03-01 | B159: 60.45213 | C159: 62.97285
A160: 1983-04-01 | B160: 62.92747 | C160: 67.09116
A161: 1983-05-01 | B161: 65.5591 | C161: 67.19108
A162: 1983-06-01 | B162: 67.85948 | C162: 69.38123
A163: 1983-07-01 | B163: 71.87077 | C163: 66.8568
A164: 1983-08-01 | B164: 72.09147 | C164: 66.68355
A165: 1983-09-01 | B165: 72.19959 | C165: 67.25964
A166: 1983-10-01 | B166: 73.53047 | C166: 65.13718
A167: 1983-11-01 | B167: 71.22424 | C167: 66.52376
A168: 1983-12-01 | B168: 70.17715 | C168: 65.55893
A169: 1984-01-01 | B169: 70.50464 | C169: 64.00188
A170: 1984-02-01 | B170: 72.43213 | C170: 60.84063
A171: 1984-03-01 | B171: 71.47849 | C171: 61.36195
A172: 1984-04-01 | B172: 71.7178 | C172: 61.11892
A173: 1984-05-01 | B173: 73.07538 | C173: 57.38819
A174: 1984-06-01 | B174: 73.88832 | C174: 58.38327
A175: 1984-07-01 | B175: 73.04378 | C175: 56.88496
A176: 1984-08-01 | B176: 72.69664 | C176: 62.75792
A177: 1984-09-01 | B177: 74.11765 | C177: 62.31119
A178: 1984-10-01 | B178: 74.4187 | C178: 61.94339
A179: 1984-11-01 | B179: 77.79526 | C179: 60.99386
A180: 1984-12-01 | B180: 76.74793 | C180: 62.27783
A181: 1985-01-01 | B181: 79.59394 | C181: 67.39073
A182: 1985-02-01 | B182: 78.5132 | C182: 67.90997
A183: 1985-03-01 | B183: 78.80759 | C183: 67.34686
A184: 1985-04-01 | B184: 79.71593 | C184: 66.7792
A185: 1985-05-01 | B185: 80.65358 | C185: 69.95918
A186: 1985-06-01 | B186: 80.21868 | C186: 70.8237
A187: 1985-07-01 | B187: 81.83865 | C187: 70.5186
A188: 1985-08-01 | B188: 84.2652 | C188: 69.67877
A189: 1985-09-01 | B189: 85.96932 | C189: 66.57305
A190: 1985-10-01 | B190: 85.53848 | C190: 69.11876
A191: 1985-11-01 | B191: 83.68629 | C191: 73.40932
A192: 1985-12-01 | B192: 84.67822 | C192: 76.30892
A193: 1986-01-01 | B193: 86.18621 | C193: 76.78276
A194: 1986-02-01 | B194: 84.82666 | C194: 82.34577
A195: 1986-03-01 | B195: 85.7843 | C195: 86.94904
A196: 1986-04-01 | B196: 86.06216 | C196: 86.36163
A197: 1986-05-01 | B197: 86.97247 | C197: 90.18264
A198: 1986-06-01 | B198: 87.28781 | C198: 90.70048
A199: 1986-07-01 | B199: 88.39539 | C199: 85.12893
A200: 1986-08-01 | B200: 89.47997 | C200: 90.29628
A201: 1986-09-01 | B201: 87.41856 | C201: 82.53126
A202: 1986-10-01 | B202: 88.44462 | C202: 86.47118
... 401 more rows

Sheet Tocalino_Index
E10: 1990-07-01 = 100
A11: date | B11: Tocalino Index | D11: date | E11: Tocalino Index
A12: 1958-01-01 | B12: =IF('CPILFESL pc1'!B12="","",'LNU00000060 lin'!B12/('UNRATE lin'!B12+'CPILFESL pc1'!B12)) -> 7589.734891 | D12: =IF(B12="","",A12) -> 1958-01-01
A13: 1958-02-01 | B13: =IF('CPILFESL pc1'!B13="","",'LNU00000060 lin'!B13/('UNRATE lin'!B13+'CPILFESL pc1'!B13)) -> 7105.42339 | D13: 1958-02-01
A14: 1958-03-01 | B14: =IF('CPILFESL pc1'!B14="","",'LNU00000060 lin'!B14/('UNRATE lin'!B14+'CPILFESL pc1'!B14)) -> 6890.463833 | D14: 1958-03-01
A15: 1958-04-01 | B15: =IF('CPILFESL pc1'!B15="","",'LNU00000060 lin'!B15/('UNRATE lin'!B15+'CPILFESL pc1'!B15)) -> 6651.909962 | D15: 1958-04-01
A16: 1958-05-01 | B16: =IF('CPILFESL pc1'!B16="","",'LNU00000060 lin'!B16/('UNRATE lin'!B16+'CPILFESL pc1'!B16)) -> 6654.961671 | D16: 1958-05-01
A17: 1958-06-01 | B17: =IF('CPILFESL pc1'!B17="","",'LNU00000060 lin'!B17/('UNRATE lin'!B17+'CPILFESL pc1'!B17)) -> 6732.152867 | D17: 1958-06-01
A18: 1958-07-01 | B18: =IF('CPILFESL pc1'!B18="","",'LNU00000060 lin'!B18/('UNRATE lin'!B18+'CPILFESL pc1'!B18)) -> 6840.86166 | D18: 1958-07-01
A19: 1958-08-01 | B19: =IF('CPILFESL pc1'!B19="","",'LNU00000060 lin'!B19/('UNRATE lin'!B19+'CPILFESL pc1'!B19)) -> 6911.945016 | D19: 1958-08-01
A20: 1958-09-01 | B20: =IF('CPILFESL pc1'!B20="","",'LNU00000060 lin'!B20/('UNRATE lin'!B20+'CPILFESL pc1'!B20)) -> 7141.126365 | D20: 1958-09-01
A21: 1958-10-01 | B21: =IF('CPILFESL pc1'!B21="","",'LNU00000060 lin'!B21/('UNRATE lin'!B21+'CPILFESL pc1'!B21)) -> 7780.721869 | D21: 1958-10-01
A22: 1958-11-01 | B22: =IF('CPILFESL pc1'!B22="","",'LNU00000060 lin'!B22/('UNRATE lin'!B22+'CPILFESL pc1'!B22)) -> 8281.308496 | D22: 1958-11-01
A23: 1958-12-01 | B23: =IF('CPILFESL pc1'!B23="","",'LNU00000060 lin'!B23/('UNRATE lin'!B23+'CPILFESL pc1'!B23)) -> 7941.167199 | D23: 1958-12-01
A24: 1959-01-01 | B24: =IF('CPILFESL pc1'!B24="","",'LNU00000060 lin'!B24/('UNRATE lin'!B24+'CPILFESL pc1'!B24)) -> 8141.996923 | D24: 1959-01-01
A25: 1959-02-01 | B25: =IF('CPILFESL pc1'!B25="","",'LNU00000060 lin'!B25/('UNRATE lin'!B25+'CPILFESL pc1'!B25)) -> 8623.438955 | D25: 1959-02-01
A26: 1959-03-01 | B26: =IF('CPILFESL pc1'!B26="","",'LNU00000060 lin'!B26/('UNRATE lin'!B26+'CPILFESL pc1'!B26)) -> 8987.898428 | D26: 1959-03-01
A27: 1959-04-01 | B27: =IF('CPILFESL pc1'!B27="","",'LNU00000060 lin'!B27/('UNRATE lin'!B27+'CPILFESL pc1'!B27)) -> 9512.365626 | D27: 1959-04-01
A28: 1959-05-01 | B28: =IF('CPILFESL pc1'!B28="","",'LNU00000060 lin'!B28/('UNRATE lin'!B28+'CPILFESL pc1'!B28)) -> 9197.493657 | D28: 1959-05-01
A29: 1959-06-01 | B29: =IF('CPILFESL pc1'!B29="","",'LNU00000060 lin'!B29/('UNRATE lin'!B29+'CPILFESL pc1'!B29)) -> 9340.788356 | D29: 1959-06-01
A30: 1959-07-01 | B30: =IF('CPILFESL pc1'!B30="","",'LNU00000060 lin'!B30/('UNRATE lin'!B30+'CPILFESL pc1'!B30)) -> 9212.813753 | D30: 1959-07-01
A31: 1959-08-01 | B31: =IF('CPILFESL pc1'!B31="","",'LNU00000060 lin'!B31/('UNRATE lin'!B31+'CPILFESL pc1'!B31)) -> 9088.242335 | D31: 1959-08-01
A32: 1959-09-01 | B32: =IF('CPILFESL pc1'!B32="","",'LNU00000060 lin'!B32/('UNRATE lin'!B32+'CPILFESL pc1'!B32)) -> 8729.821015 | D32: 1959-09-01
A33: 1959-10-01 | B33: =IF('CPILFESL pc1'!B33="","",'LNU00000060 lin'!B33/('UNRATE lin'!B33+'CPILFESL pc1'!B33)) -> 8146.929961 | D33: 1959-10-01
A34: 1959-11-01 | B34: =IF('CPILFESL pc1'!B34="","",'LNU00000060 lin'!B34/('UNRATE lin'!B34+'CPILFESL pc1'!B34)) -> 8398.498993 | D34: 1959-11-01
A35: 1959-12-01 | B35: =IF('CPILFESL pc1'!B35="","",'LNU00000060 lin'!B35/('UNRATE lin'!B35+'CPILFESL pc1'!B35)) -> 8983.821676 | D35: 1959-12-01
A36: 1960-01-01 | B36: =IF('CPILFESL pc1'!B36="","",'LNU00000060 lin'!B36/('UNRATE lin'!B36+'CPILFESL pc1'!B36)) -> 9148.582775 | D36: 1960-01-01
A37: 1960-02-01 | B37: =IF('CPILFESL pc1'!B37="","",'LNU00000060 lin'!B37/('UNRATE lin'!B37+'CPILFESL pc1'!B37)) -> 9235.500214 | D37: 1960-02-01
A38: 1960-03-01 | B38: =IF('CPILFESL pc1'!B38="","",'LNU00000060 lin'!B38/('UNRATE lin'!B38+'CPILFESL pc1'!B38)) -> 8915.540541 | D38: 1960-03-01
A39: 1960-04-01 | B39: =IF('CPILFESL pc1'!B39="","",'LNU00000060 lin'!B39/('UNRATE lin'!B39+'CPILFESL pc1'!B39)) -> 9163.055556 | D39: 1960-04-01
A40: 1960-05-01 | B40: =IF('CPILFESL pc1'!B40="","",'LNU00000060 lin'!B40/('UNRATE lin'!B40+'CPILFESL pc1'!B40)) -> 9760.054902 | D40: 1960-05-01
A41: 1960-06-01 | B41: =IF('CPILFESL pc1'!B41="","",'LNU00000060 lin'!B41/('UNRATE lin'!B41+'CPILFESL pc1'!B41)) -> 9356.641434 | D41: 1960-06-01
A42: 1960-07-01 | B42: =IF('CPILFESL pc1'!B42="","",'LNU00000060 lin'!B42/('UNRATE lin'!B42+'CPILFESL pc1'!B42)) -> 9676.020221 | D42: 1960-07-01
A43: 1960-08-01 | B43: =IF('CPILFESL pc1'!B43="","",'LNU00000060 lin'!B43/('UNRATE lin'!B43+'CPILFESL pc1'!B43)) -> 9541.338725 | D43: 1960-08-01
A44: 1960-09-01 | B44: =IF('CPILFESL pc1'!B44="","",'LNU00000060 lin'!B44/('UNRATE lin'!B44+'CPILFESL pc1'!B44)) -> 10180.58273 | D44: 1960-09-01
A45: 1960-10-01 | B45: =IF('CPILFESL pc1'!B45="","",'LNU00000060 lin'!B45/('UNRATE lin'!B45+'CPILFESL pc1'!B45)) -> 8912.199509 | D45: 1960-10-01
A46: 1960-11-01 | B46: =IF('CPILFESL pc1'!B46="","",'LNU00000060 lin'!B46/('UNRATE lin'!B46+'CPILFESL pc1'!B46)) -> 8919.616116 | D46: 1960-11-01
A47: 1960-12-01 | B47: =IF('CPILFESL pc1'!B47="","",'LNU00000060 lin'!B47/('UNRATE lin'!B47+'CPILFESL pc1'!B47)) -> 9122.98401 | D47: 1960-12-01
A48: 1961-01-01 | B48: =IF('CPILFESL pc1'!B48="","",'LNU00000060 lin'!B48/('UNRATE lin'!B48+'CPILFESL pc1'!B48)) -> 8734.230795 | D48: 1961-01-01
A49: 1961-02-01 | B49: =IF('CPILFESL pc1'!B49="","",'LNU00000060 lin'!B49/('UNRATE lin'!B49+'CPILFESL pc1'!B49)) -> 8769.737304 | D49: 1961-02-01
A50: 1961-03-01 | B50: =IF('CPILFESL pc1'!B50="","",'LNU00000060 lin'!B50/('UNRATE lin'!B50+'CPILFESL pc1'!B50)) -> 8407.325018 | D50: 1961-03-01
A51: 1961-04-01 | B51: =IF('CPILFESL pc1'!B51="","",'LNU00000060 lin'!B51/('UNRATE lin'!B51+'CPILFESL pc1'!B51)) -> 8304.606667 | D51: 1961-04-01
A52: 1961-05-01 | B52: =IF('CPILFESL pc1'!B52="","",'LNU00000060 lin'!B52/('UNRATE lin'!B52+'CPILFESL pc1'!B52)) -> 8205.173265 | D52: 1961-05-01
A53: 1961-06-01 | B53: =IF('CPILFESL pc1'!B53="","",'LNU00000060 lin'!B53/('UNRATE lin'!B53+'CPILFESL pc1'!B53)) -> 8420.250851 | D53: 1961-06-01
A54: 1961-07-01 | B54: =IF('CPILFESL pc1'!B54="","",'LNU00000060 lin'!B54/('UNRATE lin'!B54+'CPILFESL pc1'!B54)) -> 7986.81624 | D54: 1961-07-01
A55: 1961-08-01 | B55: =IF('CPILFESL pc1'!B55="","",'LNU00000060 lin'!B55/('UNRATE lin'!B55+'CPILFESL pc1'!B55)) -> 8059.51914 | D55: 1961-08-01
A56: 1961-09-01 | B56: =IF('CPILFESL pc1'!B56="","",'LNU00000060 lin'!B56/('UNRATE lin'!B56+'CPILFESL pc1'!B56)) -> 7964.132426 | D56: 1961-09-01
A57: 1961-10-01 | B57: =IF('CPILFESL pc1'!B57="","",'LNU00000060 lin'!B57/('UNRATE lin'!B57+'CPILFESL pc1'!B57)) -> 8881.420064 | D57: 1961-10-01
A58: 1961-11-01 | B58: =IF('CPILFESL pc1'!B58="","",'LNU00000060 lin'!B58/('UNRATE lin'!B58+'CPILFESL pc1'!B58)) -> 8964.277508 | D58: 1961-11-01
A59: 1961-12-01 | B59: =IF('CPILFESL pc1'!B59="","",'LNU00000060 lin'!B59/('UNRATE lin'!B59+'CPILFESL pc1'!B59)) -> 8693.007684 | D59: 1961-12-01
A60: 1962-01-01 | B60: =IF('CPILFESL pc1'!B60="","",'LNU00000060 lin'!B60/('UNRATE lin'!B60+'CPILFESL pc1'!B60)) -> 9336.498232 | D60: 1962-01-01
A61: 1962-02-01 | B61: =IF('CPILFESL pc1'!B61="","",'LNU00000060 lin'!B61/('UNRATE lin'!B61+'CPILFESL pc1'!B61)) -> 9747.745893 | D61: 1962-02-01
A62: 1962-03-01 | B62: =IF('CPILFESL pc1'!B62="","",'LNU00000060 lin'!B62/('UNRATE lin'!B62+'CPILFESL pc1'!B62)) -> 9614.910436 | D62: 1962-03-01
A63: 1962-04-01 | B63: =IF('CPILFESL pc1'!B63="","",'LNU00000060 lin'!B63/('UNRATE lin'!B63+'CPILFESL pc1'!B63)) -> 9576.183915 | D63: 1962-04-01
A64: 1962-05-01 | B64: =IF('CPILFESL pc1'!B64="","",'LNU00000060 lin'!B64/('UNRATE lin'!B64+'CPILFESL pc1'!B64)) -> 9278.152096 | D64: 1962-05-01
A65: 1962-06-01 | B65: =IF('CPILFESL pc1'!B65="","",'LNU00000060 lin'!B65/('UNRATE lin'!B65+'CPILFESL pc1'!B65)) -> 9729.880182 | D65: 1962-06-01
A66: 1962-07-01 | B66: =IF('CPILFESL pc1'!B66="","",'LNU00000060 lin'!B66/('UNRATE lin'!B66+'CPILFESL pc1'!B66)) -> 9889.96042 | D66: 1962-07-01
A67: 1962-08-01 | B67: =IF('CPILFESL pc1'!B67="","",'LNU00000060 lin'!B67/('UNRATE lin'!B67+'CPILFESL pc1'!B67)) -> 9476.437018 | D67: 1962-08-01
A68: 1962-09-01 | B68: =IF('CPILFESL pc1'!B68="","",'LNU00000060 lin'!B68/('UNRATE lin'!B68+'CPILFESL pc1'!B68)) -> 9625.379565 | D68: 1962-09-01
A69: 1962-10-01 | B69: =IF('CPILFESL pc1'!B69="","",'LNU00000060 lin'!B69/('UNRATE lin'!B69+'CPILFESL pc1'!B69)) -> 9918.682893 | D69: 1962-10-01
A70: 1962-11-01 | B70: =IF('CPILFESL pc1'!B70="","",'LNU00000060 lin'!B70/('UNRATE lin'!B70+'CPILFESL pc1'!B70)) -> 9957.757516 | D70: 1962-11-01
A71: 1962-12-01 | B71: =IF('CPILFESL pc1'!B71="","",'LNU00000060 lin'!B71/('UNRATE lin'!B71+'CPILFESL pc1'!B71)) -> 9783.030205 | D71: 1962-12-01
A72: 1963-01-01 | B72: =IF('CPILFESL pc1'!B72="","",'LNU00000060 lin'!B72/('UNRATE lin'!B72+'CPILFESL pc1'!B72)) -> 9966.16398 | D72: 1963-01-01
A73: 1963-02-01 | B73: =IF('CPILFESL pc1'!B73="","",'LNU00000060 lin'!B73/('UNRATE lin'!B73+'CPILFESL pc1'!B73)) -> 9245.967377 | D73: 1963-02-01
A74: 1963-03-01 | B74: =IF('CPILFESL pc1'!B74="","",'LNU00000060 lin'!B74/('UNRATE lin'!B74+'CPILFESL pc1'!B74)) -> 9518.827852 | D74: 1963-03-01
A75: 1963-04-01 | B75: =IF('CPILFESL pc1'!B75="","",'LNU00000060 lin'!B75/('UNRATE lin'!B75+'CPILFESL pc1'!B75)) -> 9520.977478 | D75: 1963-04-01
A76: 1963-05-01 | B76: =IF('CPILFESL pc1'!B76="","",'LNU00000060 lin'!B76/('UNRATE lin'!B76+'CPILFESL pc1'!B76)) -> 9691.615819 | D76: =IF(B76="","",A76) -> 1963-05-01
A77: 1963-06-01 | B77: =IF('CPILFESL pc1'!B77="","",'LNU00000060 lin'!B77/('UNRATE lin'!B77+'CPILFESL pc1'!B77)) -> 9668.615587 | D77: 1963-06-01
A78: 1963-07-01 | B78: =IF('CPILFESL pc1'!B78="","",'LNU00000060 lin'!B78/('UNRATE lin'!B78+'CPILFESL pc1'!B78)) -> 9675.598533 | D78: 1963-07-01
A79: 1963-08-01 | B79: =IF('CPILFESL pc1'!B79="","",'LNU00000060 lin'!B79/('UNRATE lin'!B79+'CPILFESL pc1'!B79)) -> 9977.900519 | D79: 1963-08-01
A80: 1963-09-01 | B80: =IF('CPILFESL pc1'!B80="","",'LNU00000060 lin'!B80/('UNRATE lin'!B80+'CPILFESL pc1'!B80)) -> 9829.922125 | D80: 1963-09-01
A81: 1963-10-01 | B81: =IF('CPILFESL pc1'!B81="","",'LNU00000060 lin'!B81/('UNRATE lin'!B81+'CPILFESL pc1'!B81)) -> 9393.139842 | D81: 1963-10-01
A82: 1963-11-01 | B82: =IF('CPILFESL pc1'!B82="","",'LNU00000060 lin'!B82/('UNRATE lin'!B82+'CPILFESL pc1'!B82)) -> 9138.638453 | D82: 1963-11-01
A83: 1963-12-01 | B83: =IF('CPILFESL pc1'!B83="","",'LNU00000060 lin'!B83/('UNRATE lin'!B83+'CPILFESL pc1'!B83)) -> 9405.586901 | D83: 1963-12-01
A84: 1964-01-01 | B84: =IF('CPILFESL pc1'!B84="","",'LNU00000060 lin'!B84/('UNRATE lin'!B84+'CPILFESL pc1'!B84)) -> 8520.982534 | D84: 1964-01-01
A85: 1964-02-01 | B85: =IF('CPILFESL pc1'!B85="","",'LNU00000060 lin'!B85/('UNRATE lin'!B85+'CPILFESL pc1'!B85)) -> 9133.917819 | D85: 1964-02-01
A86: 1964-03-01 | B86: =IF('CPILFESL pc1'!B86="","",'LNU00000060 lin'!B86/('UNRATE lin'!B86+'CPILFESL pc1'!B86)) -> 9556.575691 | D86: 1964-03-01
A87: 1964-04-01 | B87: =IF('CPILFESL pc1'!B87="","",'LNU00000060 lin'!B87/('UNRATE lin'!B87+'CPILFESL pc1'!B87)) -> 9698.878483 | D87: 1964-04-01
A88: 1964-05-01 | B88: =IF('CPILFESL pc1'!B88="","",'LNU00000060 lin'!B88/('UNRATE lin'!B88+'CPILFESL pc1'!B88)) -> 9992.67667 | D88: 1964-05-01
A89: 1964-06-01 | B89: =IF('CPILFESL pc1'!B89="","",'LNU00000060 lin'!B89/('UNRATE lin'!B89+'CPILFESL pc1'!B89)) -> 9856.135185 | D89: 1964-06-01
A90: 1964-07-01 | B90: =IF('CPILFESL pc1'!B90="","",'LNU00000060 lin'!B90/('UNRATE lin'!B90+'CPILFESL pc1'!B90)) -> 10316.84108 | D90: 1964-07-01
A91: 1964-08-01 | B91: =IF('CPILFESL pc1'!B91="","",'LNU00000060 lin'!B91/('UNRATE lin'!B91+'CPILFESL pc1'!B91)) -> 10679.54179 | D91: 1964-08-01
A92: 1964-09-01 | B92: =IF('CPILFESL pc1'!B92="","",'LNU00000060 lin'!B92/('UNRATE lin'!B92+'CPILFESL pc1'!B92)) -> 10515.39837 | D92: 1964-09-01
A93: 1964-10-01 | B93: =IF('CPILFESL pc1'!B93="","",'LNU00000060 lin'!B93/('UNRATE lin'!B93+'CPILFESL pc1'!B93)) -> 10525.66929 | D93: 1964-10-01
A94: 1964-11-01 | B94: =IF('CPILFESL pc1'!B94="","",'LNU00000060 lin'!B94/('UNRATE lin'!B94+'CPILFESL pc1'!B94)) -> 10508.76228 | D94: 1964-11-01
A95: 1964-12-01 | B95: =IF('CPILFESL pc1'!B95="","",'LNU00000060 lin'!B95/('UNRATE lin'!B95+'CPILFESL pc1'!B95)) -> 10708.26482 | D95: 1964-12-01
A96: 1965-01-01 | B96: =IF('CPILFESL pc1'!B96="","",'LNU00000060 lin'!B96/('UNRATE lin'!B96+'CPILFESL pc1'!B96)) -> 10893.5828 | D96: 1965-01-01
A97: 1965-02-01 | B97: =IF('CPILFESL pc1'!B97="","",'LNU00000060 lin'!B97/('UNRATE lin'!B97+'CPILFESL pc1'!B97)) -> 10552.89614 | D97: 1965-02-01
A98: 1965-03-01 | B98: =IF('CPILFESL pc1'!B98="","",'LNU00000060 lin'!B98/('UNRATE lin'!B98+'CPILFESL pc1'!B98)) -> 11266.9633 | D98: 1965-03-01
A99: 1965-04-01 | B99: =IF('CPILFESL pc1'!B99="","",'LNU00000060 lin'!B99/('UNRATE lin'!B99+'CPILFESL pc1'!B99)) -> 10542.91021 | D99: 1965-04-01
A100: 1965-05-01 | B100: =IF('CPILFESL pc1'!B100="","",'LNU00000060 lin'!B100/('UNRATE lin'!B100+'CPILFESL pc1'!B100)) -> 10888.70108 | D100: 1965-05-01
A101: 1965-06-01 | B101: =IF('CPILFESL pc1'!B101="","",'LNU00000060 lin'!B101/('UNRATE lin'!B101+'CPILFESL pc1'!B101)) -> 11479.36332 | D101: 1965-06-01
A102: 1965-07-01 | B102: =IF('CPILFESL pc1'!B102="","",'LNU00000060 lin'!B102/('UNRATE lin'!B102+'CPILFESL pc1'!B102)) -> 11871.11924 | D102: 1965-07-01
A103: 1965-08-01 | B103: =IF('CPILFESL pc1'!B103="","",'LNU00000060 lin'!B103/('UNRATE lin'!B103+'CPILFESL pc1'!B103)) -> 11878.39082 | D103: 1965-08-01
A104: 1965-09-01 | B104: =IF('CPILFESL pc1'!B104="","",'LNU00000060 lin'!B104/('UNRATE lin'!B104+'CPILFESL pc1'!B104)) -> 11457.78293 | D104: 1965-09-01
A105: 1965-10-01 | B105: =IF('CPILFESL pc1'!B105="","",'LNU00000060 lin'!B105/('UNRATE lin'!B105+'CPILFESL pc1'!B105)) -> 12330.87438 | D105: 1965-10-01
A106: 1965-11-01 | B106: =IF('CPILFESL pc1'!B106="","",'LNU00000060 lin'!B106/('UNRATE lin'!B106+'CPILFESL pc1'!B106)) -> 12572.10497 | D106: 1965-11-01
A107: 1965-12-01 | B107: =IF('CPILFESL pc1'!B107="","",'LNU00000060 lin'!B107/('UNRATE lin'!B107+'CPILFESL pc1'!B107)) -> 12101.55892 | D107: 1965-12-01
A108: 1966-01-01 | B108: =IF('CPILFESL pc1'!B108="","",'LNU00000060 lin'!B108/('UNRATE lin'!B108+'CPILFESL pc1'!B108)) -> 12822.29352 | D108: 1966-01-01
A109: 1966-02-01 | B109: =IF('CPILFESL pc1'!B109="","",'LNU00000060 lin'!B109/('UNRATE lin'!B109+'CPILFESL pc1'!B109)) -> 12566.97927 | D109: 1966-02-01
A110: 1966-03-01 | B110: =IF('CPILFESL pc1'!B110="","",'LNU00000060 lin'!B110/('UNRATE lin'!B110+'CPILFESL pc1'!B110)) -> 12561.91715 | D110: 1966-03-01
A111: 1966-04-01 | B111: =IF('CPILFESL pc1'!B111="","",'LNU00000060 lin'!B111/('UNRATE lin'!B111+'CPILFESL pc1'!B111)) -> 11896.83506 | D111: 1966-04-01
A112: 1966-05-01 | B112: =IF('CPILFESL pc1'!B112="","",'LNU00000060 lin'!B112/('UNRATE lin'!B112+'CPILFESL pc1'!B112)) -> 11107.37716 | D112: 1966-05-01
A113: 1966-06-01 | B113: =IF('CPILFESL pc1'!B113="","",'LNU00000060 lin'!B113/('UNRATE lin'!B113+'CPILFESL pc1'!B113)) -> 10741.72974 | D113: 1966-06-01
A114: 1966-07-01 | B114: =IF('CPILFESL pc1'!B114="","",'LNU00000060 lin'!B114/('UNRATE lin'!B114+'CPILFESL pc1'!B114)) -> 10241.45757 | D114: 1966-07-01
A115: 1966-08-01 | B115: =IF('CPILFESL pc1'!B115="","",'LNU00000060 lin'!B115/('UNRATE lin'!B115+'CPILFESL pc1'!B115)) -> 9788.279553 | D115: 1966-08-01
A116: 1966-09-01 | B116: =IF('CPILFESL pc1'!B116="","",'LNU00000060 lin'!B116/('UNRATE lin'!B116+'CPILFESL pc1'!B116)) -> 9949.057459 | D116: 1966-09-01
A117: 1966-10-01 | B117: =IF('CPILFESL pc1'!B117="","",'LNU00000060 lin'!B117/('UNRATE lin'!B117+'CPILFESL pc1'!B117)) -> 9127.082274 | D117: 1966-10-01
A118: 1966-11-01 | B118: =IF('CPILFESL pc1'!B118="","",'LNU00000060 lin'!B118/('UNRATE lin'!B118+'CPILFESL pc1'!B118)) -> 9675.133615 | D118: 1966-11-01
A119: 1966-12-01 | B119: =IF('CPILFESL pc1'!B119="","",'LNU00000060 lin'!B119/('UNRATE lin'!B119+'CPILFESL pc1'!B119)) -> 9422.247394 | D119: 1966-12-01
A120: 1967-01-01 | B120: =IF('CPILFESL pc1'!B120="","",'LNU00000060 lin'!B120/('UNRATE lin'!B120+'CPILFESL pc1'!B120)) -> 8926.723246 | D120: 1967-01-01
A121: 1967-02-01 | B121: =IF('CPILFESL pc1'!B121="","",'LNU00000060 lin'!B121/('UNRATE lin'!B121+'CPILFESL pc1'!B121)) -> 9450.44825 | D121: 1967-02-01
A122: 1967-03-01 | B122: =IF('CPILFESL pc1'!B122="","",'LNU00000060 lin'!B122/('UNRATE lin'!B122+'CPILFESL pc1'!B122)) -> 9069.973523 | D122: 1967-03-01
A123: 1967-04-01 | B123: =IF('CPILFESL pc1'!B123="","",'LNU00000060 lin'!B123/('UNRATE lin'!B123+'CPILFESL pc1'!B123)) -> 9482.494052 | D123: 1967-04-01
A124: 1967-05-01 | B124: =IF('CPILFESL pc1'!B124="","",'LNU00000060 lin'!B124/('UNRATE lin'!B124+'CPILFESL pc1'!B124)) -> 9501.49505 | D124: 1967-05-01
A125: 1967-06-01 | B125: =IF('CPILFESL pc1'!B125="","",'LNU00000060 lin'!B125/('UNRATE lin'!B125+'CPILFESL pc1'!B125)) -> 9392.94892 | D125: 1967-06-01
A126: 1967-07-01 | B126: =IF('CPILFESL pc1'!B126="","",'LNU00000060 lin'!B126/('UNRATE lin'!B126+'CPILFESL pc1'!B126)) -> 9553.408983 | D126: 1967-07-01
A127: 1967-08-01 | B127: =IF('CPILFESL pc1'!B127="","",'LNU00000060 lin'!B127/('UNRATE lin'!B127+'CPILFESL pc1'!B127)) -> 9209.28754 | D127: 1967-08-01
A128: 1967-09-01 | B128: =IF('CPILFESL pc1'!B128="","",'LNU00000060 lin'!B128/('UNRATE lin'!B128+'CPILFESL pc1'!B128)) -> 9238.806579 | D128: 1967-09-01
A129: 1967-10-01 | B129: =IF('CPILFESL pc1'!B129="","",'LNU00000060 lin'!B129/('UNRATE lin'!B129+'CPILFESL pc1'!B129)) -> 9394.647623 | D129: 1967-10-01
A130: 1967-11-01 | B130: =IF('CPILFESL pc1'!B130="","",'LNU00000060 lin'!B130/('UNRATE lin'!B130+'CPILFESL pc1'!B130)) -> 9157.658549 | D130: 1967-11-01
A131: 1967-12-01 | B131: =IF('CPILFESL pc1'!B131="","",'LNU00000060 lin'!B131/('UNRATE lin'!B131+'CPILFESL pc1'!B131)) -> 8946.287071 | D131: 1967-12-01
A132: 1968-01-01 | B132: =IF('CPILFESL pc1'!B132="","",'LNU00000060 lin'!B132/('UNRATE lin'!B132+'CPILFESL pc1'!B132)) -> 9087.915618 | D132: 1968-01-01
A133: 1968-02-01 | B133: =IF('CPILFESL pc1'!B133="","",'LNU00000060 lin'!B133/('UNRATE lin'!B133+'CPILFESL pc1'!B133)) -> 8335.247179 | D133: 1968-02-01
A134: 1968-03-01 | B134: =IF('CPILFESL pc1'!B134="","",'LNU00000060 lin'!B134/('UNRATE lin'!B134+'CPILFESL pc1'!B134)) -> 8459.244065 | D134: 1968-03-01
A135: 1968-04-01 | B135: =IF('CPILFESL pc1'!B135="","",'LNU00000060 lin'!B135/('UNRATE lin'!B135+'CPILFESL pc1'!B135)) -> 8696.172112 | D135: 1968-04-01
A136: 1968-05-01 | B136: =IF('CPILFESL pc1'!B136="","",'LNU00000060 lin'!B136/('UNRATE lin'!B136+'CPILFESL pc1'!B136)) -> 8718.078756 | D136: 1968-05-01
A137: 1968-06-01 | B137: =IF('CPILFESL pc1'!B137="","",'LNU00000060 lin'!B137/('UNRATE lin'!B137+'CPILFESL pc1'!B137)) -> 8225.696397 | D137: 1968-06-01
A138: 1968-07-01 | B138: =IF('CPILFESL pc1'!B138="","",'LNU00000060 lin'!B138/('UNRATE lin'!B138+'CPILFESL pc1'!B138)) -> 7968.471266 | D138: 1968-07-01
A139: 1968-08-01 | B139: =IF('CPILFESL pc1'!B139="","",'LNU00000060 lin'!B139/('UNRATE lin'!B139+'CPILFESL pc1'!B139)) -> 8480.022957 | D139: 1968-08-01
A140: 1968-09-01 | B140: =IF('CPILFESL pc1'!B140="","",'LNU00000060 lin'!B140/('UNRATE lin'!B140+'CPILFESL pc1'!B140)) -> 8308.809103 | D140: =IF(B140="","",A140) -> 1968-09-01
A141: 1968-10-01 | B141: =IF('CPILFESL pc1'!B141="","",'LNU00000060 lin'!B141/('UNRATE lin'!B141+'CPILFESL pc1'!B141)) -> 8049.87213 | D141: 1968-10-01
A142: 1968-11-01 | B142: =IF('CPILFESL pc1'!B142="","",'LNU00000060 lin'!B142/('UNRATE lin'!B142+'CPILFESL pc1'!B142)) -> 7812.697139 | D142: 1968-11-01
A143: 1968-12-01 | B143: =IF('CPILFESL pc1'!B143="","",'LNU00000060 lin'!B143/('UNRATE lin'!B143+'CPILFESL pc1'!B143)) -> 8107.840537 | D143: 1968-12-01
A144: 1969-01-01 | B144: =IF('CPILFESL pc1'!B144="","",'LNU00000060 lin'!B144/('UNRATE lin'!B144+'CPILFESL pc1'!B144)) -> 8129.112842 | D144: 1969-01-01
A145: 1969-02-01 | B145: =IF('CPILFESL pc1'!B145="","",'LNU00000060 lin'!B145/('UNRATE lin'!B145+'CPILFESL pc1'!B145)) -> 7899.44658 | D145: 1969-02-01
A146: 1969-03-01 | B146: =IF('CPILFESL pc1'!B146="","",'LNU00000060 lin'!B146/('UNRATE lin'!B146+'CPILFESL pc1'!B146)) -> 7671.652985 | D146: 1969-03-01
A147: 1969-04-01 | B147: =IF('CPILFESL pc1'!B147="","",'LNU00000060 lin'!B147/('UNRATE lin'!B147+'CPILFESL pc1'!B147)) -> 7240.455367 | D147: 1969-04-01
A148: 1969-05-01 | B148: =IF('CPILFESL pc1'!B148="","",'LNU00000060 lin'!B148/('UNRATE lin'!B148+'CPILFESL pc1'!B148)) -> 7478.775263 | D148: 1969-05-01
A149: 1969-06-01 | B149: =IF('CPILFESL pc1'!B149="","",'LNU00000060 lin'!B149/('UNRATE lin'!B149+'CPILFESL pc1'!B149)) -> 7429.873886 | D149: 1969-06-01
A150: 1969-07-01 | B150: =IF('CPILFESL pc1'!B150="","",'LNU00000060 lin'!B150/('UNRATE lin'!B150+'CPILFESL pc1'!B150)) -> 7466.423856 | D150: 1969-07-01
A151: 1969-08-01 | B151: =IF('CPILFESL pc1'!B151="","",'LNU00000060 lin'!B151/('UNRATE lin'!B151+'CPILFESL pc1'!B151)) -> 7269.349455 | D151: 1969-08-01
A152: 1969-09-01 | B152: =IF('CPILFESL pc1'!B152="","",'LNU00000060 lin'!B152/('UNRATE lin'!B152+'CPILFESL pc1'!B152)) -> 7148.552537 | D152: 1969-09-01
A153: 1969-10-01 | B153: =IF('CPILFESL pc1'!B153="","",'LNU00000060 lin'!B153/('UNRATE lin'!B153+'CPILFESL pc1'!B153)) -> 7178.80038 | D153: 1969-10-01
A154: 1969-11-01 | B154: =IF('CPILFESL pc1'!B154="","",'LNU00000060 lin'!B154/('UNRATE lin'!B154+'CPILFESL pc1'!B154)) -> 7578.7249 | D154: 1969-11-01
A155: 1969-12-01 | B155: =IF('CPILFESL pc1'!B155="","",'LNU00000060 lin'!B155/('UNRATE lin'!B155+'CPILFESL pc1'!B155)) -> 7386.992537 | D155: 1969-12-01
A156: 1970-01-01 | B156: =IF('CPILFESL pc1'!B156="","",'LNU00000060 lin'!B156/('UNRATE lin'!B156+'CPILFESL pc1'!B156)) -> 6914.611443 | D156: 1970-01-01
A157: 1970-02-01 | B157: =IF('CPILFESL pc1'!B157="","",'LNU00000060 lin'!B157/('UNRATE lin'!B157+'CPILFESL pc1'!B157)) -> 6931.806198 | D157: 1970-02-01
A158: 1970-03-01 | B158: =IF('CPILFESL pc1'!B158="","",'LNU00000060 lin'!B158/('UNRATE lin'!B158+'CPILFESL pc1'!B158)) -> 6651.908598 | D158: 1970-03-01
A159: 1970-04-01 | B159: =IF('CPILFESL pc1'!B159="","",'LNU00000060 lin'!B159/('UNRATE lin'!B159+'CPILFESL pc1'!B159)) -> 6564.129081 | D159: 1970-04-01
A160: 1970-05-01 | B160: =IF('CPILFESL pc1'!B160="","",'LNU00000060 lin'!B160/('UNRATE lin'!B160+'CPILFESL pc1'!B160)) -> 6298.015805 | D160: 1970-05-01
A161: 1970-06-01 | B161: =IF('CPILFESL pc1'!B161="","",'LNU00000060 lin'!B161/('UNRATE lin'!B161+'CPILFESL pc1'!B161)) -> 6122.729365 | D161: 1970-06-01
A162: 1970-07-01 | B162: =IF('CPILFESL pc1'!B162="","",'LNU00000060 lin'!B162/('UNRATE lin'!B162+'CPILFESL pc1'!B162)) -> 6235.039528 | D162: 1970-07-01
A163: 1970-08-01 | B163: =IF('CPILFESL pc1'!B163="","",'LNU00000060 lin'!B163/('UNRATE lin'!B163+'CPILFESL pc1'!B163)) -> 6202.069628 | D163: 1970-08-01
A164: 1970-09-01 | B164: =IF('CPILFESL pc1'!B164="","",'LNU00000060 lin'!B164/('UNRATE lin'!B164+'CPILFESL pc1'!B164)) -> 6062.229951 | D164: 1970-09-01
A165: 1970-10-01 | B165: =IF('CPILFESL pc1'!B165="","",'LNU00000060 lin'!B165/('UNRATE lin'!B165+'CPILFESL pc1'!B165)) -> 6032.766489 | D165: 1970-10-01
A166: 1970-11-01 | B166: =IF('CPILFESL pc1'!B166="","",'LNU00000060 lin'!B166/('UNRATE lin'!B166+'CPILFESL pc1'!B166)) -> 5608.071717 | D166: 1970-11-01
A167: 1970-12-01 | B167: =IF('CPILFESL pc1'!B167="","",'LNU00000060 lin'!B167/('UNRATE lin'!B167+'CPILFESL pc1'!B167)) -> 5539.027544 | D167: 1970-12-01
A168: 1971-01-01 | B168: =IF('CPILFESL pc1'!B168="","",'LNU00000060 lin'!B168/('UNRATE lin'!B168+'CPILFESL pc1'!B168)) -> 5765.434414 | D168: 1971-01-01
A169: 1971-02-01 | B169: =IF('CPILFESL pc1'!B169="","",'LNU00000060 lin'!B169/('UNRATE lin'!B169+'CPILFESL pc1'!B169)) -> 5907.050624 | D169: 1971-02-01
A170: 1971-03-01 | B170: =IF('CPILFESL pc1'!B170="","",'LNU00000060 lin'!B170/('UNRATE lin'!B170+'CPILFESL pc1'!B170)) -> 6274.945692 | D170: 1971-03-01
A171: 1971-04-01 | B171: =IF('CPILFESL pc1'!B171="","",'LNU00000060 lin'!B171/('UNRATE lin'!B171+'CPILFESL pc1'!B171)) -> 6505.506659 | D171: 1971-04-01
A172: 1971-05-01 | B172: =IF('CPILFESL pc1'!B172="","",'LNU00000060 lin'!B172/('UNRATE lin'!B172+'CPILFESL pc1'!B172)) -> 6374.541167 | D172: 1971-05-01
A173: 1971-06-01 | B173: =IF('CPILFESL pc1'!B173="","",'LNU00000060 lin'!B173/('UNRATE lin'!B173+'CPILFESL pc1'!B173)) -> 6547.052572 | D173: 1971-06-01
A174: 1971-07-01 | B174: =IF('CPILFESL pc1'!B174="","",'LNU00000060 lin'!B174/('UNRATE lin'!B174+'CPILFESL pc1'!B174)) -> 6500.379248 | D174: 1971-07-01
A175: 1971-08-01 | B175: =IF('CPILFESL pc1'!B175="","",'LNU00000060 lin'!B175/('UNRATE lin'!B175+'CPILFESL pc1'!B175)) -> 6615.579598 | D175: 1971-08-01
A176: 1971-09-01 | B176: =IF('CPILFESL pc1'!B176="","",'LNU00000060 lin'!B176/('UNRATE lin'!B176+'CPILFESL pc1'!B176)) -> 7027.031836 | D176: 1971-09-01
A177: 1971-10-01 | B177: =IF('CPILFESL pc1'!B177="","",'LNU00000060 lin'!B177/('UNRATE lin'!B177+'CPILFESL pc1'!B177)) -> 7378.032235 | D177: 1971-10-01
A178: 1971-11-01 | B178: =IF('CPILFESL pc1'!B178="","",'LNU00000060 lin'!B178/('UNRATE lin'!B178+'CPILFESL pc1'!B178)) -> 7632.887238 | D178: 1971-11-01
A179: 1971-12-01 | B179: =IF('CPILFESL pc1'!B179="","",'LNU00000060 lin'!B179/('UNRATE lin'!B179+'CPILFESL pc1'!B179)) -> 7862.794165 | D179: 1971-12-01
A180: 1972-01-01 | B180: =IF('CPILFESL pc1'!B180="","",'LNU00000060 lin'!B180/('UNRATE lin'!B180+'CPILFESL pc1'!B180)) -> 7859.693033 | D180: 1972-01-01
A181: 1972-02-01 | B181: =IF('CPILFESL pc1'!B181="","",'LNU00000060 lin'!B181/('UNRATE lin'!B181+'CPILFESL pc1'!B181)) -> 7970.910026 | D181: 1972-02-01
A182: 1972-03-01 | B182: =IF('CPILFESL pc1'!B182="","",'LNU00000060 lin'!B182/('UNRATE lin'!B182+'CPILFESL pc1'!B182)) -> 7896.537882 | D182: 1972-03-01
A183: 1972-04-01 | B183: =IF('CPILFESL pc1'!B183="","",'LNU00000060 lin'!B183/('UNRATE lin'!B183+'CPILFESL pc1'!B183)) -> 8013.650467 | D183: 1972-04-01
A184: 1972-05-01 | B184: =IF('CPILFESL pc1'!B184="","",'LNU00000060 lin'!B184/('UNRATE lin'!B184+'CPILFESL pc1'!B184)) -> 8260.508887 | D184: 1972-05-01
A185: 1972-06-01 | B185: =IF('CPILFESL pc1'!B185="","",'LNU00000060 lin'!B185/('UNRATE lin'!B185+'CPILFESL pc1'!B185)) -> 8513.077775 | D185: 1972-06-01
A186: 1972-07-01 | B186: =IF('CPILFESL pc1'!B186="","",'LNU00000060 lin'!B186/('UNRATE lin'!B186+'CPILFESL pc1'!B186)) -> 8638.355642 | D186: 1972-07-01
A187: 1972-08-01 | B187: =IF('CPILFESL pc1'!B187="","",'LNU00000060 lin'!B187/('UNRATE lin'!B187+'CPILFESL pc1'!B187)) -> 8424.656105 | D187: 1972-08-01
A188: 1972-09-01 | B188: =IF('CPILFESL pc1'!B188="","",'LNU00000060 lin'!B188/('UNRATE lin'!B188+'CPILFESL pc1'!B188)) -> 8536.757062 | D188: 1972-09-01
A189: 1972-10-01 | B189: =IF('CPILFESL pc1'!B189="","",'LNU00000060 lin'!B189/('UNRATE lin'!B189+'CPILFESL pc1'!B189)) -> 8455.428354 | D189: 1972-10-01
A190: 1972-11-01 | B190: =IF('CPILFESL pc1'!B190="","",'LNU00000060 lin'!B190/('UNRATE lin'!B190+'CPILFESL pc1'!B190)) -> 9032.060789 | D190: 1972-11-01
A191: 1972-12-01 | B191: =IF('CPILFESL pc1'!B191="","",'LNU00000060 lin'!B191/('UNRATE lin'!B191+'CPILFESL pc1'!B191)) -> 8911.148201 | D191: 1972-12-01
A192: 1973-01-01 | B192: =IF('CPILFESL pc1'!B192="","",'LNU00000060 lin'!B192/('UNRATE lin'!B192+'CPILFESL pc1'!B192)) -> 9855.77635 | D192: 1973-01-01
A193: 1973-02-01 | B193: =IF('CPILFESL pc1'!B193="","",'LNU00000060 lin'!B193/('UNRATE lin'!B193+'CPILFESL pc1'!B193)) -> 9459.14046 | D193: 1973-02-01
A194: 1973-03-01 | B194: =IF('CPILFESL pc1'!B194="","",'LNU00000060 lin'!B194/('UNRATE lin'!B194+'CPILFESL pc1'!B194)) -> 9060.770484 | D194: 1973-03-01
A195: 1973-04-01 | B195: =IF('CPILFESL pc1'!B195="","",'LNU00000060 lin'!B195/('UNRATE lin'!B195+'CPILFESL pc1'!B195)) -> 9237.528928 | D195: 1973-04-01
A196: 1973-05-01 | B196: =IF('CPILFESL pc1'!B196="","",'LNU00000060 lin'!B196/('UNRATE lin'!B196+'CPILFESL pc1'!B196)) -> 9114.768447 | D196: 1973-05-01
A197: 1973-06-01 | B197: =IF('CPILFESL pc1'!B197="","",'LNU00000060 lin'!B197/('UNRATE lin'!B197+'CPILFESL pc1'!B197)) -> 9136.060937 | D197: 1973-06-01
A198: 1973-07-01 | B198: =IF('CPILFESL pc1'!B198="","",'LNU00000060 lin'!B198/('UNRATE lin'!B198+'CPILFESL pc1'!B198)) -> 9274.195571 | D198: 1973-07-01
A199: 1973-08-01 | B199: =IF('CPILFESL pc1'!B199="","",'LNU00000060 lin'!B199/('UNRATE lin'!B199+'CPILFESL pc1'!B199)) -> 9305.086385 | D199: 1973-08-01
A200: 1973-09-01 | B200: =IF('CPILFESL pc1'!B200="","",'LNU00000060 lin'!B200/('UNRATE lin'!B200+'CPILFESL pc1'!B200)) -> 8588.626068 | D200: 1973-09-01
A201: 1973-10-01 | B201: =IF('CPILFESL pc1'!B201="","",'LNU00000060 lin'!B201/('UNRATE lin'!B201+'CPILFESL pc1'!B201)) -> 8367.457722 | D201: 1973-10-01
A202: 1973-11-01 | B202: =IF('CPILFESL pc1'!B202="","",'LNU00000060 lin'!B202/('UNRATE lin'!B202+'CPILFESL pc1'!B202)) -> 7808.196035 | D202: 1973-11-01
A203: 1973-12-01 | B203: =IF('CPILFESL pc1'!B203="","",'LNU00000060 lin'!B203/('UNRATE lin'!B203+'CPILFESL pc1'!B203)) -> 7762.069497 | D203: 1973-12-01
A204: 1974-01-01 | B204: =IF('CPILFESL pc1'!B204="","",'LNU00000060 lin'!B204/('UNRATE lin'!B204+'CPILFESL pc1'!B204)) -> 7300.220826 | D204: =IF(B204="","",A204) -> 1974-01-01
A205: 1974-02-01 | B205: =IF('CPILFESL pc1'!B205="","",'LNU00000060 lin'!B205/('UNRATE lin'!B205+'CPILFESL pc1'!B205)) -> 7102.965386 | D205: 1974-02-01
A206: 1974-03-01 | B206: =IF('CPILFESL pc1'!B206="","",'LNU00000060 lin'!B206/('UNRATE lin'!B206+'CPILFESL pc1'!B206)) -> 6902.603289 | D206: 1974-03-01
A207: 1974-04-01 | B207: =IF('CPILFESL pc1'!B207="","",'LNU00000060 lin'!B207/('UNRATE lin'!B207+'CPILFESL pc1'!B207)) -> 6649.817879 | D207: 1974-04-01
A208: 1974-05-01 | B208: =IF('CPILFESL pc1'!B208="","",'LNU00000060 lin'!B208/('UNRATE lin'!B208+'CPILFESL pc1'!B208)) -> 6192.607378 | D208: 1974-05-01
A209: 1974-06-01 | B209: =IF('CPILFESL pc1'!B209="","",'LNU00000060 lin'!B209/('UNRATE lin'!B209+'CPILFESL pc1'!B209)) -> 5660.518908 | D209: 1974-06-01
... 798 more rows

Sheet data
A1: FRED Graph Observations
A2: Federal Reserve Economic Data
A3: Link: https://fred.stlouisfed.org
A4: Help: https://fred.stlouisfed.org/help-faq
A5: Economic Research Division
A6: Federal Reserve Bank of St. Louis
A8: LNU00000060_UNRATE_CPILFESL_PC1 | B8: LNU00000060/(UNRATE+CPILFESL), Index Jul 1990=100 of (Thous. of Persons/(%+% Chg. from Yr. Ago)), Monthly
A9: WILL5000PR_CPIAUCNS | B9: WILL5000PR/CPIAUCNS, Index Jul 1990=100 of (Index/Index 1982-1984=100), Monthly, Not Seasonally Adjusted
A11: Frequency: Monthly
A12: observation_date | B12: LNU00000060_UNRATE_CPILFESL_PC1 | C12: WILL5000PR_CPIAUCNS
A13: 1971-01-01 | B13: 57.83294 | C13: 84.54445
A14: 1971-02-01 | B14: 59.25349 | C14: 85.49715
A15: 1971-03-01 | B15: 62.94384 | C15: 88.92065
A16: 1971-04-01 | B16: 65.25659 | C16: 91.78515
A17: 1971-05-01 | B17: 63.94288 | C17: 87.9432
A18: 1971-06-01 | B18: 65.67333 | C18: 87.49077
A19: 1971-07-01 | B19: 65.20515 | C19: 84.05613
A20: 1971-08-01 | B20: 66.36073 | C20: 86.80503
A21: 1971-09-01 | B21: 70.48799 | C21: 86.33568
A22: 1971-10-01 | B22: 74.00887 | C22: 82.64935
A23: 1971-11-01 | B23: 76.56532 | C23: 82.06716
A24: 1971-12-01 | B24: 78.87151 | C24: 88.99039
A25: 1972-01-01 | B25: 78.8404 | C25: 91.56562
A26: 1972-02-01 | B26: 79.95601 | C26: 93.83331
A27: 1972-03-01 | B27: 79.20999 | C27: 94.28698
A28: 1972-04-01 | B28: 80.38474 | C28: 94.6512
A29: 1972-05-01 | B29: 82.86097 | C29: 95.71202
A30: 1972-06-01 | B30: 85.39449 | C30: 93.35364
A31: 1972-07-01 | B31: 86.65115 | C31: 92.55492
A32: 1972-08-01 | B32: 84.50753 | C32: 95.21513
A33: 1972-09-01 | B33: 85.63201 | C33: 94.09848
A34: 1972-10-01 | B34: 84.81621 | C34: 94.36769
A35: 1972-11-01 | B35: 90.60039 | C35: 98.16897
A36: 1972-12-01 | B36: 89.38752 | C36: 98.84639
A37: 1973-01-01 | B37: 98.86307 | C37: 95.85123
A38: 1973-02-01 | B38: 94.88442 | C38: 90.72169
A39: 1973-03-01 | B39: 90.88838 | C39: 89.12725
A40: 1973-04-01 | B40: 92.66144 | C40: 84.03001
A41: 1973-05-01 | B41: 91.43003 | C41: 81.09394
A42: 1973-06-01 | B42: 91.64362 | C42: 79.74939
A43: 1973-07-01 | B43: 93.02924 | C43: 83.93292
A44: 1973-08-01 | B44: 93.33911 | C44: 79.5821
A45: 1973-09-01 | B45: 86.15231 | C45: 83.45681
A46: 1973-10-01 | B46: 83.93378 | C46: 82.70022
A47: 1973-11-01 | B47: 78.32383 | C47: 71.73811
A48: 1973-12-01 | B48: 77.86114 | C48: 71.86691
A49: 1974-01-01 | B49: 73.22835 | C49: 71.40217
A50: 1974-02-01 | B50: 71.24968 | C50: 70.37125
A51: 1974-03-01 | B51: 69.23985 | C51: 67.6243
A52: 1974-04-01 | B52: 66.70417 | C52: 64.18306
A53: 1974-05-01 | B53: 62.1179 | C53: 60.25595
A54: 1974-06-01 | B54: 56.78053 | C54: 58.14895
A55: 1974-07-01 | B55: 53.03755 | C55: 53.53027
A56: 1974-08-01 | B56: 49.4528 | C56: 47.78036
A57: 1974-09-01 | B57: 47.14825 | C57: 41.88355
A58: 1974-10-01 | B58: 45.88633 | C58: 48.21235
A59: 1974-11-01 | B59: 43.37171 | C59: 45.47745
A60: 1974-12-01 | B60: 41.13076 | C60: 43.82628
A61: 1975-01-01 | B61: 38.95355 | C61: 49.95893
A62: 1975-02-01 | B62: 38.31931 | C62: 52.31722
A63: 1975-03-01 | B63: 38.40628 | C63: 53.39302
A64: 1975-04-01 | B64: 38.20603 | C64: 55.64572
A65: 1975-05-01 | B65: 39.77735 | C65: 58.10653
A66: 1975-06-01 | B66: 41.36582 | C66: 60.39516
A67: 1975-07-01 | B67: 43.56928 | C67: 55.95106
A68: 1975-08-01 | B68: 47.15588 | C68: 54.3721
A69: 1975-09-01 | B69: 48.63567 | C69: 51.84058
A70: 1975-10-01 | B70: 50.16707 | C70: 54.30634
A71: 1975-11-01 | B71: 50.75063 | C71: 55.32513
A72: 1975-12-01 | B72: 52.00454 | C72: 54.43847
A73: 1976-01-01 | B73: 52.60448 | C73: 61.01541
A74: 1976-02-01 | B74: 55.07698 | C74: 60.89408
A75: 1976-03-01 | B75: 54.90573 | C75: 62.27327
A76: 1976-04-01 | B76: 55.46716 | C76: 61.37613
A77: 1976-05-01 | B77: 56.0997 | C77: 59.9787
A78: 1976-06-01 | B78: 56.28061 | C78: 62.05511
A79: 1976-07-01 | B79: 54.23521 | C79: 61.25808
A80: 1976-08-01 | B80: 53.72529 | C80: 60.47408
A81: 1976-09-01 | B81: 54.69602 | C81: 61.58924
A82: 1976-10-01 | B82: 54.52694 | C82: 59.88464
A83: 1976-11-01 | B83: 55.80868 | C83: 59.73821
A84: 1976-12-01 | B84: 56.77396 | C84: 63.16945
A85: 1977-01-01 | B85: 58.29541 | C85: 60.51921
A86: 1977-02-01 | B86: 57.34325 | C86: 58.67327
A87: 1977-03-01 | B87: 58.40456 | C87: 57.55615
A88: 1977-04-01 | B88: 58.69019 | C88: 57.3732
A89: 1977-05-01 | B89: 59.82221 | C89: 56.36891
A90: 1977-06-01 | B90: 57.63803 | C90: 58.34671
A91: 1977-07-01 | B91: 60.77323 | C91: 57.20515
A92: 1977-08-01 | B92: 60.56098 | C92: 55.88308
A93: 1977-09-01 | B93: 61.74129 | C93: 55.68975
A94: 1977-10-01 | B94: 62.8198 | C94: 53.26657
A95: 1977-11-01 | B95: 62.19682 | C95: 54.92495
A96: 1977-12-01 | B96: 62.68926 | C96: 55.07069
A97: 1978-01-01 | B97: 63.00174 | C97: 51.58652
A98: 1978-02-01 | B98: 64.66301 | C98: 50.36903
A99: 1978-03-01 | B99: 64.05985 | C99: 51.52394
A100: 1978-04-01 | B100: 63.65911 | C100: 55.25778
A101: 1978-05-01 | B101: 63.60864 | C101: 55.59381
A102: 1978-06-01 | B102: 63.62661 | C102: 54.24761
A103: 1978-07-01 | B103: 60.85169 | C103: 56.83801
A104: 1978-08-01 | B104: 61.00004 | C104: 58.62116
A105: 1978-09-01 | B105: 58.69167 | C105: 57.71398
A106: 1978-10-01 | B106: 57.73198 | C106: 50.92859
A107: 1978-11-01 | B107: 56.94461 | C107: 51.92641
A108: 1978-12-01 | B108: 56.86368 | C108: 52.51756
A109: 1979-01-01 | B109: 56.94783 | C109: 54.43176
A110: 1979-02-01 | B110: 54.8008 | C110: 52.18231
A111: 1979-03-01 | B111: 54.3357 | C111: 55.06929
A112: 1979-04-01 | B112: 54.6719 | C112: 54.83167
A113: 1979-05-01 | B113: 55.15521 | C113: 52.87241
A114: 1979-06-01 | B114: 55.15834 | C114: 54.79636
A115: 1979-07-01 | B115: 54.35489 | C115: 54.72007
A116: 1979-08-01 | B116: 52.12762 | C116: 57.3153
A117: 1979-09-01 | B117: 52.84489 | C117: 56.90777
A118: 1979-10-01 | B118: 51.92457 | C118: 52.26358
A119: 1979-11-01 | B119: 50.65644 | C119: 54.59188
A120: 1979-12-01 | B120: 48.48688 | C120: 55.29391
A121: 1980-01-01 | B121: 46.05483 | C121: 58.28985
A122: 1980-02-01 | B122: 46.07263 | C122: 57.21642
A123: 1980-03-01 | B123: 44.65103 | C123: 49.35456
A124: 1980-04-01 | B124: 42.31408 | C124: 51.17982
A125: 1980-05-01 | B125: 41.0551 | C125: 53.09142
A126: 1980-06-01 | B126: 40.02648 | C126: 54.28406
A127: 1980-07-01 | B127: 42.15453 | C127: 57.89154
A128: 1980-08-01 | B128: 43.62393 | C128: 58.62722
A129: 1980-09-01 | B129: 43.75162 | C129: 59.67115
A130: 1980-10-01 | B130: 43.47997 | C130: 60.44222
A131: 1980-11-01 | B131: 43.54439 | C131: 66.09326
A132: 1980-12-01 | B132: 44.31965 | C132: 62.7107
A133: 1981-01-01 | B133: 45.60041 | C133: 59.44126
A134: 1981-02-01 | B134: 47.19347 | C134: 59.23899
A135: 1981-03-01 | B135: 49.76792 | C135: 61.60631
A136: 1981-04-01 | B136: 51.92192 | C136: 60.58777
A137: 1981-05-01 | B137: 50.55646 | C137: 60.53983
A138: 1981-06-01 | B138: 51.33393 | C138: 59.173
A139: 1981-07-01 | B139: 47.34335 | C139: 58.1438
A140: 1981-08-01 | B140: 45.86331 | C140: 54.15081
A141: 1981-09-01 | B141: 44.87855 | C141: 49.95845
A142: 1981-10-01 | B142: 46.28194 | C142: 52.69832
A143: 1981-11-01 | B143: 47.15456 | C143: 54.53505
A144: 1981-12-01 | B144: 48.57289 | C144: 52.72225
A145: 1982-01-01 | B145: 49.17938 | C145: 50.96551
A146: 1982-02-01 | B146: 48.59526 | C146: 47.66853
A147: 1982-03-01 | B147: 49.82026 | C147: 47.0393
A148: 1982-04-01 | B148: 48.61527 | C148: 48.78012
A149: 1982-05-01 | B149: 48.95924 | C149: 46.56789
A150: 1982-06-01 | B150: 49.01988 | C150: 44.6921
A151: 1982-07-01 | B151: 50.73912 | C151: 43.45796
A152: 1982-08-01 | B152: 52.72082 | C152: 48.11092
A153: 1982-09-01 | B153: 55.70579 | C153: 48.63644
A154: 1982-10-01 | B154: 54.85424 | C154: 54.04136
A155: 1982-11-01 | B155: 55.90216 | C155: 56.43357
A156: 1982-12-01 | B156: 58.41835 | C156: 57.30518
A157: 1983-01-01 | B157: 59.71552 | C157: 59.44898
A158: 1983-02-01 | B158: 60.35263 | C158: 60.92906
A159: 1983-03-01 | B159: 60.45213 | C159: 62.97285
A160: 1983-04-01 | B160: 62.92747 | C160: 67.09116
A161: 1983-05-01 | B161: 65.5591 | C161: 67.19108
A162: 1983-06-01 | B162: 67.85948 | C162: 69.38123
A163: 1983-07-01 | B163: 71.87077 | C163: 66.8568
A164: 1983-08-01 | B164: 72.09147 | C164: 66.68355
A165: 1983-09-01 | B165: 72.19959 | C165: 67.25964
A166: 1983-10-01 | B166: 73.53047 | C166: 65.13718
A167: 1983-11-01 | B167: 71.22424 | C167: 66.52376
A168: 1983-12-01 | B168: 70.17715 | C168: 65.55893
A169: 1984-01-01 | B169: 70.50464 | C169: 64.00188
A170: 1984-02-01 | B170: 72.43213 | C170: 60.84063
A171: 1984-03-01 | B171: 71.47849 | C171: 61.36195
A172: 1984-04-01 | B172: 71.7178 | C172: 61.11892
A173: 1984-05-01 | B173: 73.07538 | C173: 57.38819
A174: 1984-06-01 | B174: 73.88832 | C174: 58.38327
A175: 1984-07-01 | B175: 73.04378 | C175: 56.88496
A176: 1984-08-01 | B176: 72.69664 | C176: 62.75792
A177: 1984-09-01 | B177: 74.11765 | C177: 62.31119
A178: 1984-10-01 | B178: 74.4187 | C178: 61.94339
A179: 1984-11-01 | B179: 77.79526 | C179: 60.99386
A180: 1984-12-01 | B180: 76.74793 | C180: 62.27783
A181: 1985-01-01 | B181: 79.59394 | C181: 67.39073
A182: 1985-02-01 | B182: 78.5132 | C182: 67.90997
A183: 1985-03-01 | B183: 78.80759 | C183: 67.34686
A184: 1985-04-01 | B184: 79.71593 | C184: 66.7792
A185: 1985-05-01 | B185: 80.65358 | C185: 69.95918
A186: 1985-06-01 | B186: 80.21868 | C186: 70.8237
A187: 1985-07-01 | B187: 81.83865 | C187: 70.5186
A188: 1985-08-01 | B188: 84.2652 | C188: 69.67877
A189: 1985-09-01 | B189: 85.96932 | C189: 66.57305
A190: 1985-10-01 | B190: 85.53848 | C190: 69.11876
A191: 1985-11-01 | B191: 83.68629 | C191: 73.40932
A192: 1985-12-01 | B192: 84.67822 | C192: 76.30892
A193: 1986-01-01 | B193: 86.18621 | C193: 76.78276
A194: 1986-02-01 | B194: 84.82666 | C194: 82.34577
A195: 1986-03-01 | B195: 85.7843 | C195: 86.94904
A196: 1986-04-01 | B196: 86.06216 | C196: 86.36163
A197: 1986-05-01 | B197: 86.97247 | C197: 90.18264
A198: 1986-06-01 | B198: 87.28781 | C198: 90.70048
A199: 1986-07-01 | B199: 88.39539 | C199: 85.12893
A200: 1986-08-01 | B200: 89.47997 | C200: 90.29628
A201: 1986-09-01 | B201: 87.41856 | C201: 82.53126
A202: 1986-10-01 | B202: 88.44462 | C202: 86.47118
... 401 more rows
